Council Name,Date,TransNo,Amount � (Excl VAT),Supplier name,Supplier Category,Expense Area,Expense Type,Expense Code,Unclaimed VAT
London Borough of Sutton,28/03/2023,50333922,"3,590.10",1st Verse Productions Ltd,SCHOOL FUNDS,Resources,Other Supplies & Services,A44291,0
London Borough of Sutton,21/02/2023,20043548,"2,280.11",A Lings Group Limited,CONSTRUCTION INDUSTRY,Environment Housing and Neighbourhoods,Miscellaneous Expenses,A49000,0
London Borough of Sutton,27/01/2023,50326731,841.48,A R G Europe Limited,CONSTRUCTION INDUSTRY,HRA,Payments to Contractors,C14000,0
London Borough of Sutton,27/01/2023,50326732,763.98,A R G Europe Limited,CONSTRUCTION INDUSTRY,HRA,Payments to Contractors,C14000,0
London Borough of Sutton,08/02/2023,50326734,763.98,A R G Europe Limited,CONSTRUCTION INDUSTRY,HRA,Payments to Contractors,C14000,0
London Borough of Sutton,15/02/2023,50326735,"1,005.94",A R G Europe Limited,CONSTRUCTION INDUSTRY,HRA,Payments to Contractors,C14000,0
London Borough of Sutton,30/01/2023,50326736,"2,177.78",A R G Europe Limited,CONSTRUCTION INDUSTRY,HRA,Payments to Contractors,C14000,0
London Borough of Sutton,20/03/2023,50331535,"30,274.56",A Step Beyond Ltd,SOCIAL SERVICES - OTHER,Peoples Services,Supported Living,A56088,0
London Borough of Sutton,20/03/2023,50331535,"2,973.39",A Step Beyond Ltd,SOCIAL SERVICES - OTHER,Peoples Services,Supported Living,A56088,0
London Borough of Sutton,20/03/2023,50331535,"1,992.14",A Step Beyond Ltd,SOCIAL SERVICES - OTHER,Peoples Services,Supported Living,A56088,0
London Borough of Sutton,20/03/2023,50331535,"11,352.96",A Step Beyond Ltd,SOCIAL SERVICES - OTHER,Peoples Services,Supported Living,A56088,0
London Borough of Sutton,02/02/2023,50334186,"27,160.00",A Wilderness Way Ltd,CHILDREN'S SERVICES - FOSTERING & ADOPTION SERVICES,Peoples Services,Residential Care-Children,A56115,0
London Borough of Sutton,17/03/2023,50330979,-750.40,Abbey Care Centre,SOCIAL SERVICES RESIDENTIAL,Peoples Services,Nursing Care - 3rd party top up payment,A56023,0
London Borough of Sutton,17/03/2023,50330979,"3,848.24",Abbey Care Centre,SOCIAL SERVICES RESIDENTIAL,Peoples Services,Nursing Care Short Term,A56026,0
London Borough of Sutton,17/03/2023,50330979,"-1,492.80",Abbey Care Centre,SOCIAL SERVICES RESIDENTIAL,Peoples Services,Nursing Care - 3rd party top up payment,A56023,0
London Borough of Sutton,17/03/2023,50331069,-750.40,Abbey Care Centre,SOCIAL SERVICES RESIDENTIAL,Peoples Services,Nursing Care - 3rd party top up payment,A56023,0
London Borough of Sutton,17/03/2023,50331069,"3,848.24",Abbey Care Centre,SOCIAL SERVICES RESIDENTIAL,Peoples Services,Nursing Care Short Term,A56026,0
London Borough of Sutton,17/03/2023,50331122,"4,036.76",Abbey Care Centre,SOCIAL SERVICES RESIDENTIAL,Peoples Services,Nursing Care - Ext Provider,A56025,0
London Borough of Sutton,17/03/2023,50331122,-836.76,Abbey Care Centre,SOCIAL SERVICES RESIDENTIAL,Peoples Services,Nursing Care - 3rd party top up payment,A56023,0
London Borough of Sutton,17/03/2023,50331214,"3,848.24",Abbey Care Centre,SOCIAL SERVICES RESIDENTIAL,Peoples Services,Nursing Care - Ext Provider,A56025,0
London Borough of Sutton,17/03/2023,50331214,-750.40,Abbey Care Centre,SOCIAL SERVICES RESIDENTIAL,Peoples Services,Nursing Care - 3rd party top up payment,A56023,0
London Borough of Sutton,07/03/2023,50324843,"1,125.47",ABC Pre-School Beddington LLP,GRANTS & EX GRATIA PAYMENTS,Peoples Services,Payment - Nursery Funding,A51056,0
London Borough of Sutton,07/03/2023,50324907,"2,817.64",ABC Pre-School Beddington LLP,GRANTS & EX GRATIA PAYMENTS,Peoples Services,Payment - Nursery Funding,A51056,0
London Borough of Sutton,01/02/2023,50330749,"2,526.43",Abiding Ltd,CHILDREN'S SERVICES - FOSTERING & ADOPTION SERVICES,Peoples Services,Approved Lodgings,A61000,0
London Borough of Sutton,01/02/2023,50330750,"1,965.00",Abiding Ltd,CHILDREN'S SERVICES - FOSTERING & ADOPTION SERVICES,Peoples Services,Approved Lodgings,A61000,0
London Borough of Sutton,05/03/2023,20046027,"2,600.00",Able Electrical Ltd,BUILDING MNTCE - SERVICES,Environment Housing and Neighbourhoods,PSL Payments To Landlords,A22031,0
London Borough of Sutton,13/02/2023,20042916,"5,715.81",Absolute Care Services Ltd,SOCIAL SERVICES DAY CARE,Peoples Services,Homecare Core Services,A56020,0
London Borough of Sutton,20/02/2023,20043267,"5,926.51",Absolute Care Services Ltd,SOCIAL SERVICES DAY CARE,Peoples Services,Homecare Core Services,A56020,0
London Borough of Sutton,27/02/2023,20044226,"5,715.81",Absolute Care Services Ltd,SOCIAL SERVICES DAY CARE,Peoples Services,Homecare Core Services,A56020,0
London Borough of Sutton,27/02/2023,20044227,"6,794.87",Absolute Care Services Ltd,SOCIAL SERVICES DAY CARE,Peoples Services,Homecare Core Services,A56020,0
London Borough of Sutton,27/02/2023,20044228,"5,926.51",Absolute Care Services Ltd,SOCIAL SERVICES DAY CARE,Peoples Services,Homecare Core Services,A56020,0
London Borough of Sutton,06/03/2023,20044493,"5,926.51",Absolute Care Services Ltd,SOCIAL SERVICES DAY CARE,Peoples Services,Homecare Core Services,A56020,0
London Borough of Sutton,06/03/2023,20044494,"6,794.87",Absolute Care Services Ltd,SOCIAL SERVICES DAY CARE,Peoples Services,Homecare Core Services,A56020,0
London Borough of Sutton,06/03/2023,20044495,"5,715.81",Absolute Care Services Ltd,SOCIAL SERVICES DAY CARE,Peoples Services,Homecare Core Services,A56020,0
London Borough of Sutton,13/03/2023,20045021,"6,794.87",Absolute Care Services Ltd,SOCIAL SERVICES DAY CARE,Peoples Services,Homecare Core Services,A56020,0
London Borough of Sutton,13/03/2023,20045031,"5,926.51",Absolute Care Services Ltd,SOCIAL SERVICES DAY CARE,Peoples Services,Homecare Core Services,A56020,0
London Borough of Sutton,13/03/2023,20045032,"5,715.81",Absolute Care Services Ltd,SOCIAL SERVICES DAY CARE,Peoples Services,Homecare Core Services,A56020,0
London Borough of Sutton,20/03/2023,20045598,"5,715.81",Absolute Care Services Ltd,SOCIAL SERVICES DAY CARE,Peoples Services,Homecare Core Services,A56020,0
London Borough of Sutton,20/03/2023,20045599,"5,926.51",Absolute Care Services Ltd,SOCIAL SERVICES DAY CARE,Peoples Services,Homecare Core Services,A56020,0
London Borough of Sutton,20/03/2023,20045600,"6,794.87",Absolute Care Services Ltd,SOCIAL SERVICES DAY CARE,Peoples Services,Homecare Core Services,A56020,0
London Borough of Sutton,20/06/2022,20045757,"5,715.81",Absolute Care Services Ltd,SOCIAL SERVICES DAY CARE,Peoples Services,Homecare Core Services,A56020,0
London Borough of Sutton,26/02/2023,50327204,409.11,Absolute Care Services Ltd,SOCIAL SERVICES DAY CARE,Peoples Services,Home Care Services,A56019,0
London Borough of Sutton,26/02/2023,50327204,100.50,Absolute Care Services Ltd,SOCIAL SERVICES DAY CARE,Peoples Services,Home Care Services,A56019,0
London Borough of Sutton,26/02/2023,50327204,12.99,Absolute Care Services Ltd,SOCIAL SERVICES DAY CARE,Peoples Services,Home Care Services,A56019,0
London Borough of Sutton,26/02/2023,50327224,431.07,Absolute Care Services Ltd,SOCIAL SERVICES DAY CARE,Peoples Services,Home Care Services,A56019,0
London Borough of Sutton,26/02/2023,50327224,99.57,Absolute Care Services Ltd,SOCIAL SERVICES DAY CARE,Peoples Services,Home Care Services,A56019,0
London Borough of Sutton,26/02/2023,50327241,522.60,Absolute Care Services Ltd,SOCIAL SERVICES DAY CARE,Peoples Services,Home Care Services,A56019,0
London Borough of Sutton,26/02/2023,50327287,615.70,Absolute Care Services Ltd,SOCIAL SERVICES DAY CARE,Peoples Services,Home Care Services,A56019,0
London Borough of Sutton,26/02/2023,50327305,896.56,Absolute Care Services Ltd,SOCIAL SERVICES DAY CARE,Peoples Services,Home Care Services,A56019,0
London Borough of Sutton,26/02/2023,50327305,118.20,Absolute Care Services Ltd,SOCIAL SERVICES DAY CARE,Peoples Services,Home Care Services,A56019,0
London Borough of Sutton,26/02/2023,50327309,546.72,Absolute Care Services Ltd,SOCIAL SERVICES DAY CARE,Peoples Services,Home Care Services,A56019,0
London Borough of Sutton,26/02/2023,50327313,772.61,Absolute Care Services Ltd,SOCIAL SERVICES DAY CARE,Peoples Services,Home Care Services,A56019,0
London Borough of Sutton,26/02/2023,50327313,45.01,Absolute Care Services Ltd,SOCIAL SERVICES DAY CARE,Peoples Services,Home Care Services,A56019,0
London Borough of Sutton,26/02/2023,50327319,684.58,Absolute Care Services Ltd,SOCIAL SERVICES DAY CARE,Peoples Services,Home Care Services,A56019,0
London Borough of Sutton,26/02/2023,50327320,16.08,Absolute Care Services Ltd,SOCIAL SERVICES DAY CARE,Peoples Services,Home Care Services,A56019,0
London Borough of Sutton,26/02/2023,50327320,506.52,Absolute Care Services Ltd,SOCIAL SERVICES DAY CARE,Peoples Services,Home Care Services,A56019,0
London Borough of Sutton,26/02/2023,50327326,620.62,Absolute Care Services Ltd,SOCIAL SERVICES DAY CARE,Peoples Services,Home Care Services,A56019,0
London Borough of Sutton,26/02/2023,50327326,39.40,Absolute Care Services Ltd,SOCIAL SERVICES DAY CARE,Peoples Services,Home Care Services,A56019,0
London Borough of Sutton,05/03/2023,50329869,522.60,Absolute Care Services Ltd,SOCIAL SERVICES DAY CARE,Peoples Services,Home Care Services,A56019,0
London Borough of Sutton,05/03/2023,50329877,409.11,Absolute Care Services Ltd,SOCIAL SERVICES DAY CARE,Peoples Services,Home Care Services,A56019,0
London Borough of Sutton,05/03/2023,50329877,12.99,Absolute Care Services Ltd,SOCIAL SERVICES DAY CARE,Peoples Services,Home Care Services,A56019,0
London Borough of Sutton,05/03/2023,50329877,100.50,Absolute Care Services Ltd,SOCIAL SERVICES DAY CARE,Peoples Services,Home Care Services,A56019,0
London Borough of Sutton,05/03/2023,50329886,431.07,Absolute Care Services Ltd,SOCIAL SERVICES DAY CARE,Peoples Services,Home Care Services,A56019,0
London Borough of Sutton,05/03/2023,50329886,99.57,Absolute Care Services Ltd,SOCIAL SERVICES DAY CARE,Peoples Services,Home Care Services,A56019,0
London Borough of Sutton,05/03/2023,50330188,620.62,Absolute Care Services Ltd,SOCIAL SERVICES DAY CARE,Peoples Services,Home Care Services,A56019,0
London Borough of Sutton,05/03/2023,50330188,39.40,Absolute Care Services Ltd,SOCIAL SERVICES DAY CARE,Peoples Services,Home Care Services,A56019,0
London Borough of Sutton,15/03/2023,50330199,"3,381.60",Absolute Care Services Ltd,SOCIAL SERVICES DAY CARE,Peoples Services,Home Care Services,A56019,0
London Borough of Sutton,05/03/2023,50330201,546.72,Absolute Care Services Ltd,SOCIAL SERVICES DAY CARE,Peoples Services,Home Care Services,A56019,0
London Borough of Sutton,05/03/2023,50330204,772.61,Absolute Care Services Ltd,SOCIAL SERVICES DAY CARE,Peoples Services,Home Care Services,A56019,0
London Borough of Sutton,05/03/2023,50330204,45.01,Absolute Care Services Ltd,SOCIAL SERVICES DAY CARE,Peoples Services,Home Care Services,A56019,0
London Borough of Sutton,05/03/2023,50330210,689.50,Absolute Care Services Ltd,SOCIAL SERVICES DAY CARE,Peoples Services,Home Care Services,A56019,0
London Borough of Sutton,05/03/2023,50330211,16.08,Absolute Care Services Ltd,SOCIAL SERVICES DAY CARE,Peoples Services,Home Care Services,A56019,0
London Borough of Sutton,05/03/2023,50330211,506.52,Absolute Care Services Ltd,SOCIAL SERVICES DAY CARE,Peoples Services,Home Care Services,A56019,0
London Borough of Sutton,15/03/2023,50330265,"5,780.20",Absolute Care Services Ltd,SOCIAL SERVICES DAY CARE,Peoples Services,Home Care Services,A56019,0
London Borough of Sutton,15/03/2023,50330265,"2,488.60",Absolute Care Services Ltd,SOCIAL SERVICES DAY CARE,Peoples Services,Home Care Services,A56019,0
London Borough of Sutton,05/03/2023,50330329,620.62,Absolute Care Services Ltd,SOCIAL SERVICES DAY CARE,Peoples Services,Home Care Services,A56019,0
London Borough of Sutton,05/03/2023,50330344,896.56,Absolute Care Services Ltd,SOCIAL SERVICES DAY CARE,Peoples Services,Home Care Services,A56019,0
London Borough of Sutton,05/03/2023,50330344,118.20,Absolute Care Services Ltd,SOCIAL SERVICES DAY CARE,Peoples Services,Home Care Services,A56019,0
London Borough of Sutton,21/03/2023,50331399,"6,763.97",Absolute Care Services Ltd,SOCIAL SERVICES DAY CARE,Peoples Services,Home Care Services,A56019,0
London Borough of Sutton,12/03/2023,50332086,522.60,Absolute Care Services Ltd,SOCIAL SERVICES DAY CARE,Peoples Services,Home Care Services,A56019,0
London Borough of Sutton,12/03/2023,50332126,409.11,Absolute Care Services Ltd,SOCIAL SERVICES DAY CARE,Peoples Services,Home Care Services,A56019,0
London Borough of Sutton,12/03/2023,50332126,12.99,Absolute Care Services Ltd,SOCIAL SERVICES DAY CARE,Peoples Services,Home Care Services,A56019,0
London Borough of Sutton,12/03/2023,50332126,100.50,Absolute Care Services Ltd,SOCIAL SERVICES DAY CARE,Peoples Services,Home Care Services,A56019,0
London Borough of Sutton,12/03/2023,50332197,772.61,Absolute Care Services Ltd,SOCIAL SERVICES DAY CARE,Peoples Services,Home Care Services,A56019,0
London Borough of Sutton,12/03/2023,50332197,45.01,Absolute Care Services Ltd,SOCIAL SERVICES DAY CARE,Peoples Services,Home Care Services,A56019,0
London Borough of Sutton,12/03/2023,50332235,431.07,Absolute Care Services Ltd,SOCIAL SERVICES DAY CARE,Peoples Services,Home Care Services,A56019,0
London Borough of Sutton,12/03/2023,50332235,99.57,Absolute Care Services Ltd,SOCIAL SERVICES DAY CARE,Peoples Services,Home Care Services,A56019,0
London Borough of Sutton,12/03/2023,50332237,620.62,Absolute Care Services Ltd,SOCIAL SERVICES DAY CARE,Peoples Services,Home Care Services,A56019,0
London Borough of Sutton,12/03/2023,50332274,896.56,Absolute Care Services Ltd,SOCIAL SERVICES DAY CARE,Peoples Services,Home Care Services,A56019,0
London Borough of Sutton,12/03/2023,50332274,118.20,Absolute Care Services Ltd,SOCIAL SERVICES DAY CARE,Peoples Services,Home Care Services,A56019,0
London Borough of Sutton,12/03/2023,50332281,558.78,Absolute Care Services Ltd,SOCIAL SERVICES DAY CARE,Peoples Services,Home Care Services,A56019,0
London Borough of Sutton,12/03/2023,50332302,689.50,Absolute Care Services Ltd,SOCIAL SERVICES DAY CARE,Peoples Services,Home Care Services,A56019,0
London Borough of Sutton,12/03/2023,50332303,16.08,Absolute Care Services Ltd,SOCIAL SERVICES DAY CARE,Peoples Services,Home Care Services,A56019,0
London Borough of Sutton,12/03/2023,50332303,506.52,Absolute Care Services Ltd,SOCIAL SERVICES DAY CARE,Peoples Services,Home Care Services,A56019,0
London Borough of Sutton,12/03/2023,50332308,620.62,Absolute Care Services Ltd,SOCIAL SERVICES DAY CARE,Peoples Services,Home Care Services,A56019,0
London Borough of Sutton,12/03/2023,50332308,39.40,Absolute Care Services Ltd,SOCIAL SERVICES DAY CARE,Peoples Services,Home Care Services,A56019,0
London Borough of Sutton,19/03/2023,50334740,424.54,Absolute Care Services Ltd,SOCIAL SERVICES DAY CARE,Peoples Services,Home Care Services,A56019,0
London Borough of Sutton,19/03/2023,50334740,98.06,Absolute Care Services Ltd,SOCIAL SERVICES DAY CARE,Peoples Services,Home Care Services,A56019,0
London Borough of Sutton,19/03/2023,50334749,620.62,Absolute Care Services Ltd,SOCIAL SERVICES DAY CARE,Peoples Services,Home Care Services,A56019,0
London Borough of Sutton,19/03/2023,50334785,896.56,Absolute Care Services Ltd,SOCIAL SERVICES DAY CARE,Peoples Services,Home Care Services,A56019,0
London Borough of Sutton,19/03/2023,50334785,118.20,Absolute Care Services Ltd,SOCIAL SERVICES DAY CARE,Peoples Services,Home Care Services,A56019,0
London Borough of Sutton,19/03/2023,50334798,546.72,Absolute Care Services Ltd,SOCIAL SERVICES DAY CARE,Peoples Services,Home Care Services,A56019,0
London Borough of Sutton,19/03/2023,50334806,772.61,Absolute Care Services Ltd,SOCIAL SERVICES DAY CARE,Peoples Services,Home Care Services,A56019,0
London Borough of Sutton,19/03/2023,50334806,45.01,Absolute Care Services Ltd,SOCIAL SERVICES DAY CARE,Peoples Services,Home Care Services,A56019,0
London Borough of Sutton,19/03/2023,50335642,402.82,Absolute Care Services Ltd,SOCIAL SERVICES DAY CARE,Peoples Services,Home Care Services,A56019,0
London Borough of Sutton,19/03/2023,50335642,12.79,Absolute Care Services Ltd,SOCIAL SERVICES DAY CARE,Peoples Services,Home Care Services,A56019,0
London Borough of Sutton,19/03/2023,50335642,98.95,Absolute Care Services Ltd,SOCIAL SERVICES DAY CARE,Peoples Services,Home Care Services,A56019,0
London Borough of Sutton,19/03/2023,50335645,506.52,Absolute Care Services Ltd,SOCIAL SERVICES DAY CARE,Peoples Services,Home Care Services,A56019,0
London Borough of Sutton,19/03/2023,50335655,689.50,Absolute Care Services Ltd,SOCIAL SERVICES DAY CARE,Peoples Services,Home Care Services,A56019,0
London Borough of Sutton,19/03/2023,50335656,16.08,Absolute Care Services Ltd,SOCIAL SERVICES DAY CARE,Peoples Services,Home Care Services,A56019,0
London Borough of Sutton,19/03/2023,50335656,506.52,Absolute Care Services Ltd,SOCIAL SERVICES DAY CARE,Peoples Services,Home Care Services,A56019,0
London Borough of Sutton,01/03/2023,20044148,"178,851.78",Access UK Limited ,TAXI AND COACH HIRE,Peoples Services,Childrens Social Care Transport,A32009,0
London Borough of Sutton,08/03/2023,20044750,"172,704.89",Access UK Limited ,TAXI AND COACH HIRE,Peoples Services,Childrens Social Care Transport,A32009,0
London Borough of Sutton,15/03/2023,20045284,"238,085.44",Access UK Limited ,TAXI AND COACH HIRE,Peoples Services,Childrens Social Care Transport,A32009,0
London Borough of Sutton,22/03/2023,20045907,"192,809.37",Access UK Limited ,TAXI AND COACH HIRE,Peoples Services,Childrens Social Care Transport,A32009,0
London Borough of Sutton,08/03/2023,20044790,"1,550.00",Accommadata Ltd,SUNDRY SUPPLIER - HOUSING,Environment Housing and Neighbourhoods,Rent Deposit Scheme,B32179,0
London Borough of Sutton,02/03/2023,20044326,"2,193.96",Accommadata Ltd,SUNDRY SUPPLIER - HOUSING,Environment Housing and Neighbourhoods,Rent Deposit Scheme,B32179,0
London Borough of Sutton,01/03/2023,50325889,"4,887.00",Accomplish Group Ltd,SOCIAL SERVICES RESIDENTIAL,Peoples Services,Supported Living,A56088,0
London Borough of Sutton,09/03/2023,50328157,"3,080.00",Accomplish Group Ltd,SOCIAL SERVICES RESIDENTIAL,Peoples Services,Supported Living,A56088,0
London Borough of Sutton,09/03/2023,50328180,"4,671.40",Accomplish Group Ltd,SOCIAL SERVICES RESIDENTIAL,Peoples Services,Supported Living,A56088,0
London Borough of Sutton,17/03/2023,50330778,"8,103.64",Achieve Together Limited,SOCIAL SERVICES RESIDENTIAL,Peoples Services,Residential Care - Ext Provider,A56114,0
London Borough of Sutton,17/03/2023,50330778,-402.80,Achieve Together Limited,SOCIAL SERVICES RESIDENTIAL,Peoples Services,Residential Care - Client Cont ( Net Paymt ),A56113,0
London Borough of Sutton,17/03/2023,50330805,"4,682.44",Achieve Together Limited,SOCIAL SERVICES RESIDENTIAL,Peoples Services,Residential Care - Ext Provider,A56114,0
London Borough of Sutton,17/03/2023,50330805,-511.80,Achieve Together Limited,SOCIAL SERVICES RESIDENTIAL,Peoples Services,Residential Care - Client Cont ( Net Paymt ),A56113,0
London Borough of Sutton,17/03/2023,50330815,"5,100.00",Achieve Together Limited,SOCIAL SERVICES RESIDENTIAL,Peoples Services,Residential Care - Ext Provider,A56114,0
London Borough of Sutton,17/03/2023,50330856,"6,845.04",Achieve Together Limited,SOCIAL SERVICES RESIDENTIAL,Peoples Services,Residential Care - Ext Provider,A56114,0
London Borough of Sutton,17/03/2023,50330856,-438.80,Achieve Together Limited,SOCIAL SERVICES RESIDENTIAL,Peoples Services,Residential Care - Client Cont ( Net Paymt ),A56113,0
London Borough of Sutton,17/03/2023,50330907,"7,303.88",Achieve Together Limited,SOCIAL SERVICES RESIDENTIAL,Peoples Services,Residential Care - Ext Provider,A56114,0
London Borough of Sutton,17/03/2023,50330907,"1,983.99",Achieve Together Limited,SOCIAL SERVICES RESIDENTIAL,Peoples Services,Residential Care - Client Cont ( Net Paymt ),A56113,0
London Borough of Sutton,17/03/2023,50330908,"5,810.56",Achieve Together Limited,SOCIAL SERVICES RESIDENTIAL,Peoples Services,Residential Care - Ext Provider,A56114,0
London Borough of Sutton,17/03/2023,50331265,"4,375.48",Achieve Together Limited,SOCIAL SERVICES RESIDENTIAL,Peoples Services,Residential Care - Ext Provider,A56114,0
London Borough of Sutton,17/03/2023,50331265,-471.80,Achieve Together Limited,SOCIAL SERVICES RESIDENTIAL,Peoples Services,Residential Care - Client Cont ( Net Paymt ),A56113,0
London Borough of Sutton,17/03/2023,50331265,390.00,Achieve Together Limited,SOCIAL SERVICES RESIDENTIAL,Peoples Services,One to One Care,A56108,0
London Borough of Sutton,15/02/2023,50327198,"3,002.28",ACHIEVE TOGETHER LTD,SOCIAL SERVICES RESIDENTIAL,Peoples Services,Home Care Services,A56019,0
London Borough of Sutton,17/03/2023,50330784,"11,047.88",ACHIEVE TOGETHER LTD,SOCIAL SERVICES RESIDENTIAL,Peoples Services,Residential Care - Ext Provider,A56114,0
London Borough of Sutton,17/03/2023,50330835,"5,620.60",ACHIEVE TOGETHER LTD,SOCIAL SERVICES RESIDENTIAL,Peoples Services,Residential Care - Ext Provider,A56114,0
London Borough of Sutton,17/03/2023,50330835,-438.80,ACHIEVE TOGETHER LTD,SOCIAL SERVICES RESIDENTIAL,Peoples Services,Residential Care - Client Cont ( Net Paymt ),A56113,0
London Borough of Sutton,17/03/2023,50330869,"4,653.76",ACHIEVE TOGETHER LTD,SOCIAL SERVICES RESIDENTIAL,Peoples Services,Residential Care - Ext Provider,A56114,0
London Borough of Sutton,20/03/2023,50331520,"2,653.60",ACHIEVE TOGETHER LTD,SOCIAL SERVICES RESIDENTIAL,Peoples Services,Supported Living,A56088,0
London Borough of Sutton,20/03/2023,50331523,"2,940.17",ACHIEVE TOGETHER LTD,SOCIAL SERVICES RESIDENTIAL,Peoples Services,Supported Living,A56088,0
London Borough of Sutton,20/03/2023,50331523,"3,184.32",ACHIEVE TOGETHER LTD,SOCIAL SERVICES RESIDENTIAL,Peoples Services,Supported Living,A56088,0
London Borough of Sutton,20/03/2023,50331553,"2,388.24",ACHIEVE TOGETHER LTD,SOCIAL SERVICES RESIDENTIAL,Peoples Services,Supported Living,A56088,0
London Borough of Sutton,20/03/2023,50331553,641.52,ACHIEVE TOGETHER LTD,SOCIAL SERVICES RESIDENTIAL,Peoples Services,Supported Living,A56088,0
London Borough of Sutton,20/03/2023,50331553,619.43,ACHIEVE TOGETHER LTD,SOCIAL SERVICES RESIDENTIAL,Peoples Services,Supported Living,A56088,0
London Borough of Sutton,20/03/2023,50331562,"1,061.44",ACHIEVE TOGETHER LTD,SOCIAL SERVICES RESIDENTIAL,Peoples Services,Supported Living,A56088,0
London Borough of Sutton,20/03/2023,50331562,888.10,ACHIEVE TOGETHER LTD,SOCIAL SERVICES RESIDENTIAL,Peoples Services,Supported Living,A56088,0
London Borough of Sutton,20/03/2023,50331562,"1,061.44",ACHIEVE TOGETHER LTD,SOCIAL SERVICES RESIDENTIAL,Peoples Services,Supported Living,A56088,0
London Borough of Sutton,20/02/2023,50332067,"4,610.65",ACHIEVE TOGETHER LTD,SOCIAL SERVICES RESIDENTIAL,Peoples Services,Home Care Services,A56019,0
London Borough of Sutton,11/01/2023,20041259,"5,221.60",Achieving For Children Limited,SOCIAL SERVICES - OTHER,Resources,Payments to Other Local Authorities,A51005,0
London Borough of Sutton,07/03/2023,50327423,"1,169.00",Achieving For Children Limited,SOCIAL SERVICES - OTHER,Peoples Services,Top-up Funding,A51016,0
London Borough of Sutton,07/03/2023,50327424,"69,911.00",Achieving For Children Limited,SOCIAL SERVICES - OTHER,Peoples Services,Top-up Funding,A51016,0
London Borough of Sutton,07/03/2023,50327424,"34,425.00",Achieving For Children Limited,SOCIAL SERVICES - OTHER,Peoples Services,Top-up Funding,A51016,0
London Borough of Sutton,25/03/2022,50327450,"5,850.00",Achieving For Children Limited,SOCIAL SERVICES - OTHER,Peoples Services,Special Educational Needs,A51015,0
London Borough of Sutton,13/03/2023,50329594,770.00,Achieving For Children Limited,SOCIAL SERVICES - OTHER,Peoples Services,Special Educational Needs,A51015,0
London Borough of Sutton,16/03/2023,50332474,560.00,Achieving For Children Limited,SOCIAL SERVICES - OTHER,Peoples Services,Special Educational Needs,A51015,0
London Borough of Sutton,06/02/2023,50328124,"15,160.04",Acorn Homes UK Ltd,CHILDREN'S SERVICES - FOSTERING & ADOPTION SERVICES,Peoples Services,Residential Care-Children,A56115,0
London Borough of Sutton,02/03/2023,50334231,"16,784.33",Acorn Homes UK Ltd,CHILDREN'S SERVICES - FOSTERING & ADOPTION SERVICES,Peoples Services,Residential Care-Children,A56115,0
London Borough of Sutton,17/03/2023,50330823,"3,012.36",Acorn Lodge,SOCIAL SERVICES RESIDENTIAL,Peoples Services,Residential Care - Ext Provider,A56114,0
London Borough of Sutton,17/03/2023,50330838,"3,232.48",Acorn Residential Home,SOCIAL SERVICES RESIDENTIAL,Peoples Services,Residential Care - Ext Provider,A56114,0
London Borough of Sutton,09/11/2022,20044032,"1,281.95",Active Med Supplies Limited,OFFICE SUPPLIES,Environment Housing and Neighbourhoods,Payments to Contractors,C14000,0
London Borough of Sutton,09/11/2022,20044032,"1,281.95",Active Med Supplies Limited,OFFICE SUPPLIES,Environment Housing and Neighbourhoods,Payments to Contractors,C14000,0
London Borough of Sutton,17/03/2023,50330993,-438.80,Active Prospects,SOCIAL SERVICES DAY CARE,Peoples Services,Residential Care - Client Cont ( Net Paymt ),A56113,0
London Borough of Sutton,17/03/2023,50330993,"8,918.80",Active Prospects,SOCIAL SERVICES DAY CARE,Peoples Services,Residential Care - Ext Provider,A56114,0
London Borough of Sutton,17/03/2023,50331272,"6,441.84",Active Prospects,SOCIAL SERVICES DAY CARE,Peoples Services,Residential Care - Ext Provider,A56114,0
London Borough of Sutton,01/01/2023,20043731,279.98,AdEPT Education,BUSINESS & COMPUTER SYSTEMS,Health and Wellbeing,Telephones,A45020,0
London Borough of Sutton,01/01/2023,20043731,"1,107.24",AdEPT Education,BUSINESS & COMPUTER SYSTEMS,Health and Wellbeing,Telephones,A45020,0
London Borough of Sutton,01/01/2023,20043731,-0.01,AdEPT Education,BUSINESS & COMPUTER SYSTEMS,,Legal entity balancing account,E99994,0
London Borough of Sutton,17/03/2023,50330772,"1,458.00",Admiral Healthcare Ltd,SOCIAL SERVICES RESIDENTIAL,Peoples Services,Residential Care - Ext Provider,A56114,0
London Borough of Sutton,31/05/2022,20036725,762.34,Advocacy For All,LEGAL & PROFESSIONAL SERVICES,Peoples Services,Provider Contract Payments,A44290,0
London Borough of Sutton,30/06/2022,20036729,645.38,Advocacy For All,LEGAL & PROFESSIONAL SERVICES,Peoples Services,Provider Contract Payments,A44290,0
London Borough of Sutton,31/07/2022,20036732,714.03,Advocacy For All,LEGAL & PROFESSIONAL SERVICES,Peoples Services,Provider Contract Payments,A44290,0
London Borough of Sutton,31/08/2022,20036749,579.14,Advocacy For All,LEGAL & PROFESSIONAL SERVICES,Peoples Services,Provider Contract Payments,A44290,0
London Borough of Sutton,31/07/2022,20043827,-714.03,Advocacy For All,LEGAL & PROFESSIONAL SERVICES,Peoples Services,Provider Contract Payments,A44290,0
London Borough of Sutton,31/08/2022,20043948,-579.14,Advocacy For All,LEGAL & PROFESSIONAL SERVICES,Peoples Services,Provider Contract Payments,A44290,0
London Borough of Sutton,30/12/2022,20043958,548.56,Advocacy For All,LEGAL & PROFESSIONAL SERVICES,Peoples Services,Provider Contract Payments,A44290,0
London Borough of Sutton,10/02/2023,50329590,655.60,AEC Tutors Ltd,CHILDREN'S SERVICES - SEN SERVICES,Peoples Services,Independent School Fees,A56002,0
London Borough of Sutton,27/02/2023,50328021,"3,186.12",Affinity Fostering Services Ltd,CHILDREN'S SERVICES - FOSTERING & ADOPTION SERVICES,Peoples Services,Foster Parents Support,A44110,0
London Borough of Sutton,27/02/2023,50328022,"3,355.80",Affinity Fostering Services Ltd,CHILDREN'S SERVICES - FOSTERING & ADOPTION SERVICES,Peoples Services,Foster Parents Support,A44110,0
London Borough of Sutton,27/02/2023,50328118,"3,155.88",Affinity Fostering Services Ltd,CHILDREN'S SERVICES - FOSTERING & ADOPTION SERVICES,Peoples Services,Foster Parents Support,A44110,0
London Borough of Sutton,27/02/2023,50328133,"2,996.28",Affinity Fostering Services Ltd,CHILDREN'S SERVICES - FOSTERING & ADOPTION SERVICES,Peoples Services,Foster Parents Support,A44110,0
London Borough of Sutton,20/03/2023,50331467,"2,024.22",Agincare Enable Limited,SOCIAL SERVICES RESIDENTIAL,Peoples Services,Supported Living,A56088,0
London Borough of Sutton,20/03/2023,50331467,455.70,Agincare Enable Limited,SOCIAL SERVICES RESIDENTIAL,Peoples Services,Supported Living,A56088,0
London Borough of Sutton,20/03/2023,50331467,"2,024.22",Agincare Enable Limited,SOCIAL SERVICES RESIDENTIAL,Peoples Services,One to One Care,A56108,0
London Borough of Sutton,17/03/2023,50330762,"7,793.40",Aims Care Partnership (Leighton House Ltd),SOCIAL SERVICES RESIDENTIAL,Peoples Services,Residential Care - Ext Provider,A56114,0
London Borough of Sutton,17/03/2023,50330765,"8,716.00",Aitch Care Homes,SOCIAL SERVICES RESIDENTIAL,Peoples Services,Residential Care - Ext Provider,A56114,0
London Borough of Sutton,01/02/2023,20044243,"2,400.00",REDACTED - PERSONAL DATA,TEMP STAFF & CONSULTANCY,Peoples Services,Consultancy Services,A56007,0
London Borough of Sutton,07/03/2023,50324718,"159,396.62",All Saints Benhilton C Of E,GRANTS & EX GRATIA PAYMENTS,Peoples Services,Payments to Schools,A51013,0
London Borough of Sutton,07/03/2023,50326955,"15,980.54",All Saints Benhilton C Of E,GRANTS & EX GRATIA PAYMENTS,Peoples Services,Place Funding,A56110,0
London Borough of Sutton,09/03/2023,50327395,"1,140.00",All Saints Benhilton C Of E,GRANTS & EX GRATIA PAYMENTS,Peoples Services,Payment - Cluster Lead SENCO,A51035,0
London Borough of Sutton,10/03/2023,50327622,"18,697.50",All Saints Benhilton C Of E,GRANTS & EX GRATIA PAYMENTS,Peoples Services,Payment - Deprivation Pupil Premium,A51030,0
London Borough of Sutton,10/03/2023,50327645,"3,615.00",All Saints Benhilton C Of E,GRANTS & EX GRATIA PAYMENTS,Peoples Services,Payment - Post-LAC Pupil Premium,A51032,0
London Borough of Sutton,13/03/2023,50329591,"2,413.01",All Saints Benhilton C Of E,GRANTS & EX GRATIA PAYMENTS,Peoples Services,Top-up Funding,A51016,0
London Borough of Sutton,07/03/2023,50331309,870.00,All Saints Benhilton C Of E,GRANTS & EX GRATIA PAYMENTS,Resources,"Grants, Contributions & Donations",A47005,0
London Borough of Sutton,28/03/2023,50334386,571.60,All Saints Benhilton C Of E,GRANTS & EX GRATIA PAYMENTS,Non-Service Cost Centres,Recharge-Teaching Staff,A10600,0
London Borough of Sutton,28/03/2023,50334387,"2,358.58",All Saints Benhilton C Of E,GRANTS & EX GRATIA PAYMENTS,Non-Service Cost Centres,Recharge-Teaching Staff,A10600,0
London Borough of Sutton,07/03/2023,50326956,"13,529.09",All Saints Carshalton Primary School,GRANTS & EX GRATIA PAYMENTS,Peoples Services,Place Funding,A56110,0
London Borough of Sutton,17/03/2023,50330834,"4,621.64",Allied Care (Mhs) Ltd,SOCIAL SERVICES - OTHER,Peoples Services,Residential Care - Ext Provider,A56114,0
London Borough of Sutton,02/03/2023,20044648,625.00,Alljos Services Ltd,PREMISES - CLEANING & LAUNDRY,HRA,External Fees and Consultants,C20000,0
London Borough of Sutton,21/03/2023,20046226,575.00,Alljos Services Ltd,PREMISES - CLEANING & LAUNDRY,HRA,External Fees and Consultants,C20000,0
London Borough of Sutton,01/03/2023,20044342,"1,357.32",Allstar Business Solutions,FUEL AND VEHICLE SUPPLIES,Environment Housing and Neighbourhoods,Vehicles -  Fuel,A30015,0
London Borough of Sutton,17/03/2023,50330902,"5,397.60",Allswell Care Services Ltd,SOCIAL SERVICES RESIDENTIAL,Peoples Services,Residential Care - Ext Provider,A56114,0
London Borough of Sutton,17/03/2023,50331186,"5,397.60",Allswell Care Services Ltd,SOCIAL SERVICES RESIDENTIAL,Peoples Services,Residential Care - Ext Provider,A56114,0
London Borough of Sutton,17/03/2023,50331239,"6,609.52",Allswell Care Services Ltd,SOCIAL SERVICES RESIDENTIAL,Peoples Services,Residential Care - Ext Provider,A56114,0
London Borough of Sutton,24/02/2023,50322830,"3,209.42",Alpenbest Limited,SOCIAL SERVICES DAY CARE,Peoples Services,Home Care Services,A56019,0
London Borough of Sutton,24/02/2023,50322831,893.23,Alpenbest Limited,SOCIAL SERVICES DAY CARE,Peoples Services,Home Care Services,A56019,0
London Borough of Sutton,24/02/2023,50322832,"1,591.76",Alpenbest Limited,SOCIAL SERVICES DAY CARE,Peoples Services,Home Care Services,A56019,0
London Borough of Sutton,24/02/2023,50322835,"1,222.20",Alpenbest Limited,SOCIAL SERVICES DAY CARE,Peoples Services,Home Care Services,A56019,0
London Borough of Sutton,24/02/2023,50322841,852.64,Alpenbest Limited,SOCIAL SERVICES DAY CARE,Peoples Services,Home Care Services,A56019,0
London Borough of Sutton,24/02/2023,50322843,852.64,Alpenbest Limited,SOCIAL SERVICES DAY CARE,Peoples Services,Home Care Services,A56019,0
London Borough of Sutton,24/02/2023,50322845,658.52,Alpenbest Limited,SOCIAL SERVICES DAY CARE,Peoples Services,Home Care Services,A56019,0
London Borough of Sutton,24/02/2023,50322847,"3,183.52",Alpenbest Limited,SOCIAL SERVICES DAY CARE,Peoples Services,Home Care Services,A56019,0
London Borough of Sutton,24/02/2023,50322855,"1,648.88",Alpenbest Limited,SOCIAL SERVICES DAY CARE,Peoples Services,Home Care Services,A56019,0
London Borough of Sutton,24/02/2023,50322858,"1,591.76",Alpenbest Limited,SOCIAL SERVICES DAY CARE,Peoples Services,Home Care Services,A56019,0
London Borough of Sutton,24/02/2023,50322864,"1,578.81",Alpenbest Limited,SOCIAL SERVICES DAY CARE,Peoples Services,Home Care Services,A56019,0
London Borough of Sutton,24/02/2023,50322880,"4,666.92",Alpenbest Limited,SOCIAL SERVICES DAY CARE,Peoples Services,Home Care Services,A56019,0
London Borough of Sutton,24/02/2023,50322881,940.33,Alpenbest Limited,SOCIAL SERVICES DAY CARE,Peoples Services,Home Care Services,A56019,0
London Borough of Sutton,24/02/2023,50323035,"1,783.88",Alpenbest Limited,SOCIAL SERVICES DAY CARE,Peoples Services,Home Care Services,A56019,0
London Borough of Sutton,24/02/2023,50323037,"1,591.76",Alpenbest Limited,SOCIAL SERVICES DAY CARE,Peoples Services,Home Care Services,A56019,0
London Borough of Sutton,24/02/2023,50323117,"1,591.76",Alpenbest Limited,SOCIAL SERVICES DAY CARE,Peoples Services,Home Care Services,A56019,0
London Borough of Sutton,24/02/2023,50323118,922.10,Alpenbest Limited,SOCIAL SERVICES DAY CARE,Peoples Services,Home Care Services,A56019,0
London Borough of Sutton,24/02/2023,50323120,852.64,Alpenbest Limited,SOCIAL SERVICES DAY CARE,Peoples Services,Home Care Services,A56019,0
London Borough of Sutton,24/02/2023,50323121,"3,183.52",Alpenbest Limited,SOCIAL SERVICES DAY CARE,Peoples Services,Home Care Services,A56019,0
London Borough of Sutton,24/02/2023,50323123,"1,222.20",Alpenbest Limited,SOCIAL SERVICES DAY CARE,Peoples Services,Home Care Services,A56019,0
London Borough of Sutton,24/02/2023,50323124,"1,108.68",Alpenbest Limited,SOCIAL SERVICES DAY CARE,Peoples Services,Home Care Services,A56019,0
London Borough of Sutton,24/02/2023,50323125,"2,701.00",Alpenbest Limited,SOCIAL SERVICES DAY CARE,Peoples Services,Home Care Services,A56019,0
London Borough of Sutton,24/02/2023,50323125,"1,108.68",Alpenbest Limited,SOCIAL SERVICES DAY CARE,Peoples Services,Home Care Services,A56019,0
London Borough of Sutton,24/02/2023,50323126,"1,648.76",Alpenbest Limited,SOCIAL SERVICES DAY CARE,Peoples Services,Home Care Services,A56019,0
London Borough of Sutton,03/01/2023,50327197,"1,425.29",Alpenbest Limited,SOCIAL SERVICES DAY CARE,Peoples Services,Home Care Services,A56019,0
London Borough of Sutton,03/01/2023,50327197,456.20,Alpenbest Limited,SOCIAL SERVICES DAY CARE,Peoples Services,Home Care Services,A56019,0
London Borough of Sutton,21/03/2023,50331403,"7,378.87",Alpenbest Limited,SOCIAL SERVICES DAY CARE,Peoples Services,Home Care Services,A56019,0
London Borough of Sutton,24/02/2023,50334251,"1,617.66",Alpenbest Limited,SOCIAL SERVICES DAY CARE,Peoples Services,Home Care Services,A56019,0
London Borough of Sutton,24/02/2023,50334255,"3,645.10",Alpenbest Limited,SOCIAL SERVICES DAY CARE,Peoples Services,Home Care Services,A56019,0
London Borough of Sutton,24/02/2023,50334274,823.77,Alpenbest Limited,SOCIAL SERVICES DAY CARE,Peoples Services,Home Care Services,A56019,0
London Borough of Sutton,07/03/2023,50324908,768.00,REDACTED - PERSONAL DATA,GRANTS & EX GRATIA PAYMENTS,Peoples Services,Payment - Nursery Funding,A51056,0
London Borough of Sutton,07/03/2023,50324970,"1,933.20",REDACTED - PERSONAL DATA,GRANTS & EX GRATIA PAYMENTS,Peoples Services,Payment - Nursery Funding,A51056,0
London Borough of Sutton,07/03/2023,50324980,876.38,REDACTED - PERSONAL DATA,GRANTS & EX GRATIA PAYMENTS,Peoples Services,Payment - Nursery Funding,A51056,0
London Borough of Sutton,27/02/2023,20043918,"1,112.62",REDACTED - PERSONAL DATA,SUNDRY SUPPLIER - FINANCE,HRA,Payments to Contractors,C14000,0
London Borough of Sutton,16/03/2023,20045451,"3,230.76",REDACTED - PERSONAL DATA,SUNDRY SUPPLIER - HOUSING,Environment Housing and Neighbourhoods,Rent Deposit Scheme,B32179,0
London Borough of Sutton,01/02/2023,50328096,"4,060.00",Anchor Foster Care Services Ltd,CHILDREN'S SERVICES - FOSTERING & ADOPTION SERVICES,Peoples Services,Foster Parents Support,A44110,0
London Borough of Sutton,01/02/2023,50328137,"3,302.88",Anchor Foster Care Services Ltd,CHILDREN'S SERVICES - FOSTERING & ADOPTION SERVICES,Peoples Services,Foster Parents Support,A44110,0
London Borough of Sutton,01/03/2023,50334202,"3,656.76",Anchor Foster Care Services Ltd,CHILDREN'S SERVICES - FOSTERING & ADOPTION SERVICES,Peoples Services,Foster Parents Support,A44110,0
London Borough of Sutton,01/03/2023,50334250,"4,495.00",Anchor Foster Care Services Ltd,CHILDREN'S SERVICES - FOSTERING & ADOPTION SERVICES,Peoples Services,Foster Parents Support,A44110,0
London Borough of Sutton,17/03/2023,50330775,"2,697.76",Anchor Trust  ,SOCIAL SERVICES RESIDENTIAL,Peoples Services,Residential Care - Ext Provider,A56114,0
London Borough of Sutton,07/03/2023,50324958,657.29,REDACTED - PERSONAL DATA,GRANTS & EX GRATIA PAYMENTS,Peoples Services,Payment - Nursery Funding,A51056,0
London Borough of Sutton,27/02/2023,50323555,"1,680.00",REDACTED - PERSONAL DATA,CHILDREN'S SERVICES - SEN SERVICES,Peoples Services,Independent School Fees,A56002,0
London Borough of Sutton,01/03/2023,50328032,"3,140.00",Ansacare Fostering Agency Ltd,CHILDREN'S SERVICES - FOSTERING & ADOPTION SERVICES,Peoples Services,Foster Parents Support,A44110,0
London Borough of Sutton,01/03/2023,50328115,"3,140.00",Ansacare Fostering Agency Ltd,CHILDREN'S SERVICES - FOSTERING & ADOPTION SERVICES,Peoples Services,Foster Parents Support,A44110,0
London Borough of Sutton,28/02/2023,20044308,"8,084.19",Apetito Ltd,FOOD & DRINK,Health and Wellbeing,Catering Contract - Frozen Meals,A41001,0
London Borough of Sutton,28/02/2023,20044189,"8,174.40",Apex Housing Solutions Ltd,SOCIAL SERVICES DAY CARE,Environment Housing and Neighbourhoods,Bed & Breakfast,A56000,0
London Borough of Sutton,21/02/2023,20043528,800.00,Arnold & Self,PREMISES - REMOVALS,HRA,External Fees and Consultants,C20000,0
London Borough of Sutton,04/03/2023,20044415,"10,000.00",Arts Network Sutton,GRANTS & EX GRATIA PAYMENTS,Health and Wellbeing,Arts Programme,A44286,0
London Borough of Sutton,20/02/2023,20044195,"3,008.00",Ascendit Lifts Ltd,BUILDING MNTCE - SERVICES,Environment Housing and Neighbourhoods,Grants Given For Capital Purposes,C20004,0
London Borough of Sutton,01/02/2023,50334204,"5,939.92",Ascent Fostering Agency Ltd,CHILDREN'S SERVICE - OTHER,Peoples Services,Foster Parents Support,A44110,0
London Borough of Sutton,01/03/2023,50334205,"6,576.34",Ascent Fostering Agency Ltd,CHILDREN'S SERVICE - OTHER,Peoples Services,Foster Parents Support,A44110,0
London Borough of Sutton,19/02/2023,50332464,"1,775.56",Ashlong House Ltd,SOCIAL SERVICES RESIDENTIAL,Peoples Services,Supported Living,A56088,0
London Borough of Sutton,19/02/2023,50332464,139.44,Ashlong House Ltd,SOCIAL SERVICES RESIDENTIAL,Peoples Services,Supported Living,A56088,0
London Borough of Sutton,05/03/2023,50334825,"1,065.84",Ashlong House Ltd,SOCIAL SERVICES RESIDENTIAL,Peoples Services,Supported Living,A56088,0
London Borough of Sutton,17/03/2023,50330794,"-1,990.00",Ashurst Lodge Healthcare Ltd,CHILDREN'S SERVICES - RESIDENTIAL,Peoples Services,Nursing Care - 3rd party top up payment,A56023,0
London Borough of Sutton,17/03/2023,50330794,"3,980.00",Ashurst Lodge Healthcare Ltd,CHILDREN'S SERVICES - RESIDENTIAL,Peoples Services,Residential Care - Ext Provider,A56114,0
London Borough of Sutton,17/03/2023,50330888,"4,144.68",Aspen Place,SOCIAL SERVICES DAY CARE,Peoples Services,Nursing Care - Ext Provider,A56025,0
London Borough of Sutton,17/03/2023,50330769,"5,699.00",Aspens Charities,SOCIAL SERVICES RESIDENTIAL,Peoples Services,Residential Care - Ext Provider,A56114,0
London Borough of Sutton,28/02/2023,50327026,"6,644.40",Aspirations Care Ltd,SOCIAL SERVICES DAY CARE,Peoples Services,Home Care Services,A56019,0
London Borough of Sutton,28/02/2023,50327026,"2,240.00",Aspirations Care Ltd,SOCIAL SERVICES DAY CARE,Peoples Services,Home Care Services,A56019,0
London Borough of Sutton,25/02/2021,20045762,"5,000.00",Association of Directors of Adult Social Services,SUBSCRIPTIONS & PUBLICATIONS,Peoples Services,Subscriptions,A47010,0
London Borough of Sutton,07/03/2023,50328091,"21,960.00",Athena Housing and Support Ltd,CHILDREN'S SERVICES - RESIDENTIAL,Peoples Services,Residential Care-Children,A56115,0
London Borough of Sutton,14/03/2023,50334173,"24,312.86",Athena Housing and Support Ltd,CHILDREN'S SERVICES - RESIDENTIAL,Peoples Services,Residential Care-Children,A56115,0
London Borough of Sutton,01/03/2023,20044263,"1,424.10",Athona Ltd,TEMP STAFF & CONSULTANCY,Peoples Services,Recruitment Expenses,A15026,0
London Borough of Sutton,17/03/2023,50330840,"6,024.56",Autism & Aspergers Care Services,SOCIAL SERVICES RESIDENTIAL,Peoples Services,Residential Care - Ext Provider,A56114,0
London Borough of Sutton,06/03/2023,50328082,"44,560.00",Avance Ltd,CHILDREN'S SERVICES - FOSTERING & ADOPTION SERVICES,Peoples Services,Residential Care-Children,A56115,0
London Borough of Sutton,23/03/2023,50334864,"3,195.60",Krishna Avanti Primary School Croydon,CHILDREN'S SERVICES - SEN SERVICES,Peoples Services,Top-up Funding,A51016,0
London Borough of Sutton,23/03/2023,50334865,"4,260.80",Krishna Avanti Primary School Croydon,CHILDREN'S SERVICES - SEN SERVICES,Peoples Services,Top-up Funding,A51016,0
London Borough of Sutton,23/03/2023,50334866,"1,065.20",Krishna Avanti Primary School Croydon,CHILDREN'S SERVICES - SEN SERVICES,Peoples Services,Top-up Funding,A51016,0
London Borough of Sutton,07/03/2023,50324771,"9,633.28",Avenue Primary Acadamy,GRANTS & EX GRATIA PAYMENTS,Peoples Services,Pupil Growth,A51014,0
London Borough of Sutton,07/03/2023,50324824,800.00,Avenue Primary Acadamy,GRANTS & EX GRATIA PAYMENTS,Peoples Services,Disability Access Fund,A56093,0
London Borough of Sutton,07/03/2023,50326957,"16,122.89",Avenue Primary Acadamy,GRANTS & EX GRATIA PAYMENTS,Peoples Services,Place Funding,A56110,0
London Borough of Sutton,13/03/2023,50329592,"1,089.66",Avenue Primary Acadamy,GRANTS & EX GRATIA PAYMENTS,Peoples Services,Top-up Funding,A51016,0
London Borough of Sutton,21/03/2023,50331304,850.00,Avenue Primary Acadamy,GRANTS & EX GRATIA PAYMENTS,Peoples Services,Payment - Cluster Lead SENCO,A51035,0
London Borough of Sutton,21/03/2023,50331305,"4,749.00",Avenue Primary Acadamy,GRANTS & EX GRATIA PAYMENTS,Peoples Services,Payment - Cluster Lead SENCO,A51035,0
London Borough of Sutton,07/03/2023,50331311,"1,770.00",Avenue Primary Acadamy,GRANTS & EX GRATIA PAYMENTS,Resources,"Grants, Contributions & Donations",A47005,0
London Borough of Sutton,22/03/2023,50332483,"89,425.04",Avenue Primary Acadamy,GRANTS & EX GRATIA PAYMENTS,Peoples Services,Top-up individual funding,A60033,0
London Borough of Sutton,20/03/2023,50331473,"13,604.58",Ayai Care Limited,SOCIAL SERVICES DAY CARE,Peoples Services,Supported Living,A56088,0
London Borough of Sutton,20/03/2023,50331539,"14,136.00",Ayai Care Limited,SOCIAL SERVICES DAY CARE,Peoples Services,Supported Living,A56088,0
London Borough of Sutton,20/03/2023,50332458,"1,290.00",Ayai Care Limited,SOCIAL SERVICES DAY CARE,Peoples Services,One to One Care,A56108,0
London Borough of Sutton,28/02/2023,50334177,"13,176.40",Ayai Care Limited,SOCIAL SERVICES DAY CARE,Peoples Services,Approved Lodgings,A61000,0
London Borough of Sutton,28/03/2023,50334184,"28,130.00",Ayai Care Limited,SOCIAL SERVICES DAY CARE,Peoples Services,Residential Care-Children,A56115,0
London Borough of Sutton,28/03/2023,50334206,"14,245.00",Ayai Care Limited,SOCIAL SERVICES DAY CARE,Peoples Services,Approved Lodgings,A61000,0
London Borough of Sutton,28/02/2023,50334219,"45,940.00",Ayai Care Limited,SOCIAL SERVICES DAY CARE,Peoples Services,Residential Care-Children,A56115,0
London Borough of Sutton,28/02/2023,50334220,"21,905.00",Ayai Care Limited,SOCIAL SERVICES DAY CARE,Peoples Services,Residential Care-Children,A56115,0
London Borough of Sutton,15/02/2023,50330737,"5,599.99",Back on Track Housing Ltd,SOCIAL SERVICES - OTHER,Peoples Services,Approved Lodgings,A61000,0
London Borough of Sutton,15/02/2023,50330737,250.00,Back on Track Housing Ltd,SOCIAL SERVICES - OTHER,Peoples Services,Approved Lodgings,A61000,0
London Borough of Sutton,15/03/2023,50330744,"5,599.99",Back on Track Housing Ltd,SOCIAL SERVICES - OTHER,Peoples Services,Approved Lodgings,A61000,0
London Borough of Sutton,15/03/2023,50330744,250.00,Back on Track Housing Ltd,SOCIAL SERVICES - OTHER,Peoples Services,Approved Lodgings,A61000,0
London Borough of Sutton,15/03/2023,50330747,"4,570.00",Back on Track Housing Ltd,SOCIAL SERVICES - OTHER,Peoples Services,Accommodation - Supported Living,A62001,0
London Borough of Sutton,15/03/2023,50330748,"4,720.00",Back on Track Housing Ltd,SOCIAL SERVICES - OTHER,Peoples Services,Approved Lodgings,A61000,0
London Borough of Sutton,30/03/2023,50334185,"6,200.00",Back on Track Housing Ltd,SOCIAL SERVICES - OTHER,Peoples Services,Approved Lodgings,A61000,0
London Borough of Sutton,30/03/2023,50334185,276.78,Back on Track Housing Ltd,SOCIAL SERVICES - OTHER,Peoples Services,Approved Lodgings,A61000,0
London Borough of Sutton,30/03/2023,50334213,"5,225.67",Back on Track Housing Ltd,SOCIAL SERVICES - OTHER,Peoples Services,Approved Lodgings,A61000,0
London Borough of Sutton,30/03/2023,50334214,"5,059.46",Back on Track Housing Ltd,SOCIAL SERVICES - OTHER,Peoples Services,Accommodation - Supported Living,A62001,0
London Borough of Sutton,30/03/2023,50334215,"6,200.00",Back on Track Housing Ltd,SOCIAL SERVICES - OTHER,Peoples Services,Approved Lodgings,A61000,0
London Borough of Sutton,30/03/2023,50334215,276.78,Back on Track Housing Ltd,SOCIAL SERVICES - OTHER,Peoples Services,Approved Lodgings,A61000,0
London Borough of Sutton,02/03/2023,20044280,"4,630.00",Balmont Ltd,CONSTRUCTION INDUSTRY,Environment Housing and Neighbourhoods,Other Property Repairs & Maintenance,A20007,0
London Borough of Sutton,07/03/2023,50324825,800.00,Bandon Hill Primary School (Academy),GRANTS & EX GRATIA PAYMENTS,Peoples Services,Disability Access Fund,A56093,0
London Borough of Sutton,07/03/2023,50326958,"16,490.20",Bandon Hill Primary School (Academy),GRANTS & EX GRATIA PAYMENTS,Peoples Services,Place Funding,A56110,0
London Borough of Sutton,13/03/2023,50329595,956.50,Bandon Hill Primary School (Academy),GRANTS & EX GRATIA PAYMENTS,Peoples Services,Top-up Funding,A51016,0
London Borough of Sutton,07/03/2023,50331312,960.00,Bandon Hill Primary School (Academy),GRANTS & EX GRATIA PAYMENTS,Resources,"Grants, Contributions & Donations",A47005,0
London Borough of Sutton,04/02/2023,50328080,502.00,Banya,SOCIAL SERVICES RESIDENTIAL,Peoples Services,Foster Parents Support,A44110,0
London Borough of Sutton,17/03/2023,50330876,"3,880.00",Barchester Healthcare Homes Ltd,SOCIAL SERVICES RESIDENTIAL,Peoples Services,Nursing Care - Ext Provider,A56025,0
London Borough of Sutton,14/02/2023,20042993,"7,004.10",Barnardo's,CHILDREN'S SERVICES - RESIDENTIAL,Peoples Services,Housing and Support - Generic Services,A62013,0
London Borough of Sutton,18/01/2023,20045187,"21,984.38",Barnardo's,CHILDREN'S SERVICES - RESIDENTIAL,Peoples Services,Approved Lodgings,A61000,0
London Borough of Sutton,18/01/2023,20045188,"26,460.01",Barnardo's,CHILDREN'S SERVICES - RESIDENTIAL,Peoples Services,Approved Lodgings,A61000,0
London Borough of Sutton,16/03/2023,20045421,"21,695.63",Barnardo's,CHILDREN'S SERVICES - RESIDENTIAL,Peoples Services,Approved Lodgings,A61000,0
London Borough of Sutton,16/03/2023,20045422,"7,406.99",Barnardo's,CHILDREN'S SERVICES - RESIDENTIAL,Peoples Services,Approved Lodgings,A61000,0
London Borough of Sutton,02/03/2023,20044276,"4,531.40",Beddington Infants School,GRANTS & EX GRATIA PAYMENTS,Peoples Services,Payments to Contractors,C14000,0
London Borough of Sutton,07/03/2023,50324712,"105,063.94",Beddington Infants School,GRANTS & EX GRATIA PAYMENTS,Peoples Services,Payments to Schools,A51013,0
London Borough of Sutton,07/03/2023,50324826,800.00,Beddington Infants School,GRANTS & EX GRATIA PAYMENTS,Peoples Services,Disability Access Fund,A56093,0
London Borough of Sutton,07/03/2023,50324838,"2,899.80",Beddington Infants School,GRANTS & EX GRATIA PAYMENTS,Peoples Services,Place Funding,A56110,0
London Borough of Sutton,07/03/2023,50324839,"3,866.40",Beddington Infants School,GRANTS & EX GRATIA PAYMENTS,Peoples Services,Place Funding,A56110,0
London Borough of Sutton,07/03/2023,50326960,"18,636.05",Beddington Infants School,GRANTS & EX GRATIA PAYMENTS,Peoples Services,Place Funding,A56110,0
London Borough of Sutton,10/03/2023,50327616,"14,542.50",Beddington Infants School,GRANTS & EX GRATIA PAYMENTS,Peoples Services,Payment - Deprivation Pupil Premium,A51030,0
London Borough of Sutton,10/03/2023,50327640,602.50,Beddington Infants School,GRANTS & EX GRATIA PAYMENTS,Peoples Services,Payment - Post-LAC Pupil Premium,A51032,0
London Borough of Sutton,07/03/2023,50331314,615.00,Beddington Infants School,GRANTS & EX GRATIA PAYMENTS,Resources,"Grants, Contributions & Donations",A47005,0
London Borough of Sutton,07/03/2023,50324827,800.00,Beddington Park Primary (Academy)  ,GRANTS & EX GRATIA PAYMENTS,Peoples Services,Disability Access Fund,A56093,0
London Borough of Sutton,07/03/2023,50326961,"13,970.59",Beddington Park Primary (Academy)  ,GRANTS & EX GRATIA PAYMENTS,Peoples Services,Place Funding,A56110,0
London Borough of Sutton,07/03/2023,50331315,"1,575.00",Beddington Park Primary (Academy)  ,GRANTS & EX GRATIA PAYMENTS,Resources,"Grants, Contributions & Donations",A47005,0
London Borough of Sutton,20/03/2023,50331493,"2,836.50",Beechcroft Care Limited,SOCIAL SERVICES RESIDENTIAL,Peoples Services,Supported Living,A56088,0
London Borough of Sutton,20/03/2023,50331493,"3,786.42",Beechcroft Care Limited,SOCIAL SERVICES RESIDENTIAL,Peoples Services,Supported Living,A56088,0
London Borough of Sutton,20/03/2023,50331493,"1,240.00",Beechcroft Care Limited,SOCIAL SERVICES RESIDENTIAL,Peoples Services,One to One Care,A56108,0
London Borough of Sutton,02/03/2023,20044240,"1,976.14",Beeches Tree Care,AGRICULTURAL & ESTATE SERVICES,Environment Housing and Neighbourhoods,Maintenance of trees,A28003,0
London Borough of Sutton,02/03/2023,20044344,"1,531.76",Beeches Tree Care,AGRICULTURAL & ESTATE SERVICES,Environment Housing and Neighbourhoods,Maintenance of trees,A28003,0
London Borough of Sutton,03/03/2023,20044381,"1,764.30",Beeches Tree Care,AGRICULTURAL & ESTATE SERVICES,Environment Housing and Neighbourhoods,Tree Works,A56042,0
London Borough of Sutton,02/03/2023,20044382,"5,990.00",Beeches Tree Care,AGRICULTURAL & ESTATE SERVICES,Environment Housing and Neighbourhoods,Landscaping,C20019,0
London Borough of Sutton,09/03/2023,20044810,"38,600.00",Beeches Tree Care,AGRICULTURAL & ESTATE SERVICES,Environment Housing and Neighbourhoods,External Fees and Consultants,C20000,0
London Borough of Sutton,13/03/2023,20045062,"1,433.55",Beeches Tree Care,AGRICULTURAL & ESTATE SERVICES,Resources,"Grants, Contributions & Donations",A47005,0
London Borough of Sutton,13/03/2023,20045063,"1,015.20",Beeches Tree Care,AGRICULTURAL & ESTATE SERVICES,Resources,"Grants, Contributions & Donations",A47005,0
London Borough of Sutton,13/03/2023,20045064,"1,138.32",Beeches Tree Care,AGRICULTURAL & ESTATE SERVICES,Resources,"Grants, Contributions & Donations",A47005,0
London Borough of Sutton,14/03/2023,20045114,-965.00,Beeches Tree Care,AGRICULTURAL & ESTATE SERVICES,Resources,Fees And Charges (VATable),A92310,0
London Borough of Sutton,14/03/2023,20045162,"1,071.61",Beeches Tree Care,AGRICULTURAL & ESTATE SERVICES,Environment Housing and Neighbourhoods,Maintenance of trees,A28003,0
London Borough of Sutton,14/03/2023,20045164,496.94,Beeches Tree Care,AGRICULTURAL & ESTATE SERVICES,Environment Housing and Neighbourhoods,Tree Works,A56042,0
London Borough of Sutton,14/03/2023,20045166,"1,057.05",Beeches Tree Care,AGRICULTURAL & ESTATE SERVICES,Environment Housing and Neighbourhoods,Maintenance of trees,A28003,0
London Borough of Sutton,16/03/2023,20045365,"2,905.83",Beeches Tree Care,AGRICULTURAL & ESTATE SERVICES,Environment Housing and Neighbourhoods,Tree Works,A56042,0
London Borough of Sutton,21/03/2023,20045750,"25,000.00",Beeches Tree Care,AGRICULTURAL & ESTATE SERVICES,Environment Housing and Neighbourhoods,External Fees and Consultants,C20000,0
London Borough of Sutton,23/03/2023,20045930,-700.00,Beeches Tree Care,AGRICULTURAL & ESTATE SERVICES,Resources,Fees And Charges (VATable),A92310,0
London Borough of Sutton,24/03/2023,20046113,"1,252.84",Beeches Tree Care,AGRICULTURAL & ESTATE SERVICES,Environment Housing and Neighbourhoods,Tree Works,A56042,0
London Borough of Sutton,27/03/2023,20046349,"15,000.00",Beeches Tree Care,AGRICULTURAL & ESTATE SERVICES,Environment Housing and Neighbourhoods,External Fees and Consultants,C20000,0
London Borough of Sutton,28/03/2023,20046351,"30,000.00",Beeches Tree Care,AGRICULTURAL & ESTATE SERVICES,Environment Housing and Neighbourhoods,External Fees and Consultants,C20000,0
London Borough of Sutton,29/03/2023,20046562,"1,654.92",Beeches Tree Care,AGRICULTURAL & ESTATE SERVICES,Environment Housing and Neighbourhoods,Tree Works,A56042,0
London Borough of Sutton,29/03/2023,20046564,"1,500.00",Beeches Tree Care,AGRICULTURAL & ESTATE SERVICES,Environment Housing and Neighbourhoods,Purchases and Repairs Fixtures & Fittings,A25005,0
London Borough of Sutton,30/03/2023,20046569,-420.00,Beeches Tree Care,AGRICULTURAL & ESTATE SERVICES,Resources,Fees And Charges (VATable),A92310,0
London Borough of Sutton,30/03/2023,20046570,-840.00,Beeches Tree Care,AGRICULTURAL & ESTATE SERVICES,Resources,Fees And Charges (VATable),A92310,0
London Borough of Sutton,30/03/2023,20046625,850.00,Beeches Tree Care,AGRICULTURAL & ESTATE SERVICES,Environment Housing and Neighbourhoods,Purchases and Repairs Fixtures & Fittings,A25005,0
London Borough of Sutton,30/03/2023,20046628,950.00,Beeches Tree Care,AGRICULTURAL & ESTATE SERVICES,Environment Housing and Neighbourhoods,Tree Works,A56042,0
London Borough of Sutton,07/03/2023,50324846,"1,425.59",Belmont Village Playgroup,GRANTS & EX GRATIA PAYMENTS,Peoples Services,Payment - Nursery Funding,A51056,0
London Borough of Sutton,07/03/2023,50324911,"4,907.75",Belmont Village Playgroup,GRANTS & EX GRATIA PAYMENTS,Peoples Services,Payment - Nursery Funding,A51056,0
London Borough of Sutton,17/03/2023,50331117,"-3,890.68",Bespoke Care Support Ltd,SOCIAL SERVICES - OTHER,Peoples Services,Nursing Care - 3rd party top up payment,A56023,0
London Borough of Sutton,17/03/2023,50331228,"-2,000.00",Bespoke Care Support Ltd,SOCIAL SERVICES - OTHER,Peoples Services,Nursing Care - 3rd party top up payment,A56023,0
London Borough of Sutton,17/03/2023,50331273,"-2,699.08",Bespoke Care Support Ltd,SOCIAL SERVICES - OTHER,Peoples Services,Nursing Care - 3rd party top up payment,A56023,0
London Borough of Sutton,20/03/2023,50331468,"5,976.54",Bespoke Care Support Ltd,SOCIAL SERVICES - OTHER,Peoples Services,Supported Living,A56088,0
London Borough of Sutton,20/03/2023,50331492,"8,615.08",Bespoke Care Support Ltd,SOCIAL SERVICES - OTHER,Peoples Services,Supported Living,A56088,0
London Borough of Sutton,20/03/2023,50331524,"4,428.58",Bespoke Care Support Ltd,SOCIAL SERVICES - OTHER,Peoples Services,Supported Living,A56088,0
London Borough of Sutton,20/03/2023,50331525,"3,985.72",Bespoke Care Support Ltd,SOCIAL SERVICES - OTHER,Peoples Services,Supported Living,A56088,0
London Borough of Sutton,12/02/2023,50322833,"3,156.00",Best at Home Domiciliary Care Services Ltd,SOCIAL SERVICES DAY CARE,Peoples Services,Home Care Services,A56019,0
London Borough of Sutton,12/02/2023,50322868,981.94,Best at Home Domiciliary Care Services Ltd,SOCIAL SERVICES DAY CARE,Peoples Services,Home Care Services,A56019,0
London Borough of Sutton,12/02/2023,50322876,542.50,Best at Home Domiciliary Care Services Ltd,SOCIAL SERVICES DAY CARE,Peoples Services,Home Care Services,A56019,0
London Borough of Sutton,12/02/2023,50322933,827.97,Best at Home Domiciliary Care Services Ltd,SOCIAL SERVICES DAY CARE,Peoples Services,Home Care Services,A56019,0
London Borough of Sutton,12/02/2023,50322933,150.00,Best at Home Domiciliary Care Services Ltd,SOCIAL SERVICES DAY CARE,Peoples Services,Home Care Services,A56019,0
London Borough of Sutton,12/02/2023,50322947,"3,156.00",Best at Home Domiciliary Care Services Ltd,SOCIAL SERVICES DAY CARE,Peoples Services,Home Care Services,A56019,0
London Borough of Sutton,12/02/2023,50322960,827.97,Best at Home Domiciliary Care Services Ltd,SOCIAL SERVICES DAY CARE,Peoples Services,Home Care Services,A56019,0
London Borough of Sutton,12/02/2023,50322993,901.97,Best at Home Domiciliary Care Services Ltd,SOCIAL SERVICES DAY CARE,Peoples Services,Home Care Services,A56019,0
London Borough of Sutton,12/02/2023,50322998,"3,156.00",Best at Home Domiciliary Care Services Ltd,SOCIAL SERVICES DAY CARE,Peoples Services,Home Care Services,A56019,0
London Borough of Sutton,18/07/2022,50323033,901.96,Best at Home Domiciliary Care Services Ltd,SOCIAL SERVICES DAY CARE,Peoples Services,Home Care Services,A56019,0
London Borough of Sutton,01/08/2022,50323034,901.96,Best at Home Domiciliary Care Services Ltd,SOCIAL SERVICES DAY CARE,Peoples Services,Home Care Services,A56019,0
London Borough of Sutton,25/07/2022,50323043,901.96,Best at Home Domiciliary Care Services Ltd,SOCIAL SERVICES DAY CARE,Peoples Services,Home Care Services,A56019,0
London Borough of Sutton,10/07/2022,50323046,557.97,Best at Home Domiciliary Care Services Ltd,SOCIAL SERVICES DAY CARE,Peoples Services,Home Care Services,A56019,0
London Borough of Sutton,27/11/2022,50323052,981.50,Best at Home Domiciliary Care Services Ltd,SOCIAL SERVICES DAY CARE,Peoples Services,Home Care Services,A56019,0
London Borough of Sutton,11/12/2022,50323054,981.50,Best at Home Domiciliary Care Services Ltd,SOCIAL SERVICES DAY CARE,Peoples Services,Home Care Services,A56019,0
London Borough of Sutton,11/12/2022,50323056,511.48,Best at Home Domiciliary Care Services Ltd,SOCIAL SERVICES DAY CARE,Peoples Services,Home Care Services,A56019,0
London Borough of Sutton,13/11/2022,50323062,981.50,Best at Home Domiciliary Care Services Ltd,SOCIAL SERVICES DAY CARE,Peoples Services,Home Care Services,A56019,0
London Borough of Sutton,18/12/2022,50323067,535.48,Best at Home Domiciliary Care Services Ltd,SOCIAL SERVICES DAY CARE,Peoples Services,Home Care Services,A56019,0
London Borough of Sutton,04/12/2022,50323075,981.50,Best at Home Domiciliary Care Services Ltd,SOCIAL SERVICES DAY CARE,Peoples Services,Home Care Services,A56019,0
London Borough of Sutton,25/12/2022,50323081,506.48,Best at Home Domiciliary Care Services Ltd,SOCIAL SERVICES DAY CARE,Peoples Services,Home Care Services,A56019,0
London Borough of Sutton,01/01/2023,50323084,84.00,Best at Home Domiciliary Care Services Ltd,SOCIAL SERVICES DAY CARE,Peoples Services,Home Care Services,A56019,0
London Borough of Sutton,01/01/2023,50323084,434.45,Best at Home Domiciliary Care Services Ltd,SOCIAL SERVICES DAY CARE,Peoples Services,Home Care Services,A56019,0
London Borough of Sutton,06/11/2022,50323085,981.50,Best at Home Domiciliary Care Services Ltd,SOCIAL SERVICES DAY CARE,Peoples Services,Home Care Services,A56019,0
London Borough of Sutton,23/10/2022,50323086,740.50,Best at Home Domiciliary Care Services Ltd,SOCIAL SERVICES DAY CARE,Peoples Services,Home Care Services,A56019,0
London Borough of Sutton,30/10/2022,50323088,981.50,Best at Home Domiciliary Care Services Ltd,SOCIAL SERVICES DAY CARE,Peoples Services,Home Care Services,A56019,0
London Borough of Sutton,26/02/2023,50325917,981.94,Best at Home Domiciliary Care Services Ltd,SOCIAL SERVICES DAY CARE,Peoples Services,Home Care Services,A56019,0
London Borough of Sutton,26/02/2023,50325924,542.50,Best at Home Domiciliary Care Services Ltd,SOCIAL SERVICES DAY CARE,Peoples Services,Home Care Services,A56019,0
London Borough of Sutton,26/02/2023,50325965,827.97,Best at Home Domiciliary Care Services Ltd,SOCIAL SERVICES DAY CARE,Peoples Services,Home Care Services,A56019,0
London Borough of Sutton,26/02/2023,50325965,150.00,Best at Home Domiciliary Care Services Ltd,SOCIAL SERVICES DAY CARE,Peoples Services,Home Care Services,A56019,0
London Borough of Sutton,26/02/2023,50325980,"3,156.00",Best at Home Domiciliary Care Services Ltd,SOCIAL SERVICES DAY CARE,Peoples Services,Home Care Services,A56019,0
London Borough of Sutton,26/02/2023,50325989,827.97,Best at Home Domiciliary Care Services Ltd,SOCIAL SERVICES DAY CARE,Peoples Services,Home Care Services,A56019,0
London Borough of Sutton,26/02/2023,50325998,"3,156.00",Best at Home Domiciliary Care Services Ltd,SOCIAL SERVICES DAY CARE,Peoples Services,Home Care Services,A56019,0
London Borough of Sutton,26/02/2023,50326007,901.97,Best at Home Domiciliary Care Services Ltd,SOCIAL SERVICES DAY CARE,Peoples Services,Home Care Services,A56019,0
London Borough of Sutton,26/02/2023,50326009,"3,156.00",Best at Home Domiciliary Care Services Ltd,SOCIAL SERVICES DAY CARE,Peoples Services,Home Care Services,A56019,0
London Borough of Sutton,05/02/2023,50328452,981.94,Best at Home Domiciliary Care Services Ltd,SOCIAL SERVICES DAY CARE,Peoples Services,Home Care Services,A56019,0
London Borough of Sutton,05/02/2023,50328454,542.50,Best at Home Domiciliary Care Services Ltd,SOCIAL SERVICES DAY CARE,Peoples Services,Home Care Services,A56019,0
London Borough of Sutton,05/02/2023,50328480,827.97,Best at Home Domiciliary Care Services Ltd,SOCIAL SERVICES DAY CARE,Peoples Services,Home Care Services,A56019,0
London Borough of Sutton,05/02/2023,50328480,150.00,Best at Home Domiciliary Care Services Ltd,SOCIAL SERVICES DAY CARE,Peoples Services,Home Care Services,A56019,0
London Borough of Sutton,05/02/2023,50328485,"3,156.00",Best at Home Domiciliary Care Services Ltd,SOCIAL SERVICES DAY CARE,Peoples Services,Home Care Services,A56019,0
London Borough of Sutton,05/02/2023,50328492,901.97,Best at Home Domiciliary Care Services Ltd,SOCIAL SERVICES DAY CARE,Peoples Services,Home Care Services,A56019,0
London Borough of Sutton,05/02/2023,50328496,827.97,Best at Home Domiciliary Care Services Ltd,SOCIAL SERVICES DAY CARE,Peoples Services,Home Care Services,A56019,0
London Borough of Sutton,05/02/2023,50328499,"3,156.00",Best at Home Domiciliary Care Services Ltd,SOCIAL SERVICES DAY CARE,Peoples Services,Home Care Services,A56019,0
London Borough of Sutton,05/02/2023,50328505,"3,156.00",Best at Home Domiciliary Care Services Ltd,SOCIAL SERVICES DAY CARE,Peoples Services,Home Care Services,A56019,0
London Borough of Sutton,05/03/2023,50328543,827.97,Best at Home Domiciliary Care Services Ltd,SOCIAL SERVICES DAY CARE,Peoples Services,Home Care Services,A56019,0
London Borough of Sutton,05/03/2023,50328557,"3,156.00",Best at Home Domiciliary Care Services Ltd,SOCIAL SERVICES DAY CARE,Peoples Services,Home Care Services,A56019,0
London Borough of Sutton,05/03/2023,50328559,981.94,Best at Home Domiciliary Care Services Ltd,SOCIAL SERVICES DAY CARE,Peoples Services,Home Care Services,A56019,0
London Borough of Sutton,05/03/2023,50328568,528.50,Best at Home Domiciliary Care Services Ltd,SOCIAL SERVICES DAY CARE,Peoples Services,Home Care Services,A56019,0
London Borough of Sutton,05/03/2023,50328572,901.97,Best at Home Domiciliary Care Services Ltd,SOCIAL SERVICES DAY CARE,Peoples Services,Home Care Services,A56019,0
London Borough of Sutton,05/03/2023,50328576,"3,156.00",Best at Home Domiciliary Care Services Ltd,SOCIAL SERVICES DAY CARE,Peoples Services,Home Care Services,A56019,0
London Borough of Sutton,05/03/2023,50328655,828.00,Best at Home Domiciliary Care Services Ltd,SOCIAL SERVICES DAY CARE,Peoples Services,Home Care Services,A56019,0
London Borough of Sutton,05/03/2023,50328655,149.97,Best at Home Domiciliary Care Services Ltd,SOCIAL SERVICES DAY CARE,Peoples Services,Home Care Services,A56019,0
London Borough of Sutton,05/03/2023,50328666,"3,156.00",Best at Home Domiciliary Care Services Ltd,SOCIAL SERVICES DAY CARE,Peoples Services,Home Care Services,A56019,0
London Borough of Sutton,12/03/2023,50329680,981.94,Best at Home Domiciliary Care Services Ltd,SOCIAL SERVICES DAY CARE,Peoples Services,Home Care Services,A56019,0
London Borough of Sutton,12/03/2023,50329687,542.50,Best at Home Domiciliary Care Services Ltd,SOCIAL SERVICES DAY CARE,Peoples Services,Home Care Services,A56019,0
London Borough of Sutton,12/03/2023,50329728,827.97,Best at Home Domiciliary Care Services Ltd,SOCIAL SERVICES DAY CARE,Peoples Services,Home Care Services,A56019,0
London Borough of Sutton,12/03/2023,50329728,150.00,Best at Home Domiciliary Care Services Ltd,SOCIAL SERVICES DAY CARE,Peoples Services,Home Care Services,A56019,0
London Borough of Sutton,12/03/2023,50329743,"3,156.00",Best at Home Domiciliary Care Services Ltd,SOCIAL SERVICES DAY CARE,Peoples Services,Home Care Services,A56019,0
London Borough of Sutton,12/03/2023,50329760,"3,156.00",Best at Home Domiciliary Care Services Ltd,SOCIAL SERVICES DAY CARE,Peoples Services,Home Care Services,A56019,0
London Borough of Sutton,12/03/2023,50329762,827.97,Best at Home Domiciliary Care Services Ltd,SOCIAL SERVICES DAY CARE,Peoples Services,Home Care Services,A56019,0
London Borough of Sutton,12/03/2023,50329783,901.97,Best at Home Domiciliary Care Services Ltd,SOCIAL SERVICES DAY CARE,Peoples Services,Home Care Services,A56019,0
London Borough of Sutton,12/03/2023,50329786,"3,156.00",Best at Home Domiciliary Care Services Ltd,SOCIAL SERVICES DAY CARE,Peoples Services,Home Care Services,A56019,0
London Borough of Sutton,21/03/2023,50331406,"9,531.04",Best at Home Domiciliary Care Services Ltd,SOCIAL SERVICES DAY CARE,Peoples Services,Home Care Services,A56019,0
London Borough of Sutton,19/03/2023,50334619,981.94,Best at Home Domiciliary Care Services Ltd,SOCIAL SERVICES DAY CARE,Peoples Services,Home Care Services,A56019,0
London Borough of Sutton,19/03/2023,50334625,505.50,Best at Home Domiciliary Care Services Ltd,SOCIAL SERVICES DAY CARE,Peoples Services,Home Care Services,A56019,0
London Borough of Sutton,19/03/2023,50335508,"3,156.00",Best at Home Domiciliary Care Services Ltd,SOCIAL SERVICES DAY CARE,Peoples Services,Home Care Services,A56019,0
London Borough of Sutton,19/03/2023,50335522,827.97,Best at Home Domiciliary Care Services Ltd,SOCIAL SERVICES DAY CARE,Peoples Services,Home Care Services,A56019,0
London Borough of Sutton,19/03/2023,50335522,150.00,Best at Home Domiciliary Care Services Ltd,SOCIAL SERVICES DAY CARE,Peoples Services,Home Care Services,A56019,0
London Borough of Sutton,19/03/2023,50335531,"3,156.00",Best at Home Domiciliary Care Services Ltd,SOCIAL SERVICES DAY CARE,Peoples Services,Home Care Services,A56019,0
London Borough of Sutton,19/03/2023,50335538,827.97,Best at Home Domiciliary Care Services Ltd,SOCIAL SERVICES DAY CARE,Peoples Services,Home Care Services,A56019,0
London Borough of Sutton,19/03/2023,50335541,"3,156.00",Best at Home Domiciliary Care Services Ltd,SOCIAL SERVICES DAY CARE,Peoples Services,Home Care Services,A56019,0
London Borough of Sutton,19/03/2023,50335548,901.97,Best at Home Domiciliary Care Services Ltd,SOCIAL SERVICES DAY CARE,Peoples Services,Home Care Services,A56019,0
London Borough of Sutton,28/02/2023,20044329,"8,247.50",Bestcourt UK Ltd,ACCOMMODATION BED & BREAKFAST,Environment Housing and Neighbourhoods,Bed & Breakfast,A56000,0
London Borough of Sutton,20/03/2023,50331470,"4,650.00",BETTER LIFE SUPPORTED LIVING LIMITED,SOCIAL SERVICES RESIDENTIAL,Peoples Services,One to One Care,A56108,0
London Borough of Sutton,26/01/2023,20044090,452.00,Bevan Brittan LLP,LEGAL & PROFESSIONAL SERVICES,HRA,External Legal Fees,C20008,0
London Borough of Sutton,26/01/2023,20044091,"2,986.00",Bevan Brittan LLP,LEGAL & PROFESSIONAL SERVICES,HRA,External Legal Fees,C20008,0
London Borough of Sutton,31/01/2023,20044092,"1,459.50",Bevan Brittan LLP,LEGAL & PROFESSIONAL SERVICES,Resources,Professional Fees,A44066,0
London Borough of Sutton,28/02/2023,20044483,"2,157.00",Bevan Brittan LLP,LEGAL & PROFESSIONAL SERVICES,HRA,External Legal Fees,C20008,0
London Borough of Sutton,27/02/2023,20044511,"2,846.10",Bevan Brittan LLP,LEGAL & PROFESSIONAL SERVICES,HRA,External Legal Fees,C20008,0
London Borough of Sutton,03/01/2023,50323510,"21,347.66",Beyond Autism,CHILDREN'S SERVICES - RESIDENTIAL,Peoples Services,Independent School Fees,A56002,0
London Borough of Sutton,03/01/2023,50323512,"21,987.94",Beyond Autism,CHILDREN'S SERVICES - RESIDENTIAL,Peoples Services,Independent School Fees,A56002,0
London Borough of Sutton,03/01/2023,50323514,"21,347.66",Beyond Autism,CHILDREN'S SERVICES - RESIDENTIAL,Peoples Services,Independent School Fees,A56002,0
London Borough of Sutton,03/01/2023,50323516,"21,347.66",Beyond Autism,CHILDREN'S SERVICES - RESIDENTIAL,Peoples Services,Independent School Fees,A56002,0
London Borough of Sutton,03/01/2023,50323517,840.00,Beyond Autism,CHILDREN'S SERVICES - RESIDENTIAL,Peoples Services,Independent School Fees,A56002,0
London Borough of Sutton,03/01/2023,50323518,"21,347.66",Beyond Autism,CHILDREN'S SERVICES - RESIDENTIAL,Peoples Services,Independent School Fees,A56002,0
London Borough of Sutton,03/01/2023,50323520,"21,347.66",Beyond Autism,CHILDREN'S SERVICES - RESIDENTIAL,Peoples Services,Independent School Fees,A56002,0
London Borough of Sutton,07/03/2023,50325021,"2,551.82",Bizzy Bees Day Nursery,GRANTS & EX GRATIA PAYMENTS,Peoples Services,Payment - Nursery Funding,A51056,0
London Borough of Sutton,07/03/2023,50327394,"1,800.00",Bizzy Bees Day Nursery,GRANTS & EX GRATIA PAYMENTS,Peoples Services,SEND Inclusion funding,A60038,0
London Borough of Sutton,17/03/2023,50330812,"3,942.88",BNP Care Ltd,SOCIAL SERVICES RESIDENTIAL,Peoples Services,Residential Care - Ext Provider,A56114,0
London Borough of Sutton,02/02/2023,20042102,457.00,Bowerhill Machine Tool Maintenance,LEGAL & PROFESSIONAL SERVICES,Health and Wellbeing,Other Property Repairs & Maintenance,A20007,0
London Borough of Sutton,22/08/2022,20044124,725.00,Bowerhill Machine Tool Maintenance,LEGAL & PROFESSIONAL SERVICES,Health and Wellbeing,Other Property Repairs & Maintenance,A20007,0
London Borough of Sutton,17/03/2023,50330828,"2,400.00",Brama Care Ltd,SOCIAL SERVICES-HOME CARE,Peoples Services,Nursing Care - Ext Provider,A56025,0
London Borough of Sutton,17/03/2023,50330896,"3,822.36",Bridge House Care Centre,SOCIAL SERVICES RESIDENTIAL,Peoples Services,Nursing Care - Ext Provider,A56025,0
London Borough of Sutton,17/03/2023,50330896,-836.76,Bridge House Care Centre,SOCIAL SERVICES RESIDENTIAL,Peoples Services,Nursing Care - 3rd party top up payment,A56023,0
London Borough of Sutton,17/03/2023,50330897,-750.40,Bridge House Care Centre,SOCIAL SERVICES RESIDENTIAL,Peoples Services,Nursing Care - 3rd party top up payment,A56023,0
London Borough of Sutton,17/03/2023,50330897,"3,848.24",Bridge House Care Centre,SOCIAL SERVICES RESIDENTIAL,Peoples Services,Nursing Care - Ext Provider,A56025,0
London Borough of Sutton,17/03/2023,50330898,"3,734.88",Bridge House Care Centre,SOCIAL SERVICES RESIDENTIAL,Peoples Services,Nursing Care - Ext Provider,A56025,0
London Borough of Sutton,17/03/2023,50330905,"3,736.00",Bridge House Care Centre,SOCIAL SERVICES RESIDENTIAL,Peoples Services,Nursing Care - Ext Provider,A56025,0
London Borough of Sutton,17/03/2023,50330905,-750.40,Bridge House Care Centre,SOCIAL SERVICES RESIDENTIAL,Peoples Services,Nursing Care - 3rd party top up payment,A56023,0
London Borough of Sutton,17/03/2023,50330922,-750.40,Bridge House Care Centre,SOCIAL SERVICES RESIDENTIAL,Peoples Services,Nursing Care - 3rd party top up payment,A56023,0
London Borough of Sutton,17/03/2023,50330923,"3,848.24",Bridge House Care Centre,SOCIAL SERVICES RESIDENTIAL,Peoples Services,Nursing Care - Ext Provider,A56025,0
London Borough of Sutton,17/03/2023,50330923,-750.40,Bridge House Care Centre,SOCIAL SERVICES RESIDENTIAL,Peoples Services,Nursing Care - 3rd party top up payment,A56023,0
London Borough of Sutton,17/03/2023,50331022,"3,848.24",Bridge House Care Centre,SOCIAL SERVICES RESIDENTIAL,Peoples Services,Nursing Care - Ext Provider,A56025,0
London Borough of Sutton,17/03/2023,50331022,-750.40,Bridge House Care Centre,SOCIAL SERVICES RESIDENTIAL,Peoples Services,Nursing Care - 3rd party top up payment,A56023,0
London Borough of Sutton,17/03/2023,50331030,"3,720.16",Bridge House Care Centre,SOCIAL SERVICES RESIDENTIAL,Peoples Services,Nursing Care - Ext Provider,A56025,0
London Borough of Sutton,17/03/2023,50331030,-735.68,Bridge House Care Centre,SOCIAL SERVICES RESIDENTIAL,Peoples Services,Nursing Care - 3rd party top up payment,A56023,0
London Borough of Sutton,17/03/2023,50331034,"3,734.88",Bridge House Care Centre,SOCIAL SERVICES RESIDENTIAL,Peoples Services,Nursing Care - Ext Provider,A56025,0
London Borough of Sutton,17/03/2023,50331034,-750.40,Bridge House Care Centre,SOCIAL SERVICES RESIDENTIAL,Peoples Services,Nursing Care - 3rd party top up payment,A56023,0
London Borough of Sutton,17/03/2023,50331043,"3,665.20",Bridge House Care Centre,SOCIAL SERVICES RESIDENTIAL,Peoples Services,Nursing Care - Ext Provider,A56025,0
London Borough of Sutton,17/03/2023,50331043,-632.64,Bridge House Care Centre,SOCIAL SERVICES RESIDENTIAL,Peoples Services,Nursing Care - 3rd party top up payment,A56023,0
London Borough of Sutton,17/03/2023,50331044,-836.76,Bridge House Care Centre,SOCIAL SERVICES RESIDENTIAL,Peoples Services,Nursing Care - 3rd party top up payment,A56023,0
London Borough of Sutton,17/03/2023,50331044,"3,900.00",Bridge House Care Centre,SOCIAL SERVICES RESIDENTIAL,Peoples Services,Respite Care,A56116,0
London Borough of Sutton,17/03/2023,50331091,"3,579.44",Bridge House Care Centre,SOCIAL SERVICES RESIDENTIAL,Peoples Services,Nursing Care - Ext Provider,A56025,0
London Borough of Sutton,17/03/2023,50331091,-632.64,Bridge House Care Centre,SOCIAL SERVICES RESIDENTIAL,Peoples Services,Nursing Care - 3rd party top up payment,A56023,0
London Borough of Sutton,17/03/2023,50331092,"3,734.88",Bridge House Care Centre,SOCIAL SERVICES RESIDENTIAL,Peoples Services,Nursing Care Short Term,A56026,0
London Borough of Sutton,17/03/2023,50331092,-750.40,Bridge House Care Centre,SOCIAL SERVICES RESIDENTIAL,Peoples Services,Nursing Care - 3rd party top up payment,A56023,0
London Borough of Sutton,17/03/2023,50331144,"3,821.24",Bridge House Care Centre,SOCIAL SERVICES RESIDENTIAL,Peoples Services,Nursing Care - Ext Provider,A56025,0
London Borough of Sutton,17/03/2023,50331144,-836.76,Bridge House Care Centre,SOCIAL SERVICES RESIDENTIAL,Peoples Services,Nursing Care - 3rd party top up payment,A56023,0
London Borough of Sutton,17/03/2023,50331163,"114,935.03",Bridge House Care Centre,SOCIAL SERVICES RESIDENTIAL,Peoples Services,Nursing Care - Ext Provider,A56025,0
London Borough of Sutton,17/03/2023,50331163,"-19,151.95",Bridge House Care Centre,SOCIAL SERVICES RESIDENTIAL,Peoples Services,Nursing Care - 3rd party top up payment,A56023,0
London Borough of Sutton,17/03/2023,50331182,"2,026.62",Bridge House Care Centre,SOCIAL SERVICES RESIDENTIAL,Peoples Services,Nursing Care - Ext Provider,A56025,0
London Borough of Sutton,17/03/2023,50331182,-268.96,Bridge House Care Centre,SOCIAL SERVICES RESIDENTIAL,Peoples Services,Nursing Care - 3rd party top up payment,A56023,0
London Borough of Sutton,17/03/2023,50331194,"3,821.24",Bridge House Care Centre,SOCIAL SERVICES RESIDENTIAL,Peoples Services,Nursing Care Short Term,A56026,0
London Borough of Sutton,17/03/2023,50331194,-836.76,Bridge House Care Centre,SOCIAL SERVICES RESIDENTIAL,Peoples Services,Nursing Care - 3rd party top up payment,A56023,0
London Borough of Sutton,17/03/2023,50331201,"3,821.24",Bridge House Care Centre,SOCIAL SERVICES RESIDENTIAL,Peoples Services,Nursing Care Short Term,A56026,0
London Borough of Sutton,17/03/2023,50331201,-836.76,Bridge House Care Centre,SOCIAL SERVICES RESIDENTIAL,Peoples Services,Nursing Care - 3rd party top up payment,A56023,0
London Borough of Sutton,21/03/2023,50331439,"10,033.55",Bridge House Care Centre,SOCIAL SERVICES RESIDENTIAL,Peoples Services,Nursing Care Short Term,A56026,0
London Borough of Sutton,01/02/2023,50328122,"3,160.00",Bridging Gaps Limited,CHILDREN'S SERVICES - FOSTERING & ADOPTION SERVICES,Peoples Services,Foster Parents Support,A44110,0
London Borough of Sutton,01/02/2023,50328131,"3,160.00",Bridging Gaps Limited,CHILDREN'S SERVICES - FOSTERING & ADOPTION SERVICES,Peoples Services,Foster Parents Support,A44110,0
London Borough of Sutton,01/03/2023,50334208,"3,498.57",Bridging Gaps Limited,CHILDREN'S SERVICES - FOSTERING & ADOPTION SERVICES,Peoples Services,Foster Parents Support,A44110,0
London Borough of Sutton,01/03/2023,50334234,"3,498.57",Bridging Gaps Limited,CHILDREN'S SERVICES - FOSTERING & ADOPTION SERVICES,Peoples Services,Foster Parents Support,A44110,0
London Borough of Sutton,09/02/2023,50328117,"3,650.00",Bridging the Gap,CHILDREN'S SERVICE - OTHER,Peoples Services,Approved Lodgings,A61000,0
London Borough of Sutton,16/03/2023,50334222,"4,041.07",Bridging the Gap,CHILDREN'S SERVICE - OTHER,Peoples Services,Approved Lodgings,A61000,0
London Borough of Sutton,01/02/2023,50328059,"1,470.43",Brighter Futures Foster Care Ltd,CHILDREN'S SERVICES - FOSTERING & ADOPTION SERVICES,Peoples Services,Foster Parents Support,A44110,0
London Borough of Sutton,01/02/2023,50328061,"3,167.08",Brighter Futures Foster Care Ltd,CHILDREN'S SERVICES - FOSTERING & ADOPTION SERVICES,Peoples Services,Foster Parents Support,A44110,0
London Borough of Sutton,01/02/2023,50328105,"2,857.96",Brighter Futures Foster Care Ltd,CHILDREN'S SERVICES - FOSTERING & ADOPTION SERVICES,Peoples Services,Foster Parents Support,A44110,0
London Borough of Sutton,01/03/2023,50334228,"3,506.41",Brighter Futures Foster Care Ltd,CHILDREN'S SERVICES - FOSTERING & ADOPTION SERVICES,Peoples Services,Foster Parents Support,A44110,0
London Borough of Sutton,01/03/2023,50334244,"3,164.17",Brighter Futures Foster Care Ltd,CHILDREN'S SERVICES - FOSTERING & ADOPTION SERVICES,Peoples Services,Foster Parents Support,A44110,0
London Borough of Sutton,23/08/2022,20044349,"19,000.00",British Cycling,GRANTS & EX GRATIA PAYMENTS,Environment Housing and Neighbourhoods,Stationery,A43015,0
London Borough of Sutton,15/02/2023,20043654,"1,688.50",British Gas,UTILITIES,Resources,Electricity,A21000,0
London Borough of Sutton,22/02/2023,20044360,-523.40,British Gas,UTILITIES,HRA,Electricity,A21000,0
London Borough of Sutton,15/02/2023,20044522,"1,323.30",British Gas,UTILITIES,Peoples Services,Electricity,A21000,0
London Borough of Sutton,16/03/2023,20045960,"1,959.40",British Gas,UTILITIES,Resources,Electricity,A21000,0
London Borough of Sutton,17/03/2023,50330861,-772.64,British Home & Hospital For Incurables,SOCIAL SERVICES RESIDENTIAL,Peoples Services,Nursing Care - Client Cont ( Net paymt ),A56024,0
London Borough of Sutton,17/03/2023,50330861,"2,591.80",British Home & Hospital For Incurables,SOCIAL SERVICES RESIDENTIAL,Peoples Services,Nursing Care - Ext Provider,A56025,0
London Borough of Sutton,30/11/2022,20044331,"8,958.48",Brockwell Care,ACCOMMODATION - OTHER,Peoples Services,One to One Care,A56108,0
London Borough of Sutton,07/03/2023,20044690,"1,836.00",Browne Jacobson LLP,SUNDRY SUPPLIER - FINANCE,HRA,External Legal Fees,C20008,0
London Borough of Sutton,25/01/2023,20043340,"2,133.50",Browne Jacobson LLP,FINANCIAL / INSURANCE INSTNS,HRA,Professional Fees,A44066,0
London Borough of Sutton,02/03/2023,50327408,"1,833.29",Brunel SEN Multi Academy Trust,CHILDREN'S SERVICES - SEN SERVICES,Peoples Services,Top-up Funding,A51016,0
London Borough of Sutton,07/03/2023,50324851,"8,562.38",Bumpsa Daisies Nurserys,GRANTS & EX GRATIA PAYMENTS,Peoples Services,Payment - Nursery Funding,A51056,0
London Borough of Sutton,07/03/2023,50324920,"10,967.04",Bumpsa Daisies Nurserys,GRANTS & EX GRATIA PAYMENTS,Peoples Services,Payment - Nursery Funding,A51056,0
London Borough of Sutton,07/03/2023,50325126,"1,103.40",Bumpsa Daisies Nurserys,GRANTS & EX GRATIA PAYMENTS,Peoples Services,Payment - Nursery Funding,A51056,0
London Borough of Sutton,07/03/2023,50325127,"1,305.60",Bumpsa Daisies Nurserys,GRANTS & EX GRATIA PAYMENTS,Peoples Services,Payment - Nursery Funding,A51056,0
London Borough of Sutton,15/09/2022,20043232,616.28,Business Energy Solutions Limited,UTILITIES,HRA,Electricity,A21000,0
London Borough of Sutton,15/10/2022,20043233,593.81,Business Energy Solutions Limited,UTILITIES,HRA,Electricity,A21000,0
London Borough of Sutton,07/03/2023,50324854,"1,125.47",Busy Bees Day Nurseries Ltd,GRANTS & EX GRATIA PAYMENTS,Peoples Services,Payment - Nursery Funding,A51056,0
London Borough of Sutton,07/03/2023,50324923,"17,925.73",Busy Bees Day Nurseries Ltd,GRANTS & EX GRATIA PAYMENTS,Peoples Services,Payment - Nursery Funding,A51056,0
London Borough of Sutton,07/03/2023,50324853,625.26,Busy Bees Day Nurseries Ltd,GRANTS & EX GRATIA PAYMENTS,Peoples Services,Payment - Nursery Funding,A51056,0
London Borough of Sutton,07/03/2023,50324922,"14,149.63",Busy Bees Day Nurseries Ltd,GRANTS & EX GRATIA PAYMENTS,Peoples Services,Payment - Nursery Funding,A51056,0
London Borough of Sutton,07/03/2023,50325108,"1,689.60",Busy Bees Day Nurseries Ltd,GRANTS & EX GRATIA PAYMENTS,Peoples Services,Payment - Nursery Funding,A51056,0
London Borough of Sutton,17/03/2023,50330761,"8,118.48",Butterfly's Care Homes Ltd,SOCIAL SERVICES RESIDENTIAL,Peoples Services,Residential Care - Ext Provider,A56114,0
London Borough of Sutton,01/03/2023,50328051,"2,687.72",By The Bridge Ltd,CHILDREN'S SERVICES - FOSTERING & ADOPTION SERVICES,Peoples Services,Foster Parents Support,A44110,0
London Borough of Sutton,01/03/2023,50328053,"2,687.72",By The Bridge Ltd,CHILDREN'S SERVICES - FOSTERING & ADOPTION SERVICES,Peoples Services,Foster Parents Support,A44110,0
London Borough of Sutton,01/03/2023,50328116,"4,215.40",By The Bridge Ltd,CHILDREN'S SERVICES - FOSTERING & ADOPTION SERVICES,Peoples Services,Foster Parents Support,A44110,0
London Borough of Sutton,14/03/2023,50334194,"2,975.69",By The Bridge Ltd,CHILDREN'S SERVICES - FOSTERING & ADOPTION SERVICES,Peoples Services,Foster Parents Support,A44110,0
London Borough of Sutton,14/03/2023,50334195,"2,975.69",By The Bridge Ltd,CHILDREN'S SERVICES - FOSTERING & ADOPTION SERVICES,Peoples Services,Foster Parents Support,A44110,0
London Borough of Sutton,14/03/2023,50334201,"4,667.05",By The Bridge Ltd,CHILDREN'S SERVICES - FOSTERING & ADOPTION SERVICES,Peoples Services,Foster Parents Support,A44110,0
London Borough of Sutton,23/01/2023,50328097,"22,015.84",Calcot Services for Children Ltd,CHILDREN'S SERVICES - FOSTERING & ADOPTION SERVICES,Peoples Services,Residential Care-Children,A56115,0
London Borough of Sutton,21/02/2023,50334192,"24,374.68",Calcot Services for Children Ltd,CHILDREN'S SERVICES - FOSTERING & ADOPTION SERVICES,Peoples Services,Residential Care-Children,A56115,0
London Borough of Sutton,23/02/2023,50323507,"4,207.14",Cambian Childcare Ltd,CHILDREN'S SERVICES - FOSTERING & ADOPTION SERVICES,Peoples Services,Independent School Fees,A56002,0
London Borough of Sutton,26/01/2023,50328068,"18,159.96",Cambian Childcare Ltd,CHILDREN'S SERVICES - FOSTERING & ADOPTION SERVICES,Peoples Services,Residential Care-Children,A56115,0
London Borough of Sutton,26/01/2023,50328136,"29,160.00",Cambian Childcare Ltd,CHILDREN'S SERVICES - FOSTERING & ADOPTION SERVICES,Peoples Services,Residential Care-Children,A56115,0
London Borough of Sutton,23/02/2023,50334233,"20,105.67",Cambian Childcare Ltd,CHILDREN'S SERVICES - FOSTERING & ADOPTION SERVICES,Peoples Services,Residential Care-Children,A56115,0
London Borough of Sutton,23/02/2023,50334241,"32,284.29",Cambian Childcare Ltd,CHILDREN'S SERVICES - FOSTERING & ADOPTION SERVICES,Peoples Services,Residential Care-Children,A56115,0
London Borough of Sutton,01/03/2023,20044292,"6,600.00",Canary Care Global Ltd,BUSINESS & COMPUTER SYSTEMS,Resources,Other Supplies & Services,A44291,0
London Borough of Sutton,17/03/2023,50330782,-965.84,Canterbury Oast Trust,SOCIAL SERVICES RESIDENTIAL,Peoples Services,Residential Care - Client Cont ( Net Paymt ),A56113,0
London Borough of Sutton,17/03/2023,50330782,204.72,Canterbury Oast Trust,SOCIAL SERVICES RESIDENTIAL,Peoples Services,One to One Care,A56108,0
London Borough of Sutton,17/03/2023,50330782,"4,060.72",Canterbury Oast Trust,SOCIAL SERVICES RESIDENTIAL,Peoples Services,Residential Care - Ext Provider,A56114,0
London Borough of Sutton,07/03/2023,50328079,"34,000.00",Canterbury Support Ltd,CHILDREN'S SERVICE - OTHER,Peoples Services,Residential Care-Children,A56115,0
London Borough of Sutton,28/02/2023,20044271,800.00,Capital Road Safety Ltd,SUNDRY SUPPLIER - ENV SERVICES,Environment Housing and Neighbourhoods,Payments to Contractors,C14000,0
London Borough of Sutton,28/02/2023,50328065,"5,143.92",Capstone Foster Care (South East) Ltd,CHILDREN'S SERVICES - FOSTERING & ADOPTION SERVICES,Peoples Services,Foster Parents Support,A44110,0
London Borough of Sutton,28/02/2023,50328114,"5,140.00",Capstone Foster Care (South East) Ltd,CHILDREN'S SERVICES - FOSTERING & ADOPTION SERVICES,Peoples Services,Foster Parents Support,A44110,0
London Borough of Sutton,31/03/2023,50334187,"5,690.67",Capstone Foster Care (South East) Ltd,CHILDREN'S SERVICES - FOSTERING & ADOPTION SERVICES,Peoples Services,Foster Parents Support,A44110,0
London Borough of Sutton,31/03/2023,50334236,"5,695.01",Capstone Foster Care (South East) Ltd,CHILDREN'S SERVICES - FOSTERING & ADOPTION SERVICES,Peoples Services,Foster Parents Support,A44110,0
London Borough of Sutton,24/02/2023,50323294,"2,405.16",Care Advocates Ltd,MANAGEMENT & TRAINING SERVICES,Peoples Services,Supported Living,A56088,0
London Borough of Sutton,24/02/2023,50323294,"1,403.92",Care Advocates Ltd,MANAGEMENT & TRAINING SERVICES,Peoples Services,Supported Living,A56088,0
London Borough of Sutton,24/02/2023,50323294,"1,122.28",Care Advocates Ltd,MANAGEMENT & TRAINING SERVICES,Peoples Services,Supported Living,A56088,0
London Borough of Sutton,24/02/2023,50323295,"1,632.08",Care Advocates Ltd,MANAGEMENT & TRAINING SERVICES,Peoples Services,Supported Living,A56088,0
London Borough of Sutton,24/02/2023,50323295,952.66,Care Advocates Ltd,MANAGEMENT & TRAINING SERVICES,Peoples Services,Supported Living,A56088,0
London Borough of Sutton,24/02/2023,50323295,761.54,Care Advocates Ltd,MANAGEMENT & TRAINING SERVICES,Peoples Services,Supported Living,A56088,0
London Borough of Sutton,28/02/2023,50326640,"1,626.44",Care Advocates Ltd,MANAGEMENT & TRAINING SERVICES,Peoples Services,Supported Living,A56088,0
London Borough of Sutton,28/02/2023,50326640,"2,227.20",Care Advocates Ltd,MANAGEMENT & TRAINING SERVICES,Peoples Services,Supported Living,A56088,0
London Borough of Sutton,28/02/2023,50326640,"2,324.28",Care Advocates Ltd,MANAGEMENT & TRAINING SERVICES,Peoples Services,Supported Living,A56088,0
London Borough of Sutton,28/02/2023,50326645,"3,531.36",Care Advocates Ltd,MANAGEMENT & TRAINING SERVICES,Peoples Services,Supported Living,A56088,0
London Borough of Sutton,28/02/2023,50326645,"2,688.00",Care Advocates Ltd,MANAGEMENT & TRAINING SERVICES,Peoples Services,Supported Living,A56088,0
London Borough of Sutton,28/02/2023,50326645,"2,324.28",Care Advocates Ltd,MANAGEMENT & TRAINING SERVICES,Peoples Services,Supported Living,A56088,0
London Borough of Sutton,28/02/2023,50326646,"-3,283.28",Care Advocates Ltd,MANAGEMENT & TRAINING SERVICES,Peoples Services,Supported Living,A56088,0
London Borough of Sutton,28/02/2023,50326646,"5,913.60",Care Advocates Ltd,MANAGEMENT & TRAINING SERVICES,Peoples Services,Supported Living,A56088,0
London Borough of Sutton,28/02/2023,50326646,"2,324.28",Care Advocates Ltd,MANAGEMENT & TRAINING SERVICES,Peoples Services,Supported Living,A56088,0
London Borough of Sutton,17/03/2023,50330886,"-1,700.00",Care Assist Ltd.,SOCIAL SERVICES RESIDENTIAL,Peoples Services,Nursing Care - 3rd party top up payment,A56023,0
London Borough of Sutton,17/03/2023,50330886,"20,400.00",Care Assist Ltd.,SOCIAL SERVICES RESIDENTIAL,Peoples Services,Residential Care - Ext Provider,A56114,0
London Borough of Sutton,17/03/2023,50330809,"3,320.32",Care Concern Group,SOCIAL SERVICES RESIDENTIAL,Peoples Services,Residential Care - Ext Provider,A56114,0
London Borough of Sutton,20/03/2023,50331476,"2,070.36",Care Connexions UK Limited,SOCIAL SERVICES RESIDENTIAL,Peoples Services,One to One Care,A56108,0
London Borough of Sutton,17/03/2023,50330832,"3,768.36",Care Direct Uk Ltd,SOCIAL SERVICES RESIDENTIAL,Peoples Services,Residential Care - Ext Provider,A56114,0
London Borough of Sutton,28/02/2023,50328152,"10,087.00",Care Hubz Ltd,CHILDREN'S SERVICE - OTHER,Peoples Services,Residential Care-Children,A56115,0
London Borough of Sutton,31/03/2023,50334188,"44,671.00",Care Hubz Ltd,CHILDREN'S SERVICE - OTHER,Peoples Services,Residential Care-Children,A56115,0
London Borough of Sutton,28/11/2022,50322809,773.54,Care More Ltd,SOCIAL SERVICES RESIDENTIAL,Peoples Services,Home Care Services,A56019,0
London Borough of Sutton,14/11/2022,50322816,773.54,Care More Ltd,SOCIAL SERVICES RESIDENTIAL,Peoples Services,Home Care Services,A56019,0
London Borough of Sutton,19/02/2023,50324135,826.00,Care More Ltd,SOCIAL SERVICES RESIDENTIAL,Peoples Services,Home Care Services,A56019,0
London Borough of Sutton,19/02/2023,50324157,917.07,Care More Ltd,SOCIAL SERVICES RESIDENTIAL,Peoples Services,Home Care Services,A56019,0
London Borough of Sutton,19/02/2023,50324174,591.54,Care More Ltd,SOCIAL SERVICES RESIDENTIAL,Peoples Services,Home Care Services,A56019,0
London Borough of Sutton,19/02/2023,50324177,773.54,Care More Ltd,SOCIAL SERVICES RESIDENTIAL,Peoples Services,Home Care Services,A56019,0
London Borough of Sutton,19/02/2023,50324193,568.77,Care More Ltd,SOCIAL SERVICES RESIDENTIAL,Peoples Services,Home Care Services,A56019,0
London Borough of Sutton,19/02/2023,50324195,773.54,Care More Ltd,SOCIAL SERVICES RESIDENTIAL,Peoples Services,Home Care Services,A56019,0
London Borough of Sutton,19/02/2023,50324195,45.50,Care More Ltd,SOCIAL SERVICES RESIDENTIAL,Peoples Services,Home Care Services,A56019,0
London Borough of Sutton,19/02/2023,50324237,893.54,Care More Ltd,SOCIAL SERVICES RESIDENTIAL,Peoples Services,Home Care Services,A56019,0
London Borough of Sutton,19/02/2023,50324244,773.54,Care More Ltd,SOCIAL SERVICES RESIDENTIAL,Peoples Services,Home Care Services,A56019,0
London Borough of Sutton,19/02/2023,50324245,787.54,Care More Ltd,SOCIAL SERVICES RESIDENTIAL,Peoples Services,Home Care Services,A56019,0
London Borough of Sutton,19/02/2023,50324253,728.00,Care More Ltd,SOCIAL SERVICES RESIDENTIAL,Peoples Services,Home Care Services,A56019,0
London Borough of Sutton,19/02/2023,50324259,20.00,Care More Ltd,SOCIAL SERVICES RESIDENTIAL,Peoples Services,Home Care Services,A56019,0
London Borough of Sutton,19/02/2023,50324259,917.07,Care More Ltd,SOCIAL SERVICES RESIDENTIAL,Peoples Services,Home Care Services,A56019,0
London Borough of Sutton,19/02/2023,50324279,773.54,Care More Ltd,SOCIAL SERVICES RESIDENTIAL,Peoples Services,Home Care Services,A56019,0
London Borough of Sutton,19/02/2023,50324311,962.61,Care More Ltd,SOCIAL SERVICES RESIDENTIAL,Peoples Services,Home Care Services,A56019,0
London Borough of Sutton,05/03/2023,50329805,773.54,Care More Ltd,SOCIAL SERVICES RESIDENTIAL,Peoples Services,Home Care Services,A56019,0
London Borough of Sutton,05/03/2023,50329807,773.54,Care More Ltd,SOCIAL SERVICES RESIDENTIAL,Peoples Services,Home Care Services,A56019,0
London Borough of Sutton,05/03/2023,50329809,773.54,Care More Ltd,SOCIAL SERVICES RESIDENTIAL,Peoples Services,Home Care Services,A56019,0
London Borough of Sutton,05/03/2023,50329832,962.61,Care More Ltd,SOCIAL SERVICES RESIDENTIAL,Peoples Services,Home Care Services,A56019,0
London Borough of Sutton,05/03/2023,50329842,591.54,Care More Ltd,SOCIAL SERVICES RESIDENTIAL,Peoples Services,Home Care Services,A56019,0
London Borough of Sutton,05/03/2023,50329851,893.54,Care More Ltd,SOCIAL SERVICES RESIDENTIAL,Peoples Services,Home Care Services,A56019,0
London Borough of Sutton,05/03/2023,50329853,787.54,Care More Ltd,SOCIAL SERVICES RESIDENTIAL,Peoples Services,Home Care Services,A56019,0
London Borough of Sutton,05/03/2023,50329854,728.00,Care More Ltd,SOCIAL SERVICES RESIDENTIAL,Peoples Services,Home Care Services,A56019,0
London Borough of Sutton,05/03/2023,50329855,20.00,Care More Ltd,SOCIAL SERVICES RESIDENTIAL,Peoples Services,Home Care Services,A56019,0
London Borough of Sutton,05/03/2023,50329855,927.07,Care More Ltd,SOCIAL SERVICES RESIDENTIAL,Peoples Services,Home Care Services,A56019,0
London Borough of Sutton,05/03/2023,50329857,773.54,Care More Ltd,SOCIAL SERVICES RESIDENTIAL,Peoples Services,Home Care Services,A56019,0
London Borough of Sutton,05/03/2023,50329857,45.50,Care More Ltd,SOCIAL SERVICES RESIDENTIAL,Peoples Services,Home Care Services,A56019,0
London Borough of Sutton,05/03/2023,50329858,826.00,Care More Ltd,SOCIAL SERVICES RESIDENTIAL,Peoples Services,Home Care Services,A56019,0
London Borough of Sutton,21/03/2023,50331408,"9,069.86",Care More Ltd,SOCIAL SERVICES RESIDENTIAL,Peoples Services,Home Care Services,A56019,0
London Borough of Sutton,12/03/2023,50331837,773.54,Care More Ltd,SOCIAL SERVICES RESIDENTIAL,Peoples Services,Home Care Services,A56019,0
London Borough of Sutton,12/03/2023,50331856,773.54,Care More Ltd,SOCIAL SERVICES RESIDENTIAL,Peoples Services,Home Care Services,A56019,0
London Borough of Sutton,12/03/2023,50331856,45.50,Care More Ltd,SOCIAL SERVICES RESIDENTIAL,Peoples Services,Home Care Services,A56019,0
London Borough of Sutton,12/03/2023,50331895,773.54,Care More Ltd,SOCIAL SERVICES RESIDENTIAL,Peoples Services,Home Care Services,A56019,0
London Borough of Sutton,12/03/2023,50331896,787.54,Care More Ltd,SOCIAL SERVICES RESIDENTIAL,Peoples Services,Home Care Services,A56019,0
London Borough of Sutton,12/03/2023,50331897,728.00,Care More Ltd,SOCIAL SERVICES RESIDENTIAL,Peoples Services,Home Care Services,A56019,0
London Borough of Sutton,12/03/2023,50331898,33.00,Care More Ltd,SOCIAL SERVICES RESIDENTIAL,Peoples Services,Home Care Services,A56019,0
London Borough of Sutton,12/03/2023,50331898,904.07,Care More Ltd,SOCIAL SERVICES RESIDENTIAL,Peoples Services,Home Care Services,A56019,0
London Borough of Sutton,12/03/2023,50331899,826.00,Care More Ltd,SOCIAL SERVICES RESIDENTIAL,Peoples Services,Home Care Services,A56019,0
London Borough of Sutton,12/03/2023,50332009,591.54,Care More Ltd,SOCIAL SERVICES RESIDENTIAL,Peoples Services,Home Care Services,A56019,0
London Borough of Sutton,12/03/2023,50332035,893.54,Care More Ltd,SOCIAL SERVICES RESIDENTIAL,Peoples Services,Home Care Services,A56019,0
London Borough of Sutton,05/02/2023,50334614,773.54,Care More Ltd,SOCIAL SERVICES RESIDENTIAL,Peoples Services,Home Care Services,A56019,0
London Borough of Sutton,05/02/2023,50334616,787.54,Care More Ltd,SOCIAL SERVICES RESIDENTIAL,Peoples Services,Home Care Services,A56019,0
London Borough of Sutton,05/02/2023,50334617,728.00,Care More Ltd,SOCIAL SERVICES RESIDENTIAL,Peoples Services,Home Care Services,A56019,0
London Borough of Sutton,05/02/2023,50334621,20.00,Care More Ltd,SOCIAL SERVICES RESIDENTIAL,Peoples Services,Home Care Services,A56019,0
London Borough of Sutton,05/02/2023,50334621,927.07,Care More Ltd,SOCIAL SERVICES RESIDENTIAL,Peoples Services,Home Care Services,A56019,0
London Borough of Sutton,05/02/2023,50334626,773.54,Care More Ltd,SOCIAL SERVICES RESIDENTIAL,Peoples Services,Home Care Services,A56019,0
London Borough of Sutton,05/02/2023,50334626,45.50,Care More Ltd,SOCIAL SERVICES RESIDENTIAL,Peoples Services,Home Care Services,A56019,0
London Borough of Sutton,05/02/2023,50334635,826.00,Care More Ltd,SOCIAL SERVICES RESIDENTIAL,Peoples Services,Home Care Services,A56019,0
London Borough of Sutton,05/02/2023,50334642,773.54,Care More Ltd,SOCIAL SERVICES RESIDENTIAL,Peoples Services,Home Care Services,A56019,0
London Borough of Sutton,10/03/2023,50335478,917.07,Care More Ltd,SOCIAL SERVICES RESIDENTIAL,Peoples Services,Home Care Services,A56019,0
London Borough of Sutton,13/03/2023,50335481,917.07,Care More Ltd,SOCIAL SERVICES RESIDENTIAL,Peoples Services,Home Care Services,A56019,0
London Borough of Sutton,21/03/2023,50335566,-454.98,Care More Ltd,SOCIAL SERVICES RESIDENTIAL,Peoples Services,Home Care Services,A56019,0
London Borough of Sutton,21/03/2023,50335566,"1,023.75",Care More Ltd,SOCIAL SERVICES RESIDENTIAL,Peoples Services,Home Care Services,A56019,0
London Borough of Sutton,10/03/2023,50335567,364.02,Care More Ltd,SOCIAL SERVICES RESIDENTIAL,Peoples Services,Home Care Services,A56019,0
London Borough of Sutton,10/03/2023,50335567,204.75,Care More Ltd,SOCIAL SERVICES RESIDENTIAL,Peoples Services,Home Care Services,A56019,0
London Borough of Sutton,05/02/2023,50335577,591.54,Care More Ltd,SOCIAL SERVICES RESIDENTIAL,Peoples Services,Home Care Services,A56019,0
London Borough of Sutton,05/02/2023,50335579,773.54,Care More Ltd,SOCIAL SERVICES RESIDENTIAL,Peoples Services,Home Care Services,A56019,0
London Borough of Sutton,12/03/2023,50335580,819.07,Care More Ltd,SOCIAL SERVICES RESIDENTIAL,Peoples Services,Home Care Services,A56019,0
London Borough of Sutton,17/03/2023,50330827,-438.80,Care UK Homecare Ltd,SOCIAL SERVICES RESIDENTIAL,Peoples Services,Residential Care - Client Cont ( Net Paymt ),A56113,0
London Borough of Sutton,17/03/2023,50330827,"4,772.96",Care UK Homecare Ltd,SOCIAL SERVICES RESIDENTIAL,Peoples Services,Residential Care - Ext Provider,A56114,0
London Borough of Sutton,17/03/2023,50330829,"2,042.86",Care UK Homecare Ltd,SOCIAL SERVICES RESIDENTIAL,Peoples Services,Residential Care - Ext Provider,A56114,0
London Borough of Sutton,17/03/2023,50330985,"3,960.00",Care UK Homecare Ltd,SOCIAL SERVICES RESIDENTIAL,Peoples Services,Nursing Care - Ext Provider,A56025,0
London Borough of Sutton,17/03/2023,50330985,-836.76,Care UK Homecare Ltd,SOCIAL SERVICES RESIDENTIAL,Peoples Services,Nursing Care - 3rd party top up payment,A56023,0
London Borough of Sutton,17/03/2023,50331096,-119.54,Care UK Homecare Ltd,SOCIAL SERVICES RESIDENTIAL,Peoples Services,Nursing Care - 3rd party top up payment,A56023,0
London Borough of Sutton,17/03/2023,50331096,"1,200.00",Care UK Homecare Ltd,SOCIAL SERVICES RESIDENTIAL,Peoples Services,Nursing Care Short Term,A56026,0
London Borough of Sutton,17/03/2023,50331097,-662.24,Care UK Homecare Ltd,SOCIAL SERVICES RESIDENTIAL,Peoples Services,Nursing Care - 3rd party top up payment,A56023,0
London Borough of Sutton,17/03/2023,50331097,"3,696.24",Care UK Homecare Ltd,SOCIAL SERVICES RESIDENTIAL,Peoples Services,Nursing Care - Ext Provider,A56025,0
London Borough of Sutton,17/03/2023,50331204,"15,471.43",Care UK Homecare Ltd,SOCIAL SERVICES RESIDENTIAL,Peoples Services,Nursing Care - Ext Provider,A56025,0
London Borough of Sutton,17/03/2023,50331204,"-2,839.01",Care UK Homecare Ltd,SOCIAL SERVICES RESIDENTIAL,Peoples Services,Nursing Care - 3rd party top up payment,A56023,0
London Borough of Sutton,05/03/2023,50334583,"5,931.52",Care Unlimited Domcare Ltd,SOCIAL SERVICES DAY CARE,Peoples Services,Supported Living,A56088,0
London Borough of Sutton,20/03/2023,50334584,"1,284.00",Care Unlimited Domcare Ltd,SOCIAL SERVICES DAY CARE,Peoples Services,Supported Living,A56088,0
London Borough of Sutton,20/03/2023,50334584,410.56,Care Unlimited Domcare Ltd,SOCIAL SERVICES DAY CARE,Peoples Services,Supported Living,A56088,0
London Borough of Sutton,20/03/2023,50334584,"1,056.88",Care Unlimited Domcare Ltd,SOCIAL SERVICES DAY CARE,Peoples Services,Supported Living,A56088,0
London Borough of Sutton,20/03/2023,50334584,"2,311.20",Care Unlimited Domcare Ltd,SOCIAL SERVICES DAY CARE,Peoples Services,Supported Living,A56088,0
London Borough of Sutton,20/03/2023,50334585,"1,284.00",Care Unlimited Domcare Ltd,SOCIAL SERVICES DAY CARE,Peoples Services,Supported Living,A56088,0
London Borough of Sutton,20/03/2023,50334585,410.56,Care Unlimited Domcare Ltd,SOCIAL SERVICES DAY CARE,Peoples Services,Supported Living,A56088,0
London Borough of Sutton,20/03/2023,50334585,"1,056.88",Care Unlimited Domcare Ltd,SOCIAL SERVICES DAY CARE,Peoples Services,Supported Living,A56088,0
London Borough of Sutton,20/03/2023,50334585,"2,311.20",Care Unlimited Domcare Ltd,SOCIAL SERVICES DAY CARE,Peoples Services,Supported Living,A56088,0
London Borough of Sutton,20/03/2023,50334586,"1,284.00",Care Unlimited Domcare Ltd,SOCIAL SERVICES DAY CARE,Peoples Services,Supported Living,A56088,0
London Borough of Sutton,20/03/2023,50334586,410.56,Care Unlimited Domcare Ltd,SOCIAL SERVICES DAY CARE,Peoples Services,Supported Living,A56088,0
London Borough of Sutton,20/03/2023,50334586,"1,056.88",Care Unlimited Domcare Ltd,SOCIAL SERVICES DAY CARE,Peoples Services,Supported Living,A56088,0
London Borough of Sutton,20/03/2023,50334586,"2,311.20",Care Unlimited Domcare Ltd,SOCIAL SERVICES DAY CARE,Peoples Services,Supported Living,A56088,0
London Borough of Sutton,03/03/2023,50325852,"3,606.40",Care4Care Services Ltd,SOCIAL SERVICES DAY CARE,Peoples Services,Home Care Services,A56019,0
London Borough of Sutton,03/03/2023,50325853,955.20,Care4Care Services Ltd,SOCIAL SERVICES DAY CARE,Peoples Services,Home Care Services,A56019,0
London Borough of Sutton,03/03/2023,50325876,"3,606.40",Care4Care Services Ltd,SOCIAL SERVICES DAY CARE,Peoples Services,Home Care Services,A56019,0
London Borough of Sutton,03/03/2023,50325877,"1,711.20",Care4Care Services Ltd,SOCIAL SERVICES DAY CARE,Peoples Services,Home Care Services,A56019,0
London Borough of Sutton,03/03/2023,50325878,"1,306.70",Care4Care Services Ltd,SOCIAL SERVICES DAY CARE,Peoples Services,Home Care Services,A56019,0
London Borough of Sutton,03/03/2023,50325880,769.70,Care4Care Services Ltd,SOCIAL SERVICES DAY CARE,Peoples Services,Home Care Services,A56019,0
London Borough of Sutton,03/03/2023,50325883,"1,044.00",Care4Care Services Ltd,SOCIAL SERVICES DAY CARE,Peoples Services,Home Care Services,A56019,0
London Borough of Sutton,03/03/2023,50325883,107.40,Care4Care Services Ltd,SOCIAL SERVICES DAY CARE,Peoples Services,Home Care Services,A56019,0
London Borough of Sutton,03/03/2023,50325885,812.00,Care4Care Services Ltd,SOCIAL SERVICES DAY CARE,Peoples Services,Home Care Services,A56019,0
London Borough of Sutton,03/03/2023,50327030,"1,599.00",Care4Care Services Ltd,SOCIAL SERVICES DAY CARE,Peoples Services,Home Care Services,A56019,0
London Borough of Sutton,03/03/2023,50327031,"1,317.70",Care4Care Services Ltd,SOCIAL SERVICES DAY CARE,Peoples Services,Home Care Services,A56019,0
London Borough of Sutton,03/03/2023,50327035,"2,147.40",Care4Care Services Ltd,SOCIAL SERVICES DAY CARE,Peoples Services,Home Care Services,A56019,0
London Borough of Sutton,21/03/2023,50331407,"2,613.35",Care4Care Services Ltd,SOCIAL SERVICES DAY CARE,Peoples Services,Home Care Services,A56019,0
London Borough of Sutton,17/03/2023,50330864,"68,412.86",CAREBASE (CLARE) LTD,SOCIAL SERVICES RESIDENTIAL,Peoples Services,Nursing Care - Ext Provider,A56025,0
London Borough of Sutton,31/01/2023,20043006,"33,379.06",Careium UK Limited,ACCOMMODATION - OTHER,Peoples Services,Other Agencies - Third Party,A57000,0
London Borough of Sutton,21/02/2023,20043423,820.00,Careium UK Limited,ACCOMMODATION - OTHER,HRA,Supporting People - Alarm Services,A61023,0
London Borough of Sutton,06/12/2022,20044021,820.00,Careium UK Limited,ACCOMMODATION - OTHER,HRA,Supporting People - Alarm Services,A61023,0
London Borough of Sutton,04/10/2022,20044022,820.00,Careium UK Limited,ACCOMMODATION - OTHER,HRA,Supporting People - Alarm Services,A61023,0
London Borough of Sutton,04/11/2022,20044023,820.00,Careium UK Limited,ACCOMMODATION - OTHER,HRA,Supporting People - Alarm Services,A61023,0
London Borough of Sutton,12/02/2023,50326479,"1,009.00",Caremark (Sutton),SOCIAL SERVICES DAY CARE,Peoples Services,Home Care Services,A56019,0
London Borough of Sutton,19/02/2023,50326533,540.75,Caremark (Sutton),SOCIAL SERVICES DAY CARE,Peoples Services,Home Care Services,A56019,0
London Borough of Sutton,19/02/2023,50326536,803.37,Caremark (Sutton),SOCIAL SERVICES DAY CARE,Peoples Services,Home Care Services,A56019,0
London Borough of Sutton,19/02/2023,50326536,32.25,Caremark (Sutton),SOCIAL SERVICES DAY CARE,Peoples Services,Home Care Services,A56019,0
London Borough of Sutton,19/02/2023,50326538,"1,943.00",Caremark (Sutton),SOCIAL SERVICES DAY CARE,Peoples Services,Home Care Services,A56019,0
London Borough of Sutton,19/02/2023,50326542,500.41,Caremark (Sutton),SOCIAL SERVICES DAY CARE,Peoples Services,Home Care Services,A56019,0
London Borough of Sutton,19/02/2023,50326545,580.36,Caremark (Sutton),SOCIAL SERVICES DAY CARE,Peoples Services,Home Care Services,A56019,0
London Borough of Sutton,19/02/2023,50326558,"1,053.30",Caremark (Sutton),SOCIAL SERVICES DAY CARE,Peoples Services,Home Care Services,A56019,0
London Borough of Sutton,19/02/2023,50326559,685.00,Caremark (Sutton),SOCIAL SERVICES DAY CARE,Peoples Services,Home Care Services,A56019,0
London Borough of Sutton,19/02/2023,50326569,938.37,Caremark (Sutton),SOCIAL SERVICES DAY CARE,Peoples Services,Home Care Services,A56019,0
London Borough of Sutton,26/02/2023,50327263,540.75,Caremark (Sutton),SOCIAL SERVICES DAY CARE,Peoples Services,Home Care Services,A56019,0
London Borough of Sutton,26/02/2023,50327279,803.37,Caremark (Sutton),SOCIAL SERVICES DAY CARE,Peoples Services,Home Care Services,A56019,0
London Borough of Sutton,26/02/2023,50327279,32.25,Caremark (Sutton),SOCIAL SERVICES DAY CARE,Peoples Services,Home Care Services,A56019,0
London Borough of Sutton,26/02/2023,50327281,"1,897.00",Caremark (Sutton),SOCIAL SERVICES DAY CARE,Peoples Services,Home Care Services,A56019,0
London Borough of Sutton,26/02/2023,50327290,500.41,Caremark (Sutton),SOCIAL SERVICES DAY CARE,Peoples Services,Home Care Services,A56019,0
London Borough of Sutton,26/02/2023,50327307,580.36,Caremark (Sutton),SOCIAL SERVICES DAY CARE,Peoples Services,Home Care Services,A56019,0
London Borough of Sutton,26/02/2023,50327314,"1,053.30",Caremark (Sutton),SOCIAL SERVICES DAY CARE,Peoples Services,Home Care Services,A56019,0
London Borough of Sutton,26/02/2023,50327318,"1,009.00",Caremark (Sutton),SOCIAL SERVICES DAY CARE,Peoples Services,Home Care Services,A56019,0
London Borough of Sutton,26/02/2023,50327321,938.37,Caremark (Sutton),SOCIAL SERVICES DAY CARE,Peoples Services,Home Care Services,A56019,0
London Borough of Sutton,06/03/2023,50327445,750.00,Caremark (Sutton),SOCIAL SERVICES DAY CARE,Peoples Services,Miscellaneous Expenses,A49000,0
London Borough of Sutton,05/03/2023,50330205,"1,053.30",Caremark (Sutton),SOCIAL SERVICES DAY CARE,Peoples Services,Home Care Services,A56019,0
London Borough of Sutton,05/03/2023,50330213,938.37,Caremark (Sutton),SOCIAL SERVICES DAY CARE,Peoples Services,Home Care Services,A56019,0
London Borough of Sutton,05/03/2023,50330312,540.75,Caremark (Sutton),SOCIAL SERVICES DAY CARE,Peoples Services,Home Care Services,A56019,0
London Borough of Sutton,05/03/2023,50330322,803.37,Caremark (Sutton),SOCIAL SERVICES DAY CARE,Peoples Services,Home Care Services,A56019,0
London Borough of Sutton,05/03/2023,50330322,32.25,Caremark (Sutton),SOCIAL SERVICES DAY CARE,Peoples Services,Home Care Services,A56019,0
London Borough of Sutton,05/03/2023,50330324,"1,897.00",Caremark (Sutton),SOCIAL SERVICES DAY CARE,Peoples Services,Home Care Services,A56019,0
London Borough of Sutton,05/03/2023,50330348,580.36,Caremark (Sutton),SOCIAL SERVICES DAY CARE,Peoples Services,Home Care Services,A56019,0
London Borough of Sutton,21/03/2023,50331409,"6,149.06",Caremark (Sutton),SOCIAL SERVICES DAY CARE,Peoples Services,Home Care Services,A56019,0
London Borough of Sutton,26/02/2023,50332080,"1,658.95",Caremark (Sutton),SOCIAL SERVICES DAY CARE,Peoples Services,Home Care Services,A56019,0
London Borough of Sutton,19/02/2023,50332081,833.47,Caremark (Sutton),SOCIAL SERVICES DAY CARE,Peoples Services,Home Care Services,A56019,0
London Borough of Sutton,05/03/2023,50332107,"1,658.95",Caremark (Sutton),SOCIAL SERVICES DAY CARE,Peoples Services,Home Care Services,A56019,0
London Borough of Sutton,12/03/2023,50332142,"1,897.00",Caremark (Sutton),SOCIAL SERVICES DAY CARE,Peoples Services,Home Care Services,A56019,0
London Borough of Sutton,12/03/2023,50332152,540.75,Caremark (Sutton),SOCIAL SERVICES DAY CARE,Peoples Services,Home Care Services,A56019,0
London Borough of Sutton,12/03/2023,50332153,778.57,Caremark (Sutton),SOCIAL SERVICES DAY CARE,Peoples Services,Home Care Services,A56019,0
London Borough of Sutton,12/03/2023,50332153,31.25,Caremark (Sutton),SOCIAL SERVICES DAY CARE,Peoples Services,Home Care Services,A56019,0
London Borough of Sutton,12/03/2023,50332155,500.41,Caremark (Sutton),SOCIAL SERVICES DAY CARE,Peoples Services,Home Care Services,A56019,0
London Borough of Sutton,12/03/2023,50332163,580.36,Caremark (Sutton),SOCIAL SERVICES DAY CARE,Peoples Services,Home Care Services,A56019,0
London Borough of Sutton,12/03/2023,50332176,938.37,Caremark (Sutton),SOCIAL SERVICES DAY CARE,Peoples Services,Home Care Services,A56019,0
London Borough of Sutton,12/03/2023,50332199,"1,053.30",Caremark (Sutton),SOCIAL SERVICES DAY CARE,Peoples Services,Home Care Services,A56019,0
London Borough of Sutton,28/11/2022,50332472,750.00,Caremark (Sutton),SOCIAL SERVICES DAY CARE,Peoples Services,Miscellaneous Expenses,A49000,0
London Borough of Sutton,14/11/2022,50332473,750.00,Caremark (Sutton),SOCIAL SERVICES DAY CARE,Peoples Services,Miscellaneous Expenses,A49000,0
London Borough of Sutton,12/03/2023,50334691,"1,658.95",Caremark (Sutton),SOCIAL SERVICES DAY CARE,Peoples Services,Home Care Services,A56019,0
London Borough of Sutton,20/03/2023,50334882,750.00,Caremark (Sutton),SOCIAL SERVICES DAY CARE,Peoples Services,Miscellaneous Expenses,A49000,0
London Borough of Sutton,13/03/2023,50330742,"9,997.50",Caremore Group Ltd,CHILDREN'S SERVICES - FOSTERING & ADOPTION SERVICES,Peoples Services,Approved Lodgings,A61000,0
London Borough of Sutton,13/03/2023,50330743,"9,030.00",Caremore Group Ltd,CHILDREN'S SERVICES - FOSTERING & ADOPTION SERVICES,Peoples Services,Approved Lodgings,A61000,0
London Borough of Sutton,17/03/2023,50331098,"6,030.96",Caretech Community Services Ltd,SOCIAL SERVICES RESIDENTIAL,Peoples Services,Residential Care - Ext Provider,A56114,0
London Borough of Sutton,17/03/2023,50331098,-627.80,Caretech Community Services Ltd,SOCIAL SERVICES RESIDENTIAL,Peoples Services,Residential Care - Client Cont ( Net Paymt ),A56113,0
London Borough of Sutton,17/03/2023,50331206,"5,621.56",Caretech Community Services Ltd,SOCIAL SERVICES RESIDENTIAL,Peoples Services,Residential Care - Ext Provider,A56114,0
London Borough of Sutton,17/03/2023,50331266,"5,879.88",Caretech Community Services Ltd,SOCIAL SERVICES RESIDENTIAL,Peoples Services,Residential Care - Ext Provider,A56114,0
London Borough of Sutton,17/03/2023,50331266,-710.00,Caretech Community Services Ltd,SOCIAL SERVICES RESIDENTIAL,Peoples Services,Residential Care - Client Cont ( Net Paymt ),A56113,0
London Borough of Sutton,07/03/2023,50324748,"4,076.70",Carew Academy,CHILDREN'S SERVICES - RESIDENTIAL,Peoples Services,Payment - Teachers Pay Grant,A51026,0
London Borough of Sutton,07/03/2023,50324755,"11,296.86",Carew Academy,CHILDREN'S SERVICES - RESIDENTIAL,Peoples Services,Payment - Teachers Pension Grant,A51027,0
London Borough of Sutton,07/03/2023,50331317,"1,770.00",Carew Academy,CHILDREN'S SERVICES - RESIDENTIAL,Resources,"Grants, Contributions & Donations",A47005,0
London Borough of Sutton,28/02/2023,20044199,"4,100.00",Caridon Young Living Ltd,CHILDREN'S SERVICES - RESIDENTIAL,Peoples Services,Approved Lodgings,A61000,0
London Borough of Sutton,28/02/2023,20044200,"3,600.00",Caridon Young Living Ltd,CHILDREN'S SERVICES - RESIDENTIAL,Peoples Services,Approved Lodgings,A61000,0
London Borough of Sutton,28/02/2023,20044201,"2,796.00",Caridon Young Living Ltd,CHILDREN'S SERVICES - RESIDENTIAL,Peoples Services,Approved Lodgings,A61000,0
London Borough of Sutton,28/02/2023,50328148,"12,700.00",Caridon Young Living Ltd,CHILDREN'S SERVICES - RESIDENTIAL,Peoples Services,Approved Lodgings,A61000,0
London Borough of Sutton,28/02/2023,50328148,250.00,Caridon Young Living Ltd,CHILDREN'S SERVICES - RESIDENTIAL,Peoples Services,Approved Lodgings,A61000,0
London Borough of Sutton,20/03/2023,50334212,"2,692.86",Caridon Young Living Ltd,CHILDREN'S SERVICES - RESIDENTIAL,Peoples Services,Approved Lodgings,A61000,0
London Borough of Sutton,20/03/2023,50331490,"2,147.86",Care Support Partners Ltd,SOCIAL SERVICES RESIDENTIAL,Peoples Services,Supported Living,A56088,0
London Borough of Sutton,20/03/2023,50331490,792.72,Care Support Partners Ltd,SOCIAL SERVICES RESIDENTIAL,Peoples Services,Supported Living,A56088,0
London Borough of Sutton,20/03/2023,50331490,634.18,Care Support Partners Ltd,SOCIAL SERVICES RESIDENTIAL,Peoples Services,Supported Living,A56088,0
London Borough of Sutton,02/03/2023,50326638,712.08,Carlene House,SOCIAL SERVICES RESIDENTIAL,Peoples Services,Supported Living,A56088,0
London Borough of Sutton,02/03/2023,50326638,"1,898.64",Carlene House,SOCIAL SERVICES RESIDENTIAL,Peoples Services,Supported Living,A56088,0
London Borough of Sutton,02/03/2023,50326638,"1,312.88",Carlene House,SOCIAL SERVICES RESIDENTIAL,Peoples Services,Supported Living,A56088,0
London Borough of Sutton,02/03/2023,50326650,712.08,Carlene House,SOCIAL SERVICES RESIDENTIAL,Peoples Services,Supported Living,A56088,0
London Borough of Sutton,02/03/2023,50326650,984.48,Carlene House,SOCIAL SERVICES RESIDENTIAL,Peoples Services,Supported Living,A56088,0
London Borough of Sutton,02/03/2023,50326650,"1,312.88",Carlene House,SOCIAL SERVICES RESIDENTIAL,Peoples Services,Supported Living,A56088,0
London Borough of Sutton,06/03/2023,50327534,964.60,Carlene House,SOCIAL SERVICES RESIDENTIAL,Peoples Services,Supported Living,A56088,0
London Borough of Sutton,06/03/2023,50327535,"1,335.60",Carlene House,SOCIAL SERVICES RESIDENTIAL,Peoples Services,Supported Living,A56088,0
London Borough of Sutton,06/03/2023,50327536,"1,187.20",Carlene House,SOCIAL SERVICES RESIDENTIAL,Peoples Services,Supported Living,A56088,0
London Borough of Sutton,06/03/2023,50327537,"3,524.52",Carlene House,SOCIAL SERVICES RESIDENTIAL,Peoples Services,Supported Living,A56088,0
London Borough of Sutton,06/03/2023,50327539,"1,409.80",Carlene House,SOCIAL SERVICES RESIDENTIAL,Peoples Services,Supported Living,A56088,0
London Borough of Sutton,17/03/2023,50330921,"5,684.08",Carlene House,SOCIAL SERVICES RESIDENTIAL,Peoples Services,Residential Care - Ext Provider,A56114,0
London Borough of Sutton,17/03/2023,50330935,"5,684.08",Carlene House,SOCIAL SERVICES RESIDENTIAL,Peoples Services,Residential Care - Ext Provider,A56114,0
London Borough of Sutton,17/03/2023,50330936,"5,684.08",Carlene House,SOCIAL SERVICES RESIDENTIAL,Peoples Services,Residential Care - Ext Provider,A56114,0
London Borough of Sutton,17/03/2023,50330950,"5,684.08",Carlene House,SOCIAL SERVICES RESIDENTIAL,Peoples Services,Residential Care - Ext Provider,A56114,0
London Borough of Sutton,17/03/2023,50331033,"5,684.08",Carlene House,SOCIAL SERVICES RESIDENTIAL,Peoples Services,Residential Care - Ext Provider,A56114,0
London Borough of Sutton,17/03/2023,50331180,"5,684.08",Carlene House,SOCIAL SERVICES RESIDENTIAL,Peoples Services,Residential Care - Ext Provider,A56114,0
London Borough of Sutton,17/03/2023,50331226,"5,684.08",Carlene House,SOCIAL SERVICES RESIDENTIAL,Peoples Services,Residential Care - Ext Provider,A56114,0
London Borough of Sutton,21/03/2023,50331398,"1,076.09",Carlene House,SOCIAL SERVICES RESIDENTIAL,Peoples Services,Residential Care - Ext Provider,A56114,0
London Borough of Sutton,07/03/2023,50324968,"1,643.22",REDACTED - PERSONAL DATA,GRANTS & EX GRATIA PAYMENTS,Peoples Services,Payment - Nursery Funding,A51056,0
London Borough of Sutton,03/02/2023,20044368,"1,271.20",REDACTED - PERSONAL DATA,TEMP STAFF & CONSULTANCY,Health and Wellbeing,Professional Fees,A44066,0
London Borough of Sutton,28/03/2023,20046443,707.80,REDACTED - PERSONAL DATA,TEMP STAFF & CONSULTANCY,Health and Wellbeing,Professional Fees,A44066,0
London Borough of Sutton,07/03/2023,50324918,"3,383.10",REDACTED - PERSONAL DATA,GRANTS & EX GRATIA PAYMENTS,Peoples Services,Payment - Nursery Funding,A51056,0
London Borough of Sutton,14/03/2023,20045370,"6,650.00",Caroline Walsh Ltd,TEMP STAFF & CONSULTANCY,Peoples Services,Consultancy Services,A56007,0
London Borough of Sutton,15/03/2023,20046534,"1,872.00",REDACTED - PERSONAL DATA,SUNDRY SUPPLIER - FINANCE,Environment Housing and Neighbourhoods,Grants Given For Capital Purposes,C20004,0
London Borough of Sutton,07/03/2023,50324766,"4,816.70",Carshalton Boys Sports College (Academy),GRANTS & EX GRATIA PAYMENTS,Peoples Services,Pupil Growth,A51014,0
London Borough of Sutton,07/03/2023,50331318,"5,295.00",Carshalton Boys Sports College (Academy),GRANTS & EX GRATIA PAYMENTS,Resources,"Grants, Contributions & Donations",A47005,0
London Borough of Sutton,14/03/2023,50330738,"24,325.14",Catch 22 Charity Limited,CHILDREN'S SERVICES - RESIDENTIAL,Peoples Services,Residential Care-Children,A56115,0
London Borough of Sutton,14/03/2023,50330739,"25,866.86",Catch 22 Charity Limited,CHILDREN'S SERVICES - RESIDENTIAL,Peoples Services,Residential Care-Children,A56115,0
London Borough of Sutton,14/03/2023,50330740,"25,866.86",Catch 22 Charity Limited,CHILDREN'S SERVICES - RESIDENTIAL,Peoples Services,Residential Care-Children,A56115,0
London Borough of Sutton,27/02/2023,20044398,634.07,Central & North West London Nhs Foundation Trust,SOCIAL SERVICES - OTHER,Health and Wellbeing,Provider Contract Payments,A44290,0
London Borough of Sutton,07/03/2023,50324857,"1,075.45",Cheam Baptist Church Pre-School,GRANTS & EX GRATIA PAYMENTS,Peoples Services,Payment - Nursery Funding,A51056,0
London Borough of Sutton,07/03/2023,50324928,"8,495.13",Cheam Baptist Church Pre-School,GRANTS & EX GRATIA PAYMENTS,Peoples Services,Payment - Nursery Funding,A51056,0
London Borough of Sutton,07/03/2023,50325093,800.00,Cheam Baptist Church Pre-School,GRANTS & EX GRATIA PAYMENTS,Peoples Services,Disability Access Fund,A56093,0
London Borough of Sutton,07/03/2023,50324781,756.00,Cheam Common Infants School -ACADEMY,GRANTS & EX GRATIA PAYMENTS,Peoples Services,Early Years Pupil Premium,A60031,0
London Borough of Sutton,07/03/2023,50324805,667.80,Cheam Common Infants School -ACADEMY,GRANTS & EX GRATIA PAYMENTS,Peoples Services,Other payments to schools,A51023,0
London Borough of Sutton,07/03/2023,50326963,"28,637.14",Cheam Common Infants School -ACADEMY,GRANTS & EX GRATIA PAYMENTS,Peoples Services,Place Funding,A56110,0
London Borough of Sutton,13/09/2022,50327488,"1,471.49",Cheam Common Infants School -ACADEMY,GRANTS & EX GRATIA PAYMENTS,Non-Service Cost Centres,Recharge-Teaching Staff,A10600,0
London Borough of Sutton,07/03/2023,50324762,"1,506.56",Cheam Common Junior Academy,GRANTS & EX GRATIA PAYMENTS,Peoples Services,Payment - Cluster Lead SENCO,A51035,0
London Borough of Sutton,13/03/2023,50329598,"1,445.63",Cheam Common Junior Academy,GRANTS & EX GRATIA PAYMENTS,Peoples Services,Top-up Funding,A51016,0
London Borough of Sutton,07/03/2023,50331321,825.00,Cheam Common Junior Academy,GRANTS & EX GRATIA PAYMENTS,Resources,"Grants, Contributions & Donations",A47005,0
London Borough of Sutton,29/03/2023,50334887,"5,559.33",Cheam Common Junior Academy,GRANTS & EX GRATIA PAYMENTS,Non-Service Cost Centres,Recharge-Teaching Staff,A10600,0
London Borough of Sutton,29/03/2023,50334888,"4,265.37",Cheam Common Junior Academy,GRANTS & EX GRATIA PAYMENTS,Non-Service Cost Centres,Recharge-Teaching Staff,A10600,0
London Borough of Sutton,07/03/2023,50324761,"2,643.43",Cheam High School (Academy),GRANTS & EX GRATIA PAYMENTS,Peoples Services,Payment - Cluster Lead SENCO,A51035,0
London Borough of Sutton,07/03/2023,50324768,"3,211.14",Cheam High School (Academy),GRANTS & EX GRATIA PAYMENTS,Peoples Services,Pupil Growth,A51014,0
London Borough of Sutton,07/03/2023,50324830,800.00,Cheam Park Farm Primary School ,GRANTS & EX GRATIA PAYMENTS,Peoples Services,Disability Access Fund,A56093,0
London Borough of Sutton,07/03/2023,50326965,"16,293.89",Cheam Park Farm Primary School ,GRANTS & EX GRATIA PAYMENTS,Peoples Services,Place Funding,A56110,0
London Borough of Sutton,07/03/2023,50331324,765.00,Cheam Park Farm Primary School ,GRANTS & EX GRATIA PAYMENTS,Resources,"Grants, Contributions & Donations",A47005,0
London Borough of Sutton,29/03/2023,50334890,525.00,Cheam Park Farm Primary School ,GRANTS & EX GRATIA PAYMENTS,Non-Service Cost Centres,Recharge-Teaching Staff,A10600,0
London Borough of Sutton,17/03/2023,50330997,"3,665.20",Chegworth Nursing Home Bayswift Ltd,SOCIAL SERVICES RESIDENTIAL,Peoples Services,Nursing Care - Ext Provider,A56025,0
London Borough of Sutton,17/03/2023,50330997,-632.64,Chegworth Nursing Home Bayswift Ltd,SOCIAL SERVICES RESIDENTIAL,Peoples Services,Nursing Care - 3rd party top up payment,A56023,0
London Borough of Sutton,17/03/2023,50330998,"2,905.28",Chegworth Nursing Home Bayswift Ltd,SOCIAL SERVICES RESIDENTIAL,Peoples Services,Nursing Care Short Term,A56026,0
London Borough of Sutton,17/03/2023,50331010,"3,900.00",Chegworth Nursing Home Bayswift Ltd,SOCIAL SERVICES RESIDENTIAL,Peoples Services,Nursing Care Short Term,A56026,0
London Borough of Sutton,17/03/2023,50331010,-836.76,Chegworth Nursing Home Bayswift Ltd,SOCIAL SERVICES RESIDENTIAL,Peoples Services,Nursing Care - 3rd party top up payment,A56023,0
London Borough of Sutton,17/03/2023,50331011,-632.64,Chegworth Nursing Home Bayswift Ltd,SOCIAL SERVICES RESIDENTIAL,Peoples Services,Nursing Care - 3rd party top up payment,A56023,0
London Borough of Sutton,17/03/2023,50331011,"3,919.08",Chegworth Nursing Home Bayswift Ltd,SOCIAL SERVICES RESIDENTIAL,Peoples Services,Nursing Care - Ext Provider,A56025,0
London Borough of Sutton,17/03/2023,50331012,"4,149.92",Chegworth Nursing Home Bayswift Ltd,SOCIAL SERVICES RESIDENTIAL,Peoples Services,Nursing Care - Ext Provider,A56025,0
London Borough of Sutton,17/03/2023,50331012,-750.40,Chegworth Nursing Home Bayswift Ltd,SOCIAL SERVICES RESIDENTIAL,Peoples Services,Nursing Care - 3rd party top up payment,A56023,0
London Borough of Sutton,17/03/2023,50331056,-388.50,Chegworth Nursing Home Bayswift Ltd,SOCIAL SERVICES RESIDENTIAL,Peoples Services,Nursing Care - 3rd party top up payment,A56023,0
London Borough of Sutton,17/03/2023,50331056,"1,774.15",Chegworth Nursing Home Bayswift Ltd,SOCIAL SERVICES RESIDENTIAL,Peoples Services,Nursing Care Short Term,A56026,0
London Borough of Sutton,17/03/2023,50331057,"25,489.29",Chegworth Nursing Home Bayswift Ltd,SOCIAL SERVICES RESIDENTIAL,Peoples Services,Nursing Care - Ext Provider,A56025,0
London Borough of Sutton,17/03/2023,50331057,"-21,153.29",Chegworth Nursing Home Bayswift Ltd,SOCIAL SERVICES RESIDENTIAL,Peoples Services,Nursing Care Short Term,A56026,0
London Borough of Sutton,17/03/2023,50331057,-836.76,Chegworth Nursing Home Bayswift Ltd,SOCIAL SERVICES RESIDENTIAL,Peoples Services,Nursing Care - 3rd party top up payment,A56023,0
London Borough of Sutton,17/03/2023,50331070,"3,665.20",Chegworth Nursing Home Bayswift Ltd,SOCIAL SERVICES RESIDENTIAL,Peoples Services,Nursing Care - Ext Provider,A56025,0
London Borough of Sutton,17/03/2023,50331070,-632.64,Chegworth Nursing Home Bayswift Ltd,SOCIAL SERVICES RESIDENTIAL,Peoples Services,Nursing Care - 3rd party top up payment,A56023,0
London Borough of Sutton,17/03/2023,50331071,"3,848.24",Chegworth Nursing Home Bayswift Ltd,SOCIAL SERVICES RESIDENTIAL,Peoples Services,Nursing Care - Ext Provider,A56025,0
London Borough of Sutton,17/03/2023,50331071,-750.40,Chegworth Nursing Home Bayswift Ltd,SOCIAL SERVICES RESIDENTIAL,Peoples Services,Nursing Care - 3rd party top up payment,A56023,0
London Borough of Sutton,17/03/2023,50331125,"3,821.24",Chegworth Nursing Home Bayswift Ltd,SOCIAL SERVICES RESIDENTIAL,Peoples Services,Nursing Care Short Term,A56026,0
London Borough of Sutton,17/03/2023,50331125,-836.76,Chegworth Nursing Home Bayswift Ltd,SOCIAL SERVICES RESIDENTIAL,Peoples Services,Nursing Care - 3rd party top up payment,A56023,0
London Borough of Sutton,17/03/2023,50331154,"3,734.88",Chegworth Nursing Home Bayswift Ltd,SOCIAL SERVICES RESIDENTIAL,Peoples Services,Nursing Care Short Term,A56026,0
London Borough of Sutton,17/03/2023,50331154,-750.40,Chegworth Nursing Home Bayswift Ltd,SOCIAL SERVICES RESIDENTIAL,Peoples Services,Nursing Care - 3rd party top up payment,A56023,0
London Borough of Sutton,17/03/2023,50331155,"4,150.40",Chegworth Nursing Home Bayswift Ltd,SOCIAL SERVICES RESIDENTIAL,Peoples Services,Nursing Care - Ext Provider,A56025,0
London Borough of Sutton,17/03/2023,50331156,"2,183.57",Chegworth Nursing Home Bayswift Ltd,SOCIAL SERVICES RESIDENTIAL,Peoples Services,Nursing Care - Ext Provider,A56025,0
London Borough of Sutton,17/03/2023,50331171,"-4,249.11",Chegworth Nursing Home Bayswift Ltd,SOCIAL SERVICES RESIDENTIAL,Peoples Services,Nursing Care - Ext Provider,A56025,0
London Borough of Sutton,17/03/2023,50331171,"5,665.48",Chegworth Nursing Home Bayswift Ltd,SOCIAL SERVICES RESIDENTIAL,Peoples Services,Nursing Care Short Term,A56026,0
London Borough of Sutton,17/03/2023,50331171,-457.07,Chegworth Nursing Home Bayswift Ltd,SOCIAL SERVICES RESIDENTIAL,Peoples Services,Nursing Care - 3rd party top up payment,A56023,0
London Borough of Sutton,17/03/2023,50331172,-735.68,Chegworth Nursing Home Bayswift Ltd,SOCIAL SERVICES RESIDENTIAL,Peoples Services,Nursing Care - 3rd party top up payment,A56023,0
London Borough of Sutton,17/03/2023,50331172,"3,720.16",Chegworth Nursing Home Bayswift Ltd,SOCIAL SERVICES RESIDENTIAL,Peoples Services,Nursing Care - Ext Provider,A56025,0
London Borough of Sutton,17/03/2023,50331173,"19,360.71",Chegworth Nursing Home Bayswift Ltd,SOCIAL SERVICES RESIDENTIAL,Peoples Services,Nursing Care - Ext Provider,A56025,0
London Borough of Sutton,17/03/2023,50331173,"-4,153.92",Chegworth Nursing Home Bayswift Ltd,SOCIAL SERVICES RESIDENTIAL,Peoples Services,Nursing Care - 3rd party top up payment,A56023,0
London Borough of Sutton,17/03/2023,50331232,-662.24,Chegworth Nursing Home Bayswift Ltd,SOCIAL SERVICES RESIDENTIAL,Peoples Services,Nursing Care - 3rd party top up payment,A56023,0
London Borough of Sutton,17/03/2023,50331232,"4,955.56",Chegworth Nursing Home Bayswift Ltd,SOCIAL SERVICES RESIDENTIAL,Peoples Services,Nursing Care Short Term,A56026,0
London Borough of Sutton,17/03/2023,50331252,"3,753.20",Chegworth Nursing Home Bayswift Ltd,SOCIAL SERVICES RESIDENTIAL,Peoples Services,Nursing Care - Ext Provider,A56025,0
London Borough of Sutton,17/03/2023,50331252,-735.68,Chegworth Nursing Home Bayswift Ltd,SOCIAL SERVICES RESIDENTIAL,Peoples Services,Nursing Care - 3rd party top up payment,A56023,0
London Borough of Sutton,17/03/2023,50331253,"3,821.24",Chegworth Nursing Home Bayswift Ltd,SOCIAL SERVICES RESIDENTIAL,Peoples Services,Nursing Care Short Term,A56026,0
London Borough of Sutton,17/03/2023,50331253,-836.76,Chegworth Nursing Home Bayswift Ltd,SOCIAL SERVICES RESIDENTIAL,Peoples Services,Nursing Care - 3rd party top up payment,A56023,0
London Borough of Sutton,17/03/2023,50331287,"3,734.88",Chegworth Nursing Home Bayswift Ltd,SOCIAL SERVICES RESIDENTIAL,Peoples Services,Nursing Care Short Term,A56026,0
London Borough of Sutton,17/03/2023,50331287,-750.40,Chegworth Nursing Home Bayswift Ltd,SOCIAL SERVICES RESIDENTIAL,Peoples Services,Nursing Care - 3rd party top up payment,A56023,0
London Borough of Sutton,21/03/2023,50331441,"11,036.90",Chegworth Nursing Home Bayswift Ltd,SOCIAL SERVICES RESIDENTIAL,Peoples Services,Nursing Care - 3rd party top up payment,A56023,0
London Borough of Sutton,17/03/2023,50331187,"2,895.32",Cherry Lodge,SOCIAL SERVICES RESIDENTIAL,Peoples Services,Residential Care - Ext Provider,A56114,0
London Borough of Sutton,17/03/2023,50331187,-460.04,Cherry Lodge,SOCIAL SERVICES RESIDENTIAL,Peoples Services,Residential Care - Client Cont ( Net Paymt ),A56113,0
London Borough of Sutton,17/03/2023,50331240,"3,486.32",Cherry Lodge,SOCIAL SERVICES RESIDENTIAL,Peoples Services,Residential Care - Ext Provider,A56114,0
London Borough of Sutton,17/03/2023,50330807,-735.68,CHHG Ltd,SOCIAL SERVICES RESIDENTIAL,Peoples Services,Nursing Care - 3rd party top up payment,A56023,0
London Borough of Sutton,17/03/2023,50330807,"3,927.68",CHHG Ltd,SOCIAL SERVICES RESIDENTIAL,Peoples Services,Nursing Care - Ext Provider,A56025,0
London Borough of Sutton,21/03/2023,50331438,"2,006.71",CHHG Ltd,SOCIAL SERVICES RESIDENTIAL,Peoples Services,Nursing Care - Ext Provider,A56025,0
London Borough of Sutton,09/02/2023,50328102,"10,476.76",Children's Trust,CHILDREN'S SERVICES - DAY CARE,Peoples Services,Residential Care-Children,A56115,0
London Borough of Sutton,07/03/2023,50329586,"5,428.72",Children's Trust,CHILDREN'S SERVICES - DAY CARE,Peoples Services,Independent School Fees,A56002,0
London Borough of Sutton,07/03/2023,50329587,"4,557.62",Children's Trust,CHILDREN'S SERVICES - DAY CARE,Peoples Services,Independent School Fees,A56002,0
London Borough of Sutton,07/03/2023,50329588,"5,522.96",Children's Trust,CHILDREN'S SERVICES - DAY CARE,Peoples Services,Independent School Fees,A56002,0
London Borough of Sutton,07/03/2023,50334223,"11,599.27",Children's Trust,CHILDREN'S SERVICES - DAY CARE,Peoples Services,Residential Care-Children,A56115,0
London Borough of Sutton,07/03/2023,50324929,"13,532.40",Chiltern Day Nursery,GRANTS & EX GRATIA PAYMENTS,Peoples Services,Payment - Nursery Funding,A51056,0
London Borough of Sutton,09/03/2023,50329571,"5,363.49",Chipstead Valley Primary School,GRANTS & EX GRATIA PAYMENTS,Peoples Services,Top-up Funding,A51016,0
London Borough of Sutton,23/03/2023,50334863,"7,125.00",Chipstead Valley Primary School,GRANTS & EX GRATIA PAYMENTS,Peoples Services,Top-up Funding,A51016,0
London Borough of Sutton,17/03/2023,50331050,"7,809.32",Choice Care Group (Surrey) Ltd,SOCIAL SERVICES RESIDENTIAL,Peoples Services,Residential Care - Ext Provider,A56114,0
London Borough of Sutton,17/03/2023,50331138,"7,512.24",Choice Care Group (Surrey) Ltd,SOCIAL SERVICES RESIDENTIAL,Peoples Services,Residential Care - Ext Provider,A56114,0
London Borough of Sutton,17/03/2023,50331188,"8,682.92",Choice Care Group (Surrey) Ltd,SOCIAL SERVICES RESIDENTIAL,Peoples Services,Residential Care - Ext Provider,A56114,0
London Borough of Sutton,02/02/2023,20044791,"1,602.36",Choice Support,GRANTS & EX GRATIA PAYMENTS,Peoples Services,Provider Contract Payments,A44290,0
London Borough of Sutton,02/02/2023,20044792,"1,602.36",Choice Support,GRANTS & EX GRATIA PAYMENTS,Peoples Services,Provider Contract Payments,A44290,0
London Borough of Sutton,02/02/2023,20044793,"1,602.36",Choice Support,GRANTS & EX GRATIA PAYMENTS,Peoples Services,Provider Contract Payments,A44290,0
London Borough of Sutton,27/02/2023,50326635,"5,735.72",Choice Support,GRANTS & EX GRATIA PAYMENTS,Peoples Services,Supported Living,A56088,0
London Borough of Sutton,27/02/2023,50326635,220.84,Choice Support,GRANTS & EX GRATIA PAYMENTS,Peoples Services,Supported Living,A56088,0
London Borough of Sutton,27/02/2023,50326635,572.48,Choice Support,GRANTS & EX GRATIA PAYMENTS,Peoples Services,Supported Living,A56088,0
London Borough of Sutton,27/02/2023,50326636,"2,109.24",Choice Support,GRANTS & EX GRATIA PAYMENTS,Peoples Services,Supported Living,A56088,0
London Borough of Sutton,27/02/2023,50326636,"1,381.44",Choice Support,GRANTS & EX GRATIA PAYMENTS,Peoples Services,Supported Living,A56088,0
London Borough of Sutton,27/02/2023,50326636,220.84,Choice Support,GRANTS & EX GRATIA PAYMENTS,Peoples Services,Supported Living,A56088,0
London Borough of Sutton,27/02/2023,50326636,572.48,Choice Support,GRANTS & EX GRATIA PAYMENTS,Peoples Services,Supported Living,A56088,0
London Borough of Sutton,27/02/2023,50326637,"1,530.92",Choice Support,GRANTS & EX GRATIA PAYMENTS,Peoples Services,Supported Living,A56088,0
London Borough of Sutton,27/02/2023,50326637,"1,619.84",Choice Support,GRANTS & EX GRATIA PAYMENTS,Peoples Services,Supported Living,A56088,0
London Borough of Sutton,27/02/2023,50326637,220.84,Choice Support,GRANTS & EX GRATIA PAYMENTS,Peoples Services,Supported Living,A56088,0
London Borough of Sutton,27/02/2023,50326637,572.48,Choice Support,GRANTS & EX GRATIA PAYMENTS,Peoples Services,Supported Living,A56088,0
London Borough of Sutton,27/02/2023,50326643,801.48,Choice Support,GRANTS & EX GRATIA PAYMENTS,Peoples Services,Supported Living,A56088,0
London Borough of Sutton,27/02/2023,50326643,"4,530.00",Choice Support,GRANTS & EX GRATIA PAYMENTS,Peoples Services,Supported Living,A56088,0
London Borough of Sutton,27/02/2023,50326644,"6,251.16",Choice Support,GRANTS & EX GRATIA PAYMENTS,Peoples Services,Supported Living,A56088,0
London Borough of Sutton,27/02/2023,50326644,801.48,Choice Support,GRANTS & EX GRATIA PAYMENTS,Peoples Services,Supported Living,A56088,0
London Borough of Sutton,27/02/2023,50326647,"5,278.44",Choice Support,GRANTS & EX GRATIA PAYMENTS,Peoples Services,Supported Living,A56088,0
London Borough of Sutton,27/02/2023,50326647,801.48,Choice Support,GRANTS & EX GRATIA PAYMENTS,Peoples Services,Supported Living,A56088,0
London Borough of Sutton,27/02/2023,50326648,220.84,Choice Support,GRANTS & EX GRATIA PAYMENTS,Peoples Services,Supported Living,A56088,0
London Borough of Sutton,27/02/2023,50326648,572.48,Choice Support,GRANTS & EX GRATIA PAYMENTS,Peoples Services,Supported Living,A56088,0
London Borough of Sutton,27/02/2023,50326648,"3,232.60",Choice Support,GRANTS & EX GRATIA PAYMENTS,Peoples Services,Supported Living,A56088,0
London Borough of Sutton,27/02/2023,50326648,"2,850.88",Choice Support,GRANTS & EX GRATIA PAYMENTS,Peoples Services,Supported Living,A56088,0
London Borough of Sutton,27/02/2023,50326655,"2,540.60",Choice Support,GRANTS & EX GRATIA PAYMENTS,Peoples Services,Supported Living,A56088,0
London Borough of Sutton,27/02/2023,50326655,"1,483.48",Choice Support,GRANTS & EX GRATIA PAYMENTS,Peoples Services,Supported Living,A56088,0
London Borough of Sutton,27/02/2023,50326655,220.84,Choice Support,GRANTS & EX GRATIA PAYMENTS,Peoples Services,Supported Living,A56088,0
London Borough of Sutton,27/02/2023,50326655,572.48,Choice Support,GRANTS & EX GRATIA PAYMENTS,Peoples Services,Supported Living,A56088,0
London Borough of Sutton,27/02/2023,50326656,"5,298.60",Choice Support,GRANTS & EX GRATIA PAYMENTS,Peoples Services,Supported Living,A56088,0
London Borough of Sutton,27/02/2023,50326656,801.48,Choice Support,GRANTS & EX GRATIA PAYMENTS,Peoples Services,Supported Living,A56088,0
London Borough of Sutton,17/03/2023,50330796,"5,716.12",Choice Support,GRANTS & EX GRATIA PAYMENTS,Peoples Services,Residential Care - Ext Provider,A56114,0
London Borough of Sutton,20/03/2023,50331465,494.19,Choice Support,GRANTS & EX GRATIA PAYMENTS,Peoples Services,Supported Living,A56088,0
London Borough of Sutton,20/03/2023,50331465,"2,147.76",Choice Support,GRANTS & EX GRATIA PAYMENTS,Peoples Services,Supported Living,A56088,0
London Borough of Sutton,20/03/2023,50331465,"1,659.97",Choice Support,GRANTS & EX GRATIA PAYMENTS,Peoples Services,Supported Living,A56088,0
London Borough of Sutton,20/03/2023,50331465,672.75,Choice Support,GRANTS & EX GRATIA PAYMENTS,Peoples Services,Supported Living,A56088,0
London Borough of Sutton,20/03/2023,50331472,"1,127.78",Choice Support,GRANTS & EX GRATIA PAYMENTS,Peoples Services,Supported Living,A56088,0
London Borough of Sutton,20/03/2023,50331472,"1,219.59",Choice Support,GRANTS & EX GRATIA PAYMENTS,Peoples Services,Supported Living,A56088,0
London Borough of Sutton,20/03/2023,50331472,"2,808.68",Choice Support,GRANTS & EX GRATIA PAYMENTS,Peoples Services,Supported Living,A56088,0
London Borough of Sutton,20/03/2023,50331477,502.90,Choice Support,GRANTS & EX GRATIA PAYMENTS,Peoples Services,Supported Living,A56088,0
London Borough of Sutton,20/03/2023,50331477,"2,402.58",Choice Support,GRANTS & EX GRATIA PAYMENTS,Peoples Services,Supported Living,A56088,0
London Borough of Sutton,20/03/2023,50331477,"1,687.64",Choice Support,GRANTS & EX GRATIA PAYMENTS,Peoples Services,Supported Living,A56088,0
London Borough of Sutton,20/03/2023,50331477,672.75,Choice Support,GRANTS & EX GRATIA PAYMENTS,Peoples Services,Supported Living,A56088,0
London Borough of Sutton,20/03/2023,50331478,494.19,Choice Support,GRANTS & EX GRATIA PAYMENTS,Peoples Services,Supported Living,A56088,0
London Borough of Sutton,20/03/2023,50331478,"2,256.98",Choice Support,GRANTS & EX GRATIA PAYMENTS,Peoples Services,Supported Living,A56088,0
London Borough of Sutton,20/03/2023,50331478,"1,456.12",Choice Support,GRANTS & EX GRATIA PAYMENTS,Peoples Services,Supported Living,A56088,0
London Borough of Sutton,20/03/2023,50331478,122.32,Choice Support,GRANTS & EX GRATIA PAYMENTS,Peoples Services,Supported Living,A56088,0
London Borough of Sutton,20/03/2023,50331480,"5,543.47",Choice Support,GRANTS & EX GRATIA PAYMENTS,Peoples Services,Supported Living,A56088,0
London Borough of Sutton,20/03/2023,50331480,902.23,Choice Support,GRANTS & EX GRATIA PAYMENTS,Peoples Services,Supported Living,A56088,0
London Borough of Sutton,20/03/2023,50331483,"1,127.78",Choice Support,GRANTS & EX GRATIA PAYMENTS,Peoples Services,Supported Living,A56088,0
London Borough of Sutton,20/03/2023,50331483,"1,219.59",Choice Support,GRANTS & EX GRATIA PAYMENTS,Peoples Services,Supported Living,A56088,0
London Borough of Sutton,20/03/2023,50331483,"3,215.24",Choice Support,GRANTS & EX GRATIA PAYMENTS,Peoples Services,Supported Living,A56088,0
London Borough of Sutton,20/03/2023,50331486,902.23,Choice Support,GRANTS & EX GRATIA PAYMENTS,Peoples Services,Supported Living,A56088,0
London Borough of Sutton,20/03/2023,50331486,868.49,Choice Support,GRANTS & EX GRATIA PAYMENTS,Peoples Services,Supported Living,A56088,0
London Borough of Sutton,20/03/2023,50331486,"3,843.46",Choice Support,GRANTS & EX GRATIA PAYMENTS,Peoples Services,Supported Living,A56088,0
London Borough of Sutton,20/03/2023,50331501,"1,127.78",Choice Support,GRANTS & EX GRATIA PAYMENTS,Peoples Services,Supported Living,A56088,0
London Borough of Sutton,20/03/2023,50331501,"1,219.59",Choice Support,GRANTS & EX GRATIA PAYMENTS,Peoples Services,Supported Living,A56088,0
London Borough of Sutton,20/03/2023,50331501,"5,506.53",Choice Support,GRANTS & EX GRATIA PAYMENTS,Peoples Services,Supported Living,A56088,0
London Borough of Sutton,20/03/2023,50331502,"1,127.78",Choice Support,GRANTS & EX GRATIA PAYMENTS,Peoples Services,Supported Living,A56088,0
London Borough of Sutton,20/03/2023,50331502,"1,219.59",Choice Support,GRANTS & EX GRATIA PAYMENTS,Peoples Services,Supported Living,A56088,0
London Borough of Sutton,20/03/2023,50331502,"3,215.24",Choice Support,GRANTS & EX GRATIA PAYMENTS,Peoples Services,Supported Living,A56088,0
London Borough of Sutton,20/03/2023,50331504,902.23,Choice Support,GRANTS & EX GRATIA PAYMENTS,Peoples Services,Supported Living,A56088,0
London Borough of Sutton,20/03/2023,50331504,"4,286.94",Choice Support,GRANTS & EX GRATIA PAYMENTS,Peoples Services,Supported Living,A56088,0
London Borough of Sutton,20/03/2023,50331507,"1,127.78",Choice Support,GRANTS & EX GRATIA PAYMENTS,Peoples Services,Supported Living,A56088,0
London Borough of Sutton,20/03/2023,50331507,"1,219.59",Choice Support,GRANTS & EX GRATIA PAYMENTS,Peoples Services,Supported Living,A56088,0
London Borough of Sutton,20/03/2023,50331507,"3,326.07",Choice Support,GRANTS & EX GRATIA PAYMENTS,Peoples Services,Supported Living,A56088,0
London Borough of Sutton,20/03/2023,50331516,902.23,Choice Support,GRANTS & EX GRATIA PAYMENTS,Peoples Services,Supported Living,A56088,0
London Borough of Sutton,20/03/2023,50331516,868.49,Choice Support,GRANTS & EX GRATIA PAYMENTS,Peoples Services,Supported Living,A56088,0
London Borough of Sutton,20/03/2023,50331516,"4,286.94",Choice Support,GRANTS & EX GRATIA PAYMENTS,Peoples Services,Supported Living,A56088,0
London Borough of Sutton,20/03/2023,50331518,902.23,Choice Support,GRANTS & EX GRATIA PAYMENTS,Peoples Services,Supported Living,A56088,0
London Borough of Sutton,20/03/2023,50331518,868.49,Choice Support,GRANTS & EX GRATIA PAYMENTS,Peoples Services,Supported Living,A56088,0
London Borough of Sutton,20/03/2023,50331518,"2,550.01",Choice Support,GRANTS & EX GRATIA PAYMENTS,Peoples Services,Supported Living,A56088,0
London Borough of Sutton,20/03/2023,50331519,494.19,Choice Support,GRANTS & EX GRATIA PAYMENTS,Peoples Services,Supported Living,A56088,0
London Borough of Sutton,20/03/2023,50331519,"2,372.04",Choice Support,GRANTS & EX GRATIA PAYMENTS,Peoples Services,Supported Living,A56088,0
London Borough of Sutton,20/03/2023,50331519,"1,678.16",Choice Support,GRANTS & EX GRATIA PAYMENTS,Peoples Services,Supported Living,A56088,0
London Borough of Sutton,20/03/2023,50331519,672.75,Choice Support,GRANTS & EX GRATIA PAYMENTS,Peoples Services,Supported Living,A56088,0
London Borough of Sutton,20/03/2023,50331521,494.19,Choice Support,GRANTS & EX GRATIA PAYMENTS,Peoples Services,Supported Living,A56088,0
London Borough of Sutton,20/03/2023,50331521,"3,831.78",Choice Support,GRANTS & EX GRATIA PAYMENTS,Peoples Services,Supported Living,A56088,0
London Borough of Sutton,20/03/2023,50331521,"1,448.86",Choice Support,GRANTS & EX GRATIA PAYMENTS,Peoples Services,Supported Living,A56088,0
London Borough of Sutton,20/03/2023,50331521,672.75,Choice Support,GRANTS & EX GRATIA PAYMENTS,Peoples Services,Supported Living,A56088,0
London Borough of Sutton,20/03/2023,50331528,"3,567.48",Choice Support,GRANTS & EX GRATIA PAYMENTS,Peoples Services,Supported Living,A56088,0
London Borough of Sutton,20/03/2023,50331530,902.23,Choice Support,GRANTS & EX GRATIA PAYMENTS,Peoples Services,Supported Living,A56088,0
London Borough of Sutton,20/03/2023,50331530,868.49,Choice Support,GRANTS & EX GRATIA PAYMENTS,Peoples Services,Supported Living,A56088,0
London Borough of Sutton,20/03/2023,50331530,"3,584.79",Choice Support,GRANTS & EX GRATIA PAYMENTS,Peoples Services,Supported Living,A56088,0
London Borough of Sutton,20/03/2023,50331531,"1,127.78",Choice Support,GRANTS & EX GRATIA PAYMENTS,Peoples Services,Supported Living,A56088,0
London Borough of Sutton,20/03/2023,50331531,"1,219.59",Choice Support,GRANTS & EX GRATIA PAYMENTS,Peoples Services,Supported Living,A56088,0
London Borough of Sutton,20/03/2023,50331531,"3,400.00",Choice Support,GRANTS & EX GRATIA PAYMENTS,Peoples Services,Supported Living,A56088,0
London Borough of Sutton,20/03/2023,50331533,494.19,Choice Support,GRANTS & EX GRATIA PAYMENTS,Peoples Services,Supported Living,A56088,0
London Borough of Sutton,20/03/2023,50331533,"4,004.32",Choice Support,GRANTS & EX GRATIA PAYMENTS,Peoples Services,Supported Living,A56088,0
London Borough of Sutton,20/03/2023,50331533,122.32,Choice Support,GRANTS & EX GRATIA PAYMENTS,Peoples Services,Supported Living,A56088,0
London Borough of Sutton,20/03/2023,50331541,"1,127.78",Choice Support,GRANTS & EX GRATIA PAYMENTS,Peoples Services,Supported Living,A56088,0
London Borough of Sutton,20/03/2023,50331541,"1,219.59",Choice Support,GRANTS & EX GRATIA PAYMENTS,Peoples Services,Supported Living,A56088,0
London Borough of Sutton,20/03/2023,50331541,"5,395.63",Choice Support,GRANTS & EX GRATIA PAYMENTS,Peoples Services,Supported Living,A56088,0
London Borough of Sutton,20/03/2023,50331552,"4,441.14",Choice Support,GRANTS & EX GRATIA PAYMENTS,Peoples Services,Supported Living,A56088,0
London Borough of Sutton,20/03/2023,50331554,494.19,Choice Support,GRANTS & EX GRATIA PAYMENTS,Peoples Services,Supported Living,A56088,0
London Borough of Sutton,20/03/2023,50331554,"1,820.14",Choice Support,GRANTS & EX GRATIA PAYMENTS,Peoples Services,Supported Living,A56088,0
London Borough of Sutton,20/03/2023,50331554,"2,475.40",Choice Support,GRANTS & EX GRATIA PAYMENTS,Peoples Services,Supported Living,A56088,0
London Borough of Sutton,20/03/2023,50331554,122.32,Choice Support,GRANTS & EX GRATIA PAYMENTS,Peoples Services,Supported Living,A56088,0
London Borough of Sutton,20/03/2023,50331555,494.19,Choice Support,GRANTS & EX GRATIA PAYMENTS,Peoples Services,Supported Living,A56088,0
London Borough of Sutton,20/03/2023,50331555,"2,439.00",Choice Support,GRANTS & EX GRATIA PAYMENTS,Peoples Services,Supported Living,A56088,0
London Borough of Sutton,20/03/2023,50331555,"1,714.56",Choice Support,GRANTS & EX GRATIA PAYMENTS,Peoples Services,Supported Living,A56088,0
London Borough of Sutton,20/03/2023,50331555,672.75,Choice Support,GRANTS & EX GRATIA PAYMENTS,Peoples Services,Supported Living,A56088,0
London Borough of Sutton,20/03/2023,50331557,"1,127.78",Choice Support,GRANTS & EX GRATIA PAYMENTS,Peoples Services,Supported Living,A56088,0
London Borough of Sutton,20/03/2023,50331557,"1,219.59",Choice Support,GRANTS & EX GRATIA PAYMENTS,Peoples Services,Supported Living,A56088,0
London Borough of Sutton,20/03/2023,50331557,"3,252.16",Choice Support,GRANTS & EX GRATIA PAYMENTS,Peoples Services,Supported Living,A56088,0
London Borough of Sutton,20/03/2023,50331558,902.23,Choice Support,GRANTS & EX GRATIA PAYMENTS,Peoples Services,Supported Living,A56088,0
London Borough of Sutton,20/03/2023,50331558,868.49,Choice Support,GRANTS & EX GRATIA PAYMENTS,Peoples Services,Supported Living,A56088,0
London Borough of Sutton,20/03/2023,50331558,"3,326.07",Choice Support,GRANTS & EX GRATIA PAYMENTS,Peoples Services,Supported Living,A56088,0
London Borough of Sutton,07/03/2023,50324858,"2,228.87",Christchurch Fledgelings Pre-School,GRANTS & EX GRATIA PAYMENTS,Peoples Services,Payment - Nursery Funding,A51056,0
London Borough of Sutton,07/03/2023,50324930,"23,159.74",Christchurch Fledgelings Pre-School,GRANTS & EX GRATIA PAYMENTS,Peoples Services,Payment - Nursery Funding,A51056,0
London Borough of Sutton,03/03/2023,20044385,"22,336.17",Chroma Vision Limited,AGRICULTURAL & ESTATE SERVICES,Environment Housing and Neighbourhoods,Other Capital Expenditure,C20002,0
London Borough of Sutton,16/12/2022,20042893,"2,437.50",CIPFA Business Limited,CONFERENCES,Resources,Consultancy Services,A56007,0
London Borough of Sutton,02/03/2023,20044282,"18,019.58",Barrow Hedges Primary School Academy,GRANTS & EX GRATIA PAYMENTS,Peoples Services,Payments to Contractors,C14000,0
London Borough of Sutton,07/03/2023,50326959,"15,114.24",Barrow Hedges Primary School Academy,GRANTS & EX GRATIA PAYMENTS,Peoples Services,Place Funding,A56110,0
London Borough of Sutton,13/03/2023,50329596,"2,535.29",Barrow Hedges Primary School Academy,GRANTS & EX GRATIA PAYMENTS,Peoples Services,Top-up Funding,A51016,0
London Borough of Sutton,07/03/2023,50331313,975.00,Barrow Hedges Primary School Academy,GRANTS & EX GRATIA PAYMENTS,Resources,"Grants, Contributions & Donations",A47005,0
London Borough of Sutton,24/02/2023,20044181,"17,245.02",City of London Corporation,CENTRAL & LOCAL GOVERNMENT,Health and Wellbeing,Provider Contract Payments,A44290,0
London Borough of Sutton,28/02/2023,20044343,"1,900.00",City Sprint UK (Excel) Ltd,DELIVERY AND COURIER SERVICES,Resources,Printing,A43010,0
London Borough of Sutton,28/02/2023,20044446,"2,732.16",City Sprint UK (Excel) Ltd,DELIVERY AND COURIER SERVICES,Health and Wellbeing,Hire of Transport - Non Staff,A32000,0
London Borough of Sutton,31/01/2023,20046118,"4,215.00",City Sprint UK (Excel) Ltd,DELIVERY AND COURIER SERVICES,Health and Wellbeing,Hire of Transport - Non Staff,A32000,0
London Borough of Sutton,01/03/2023,20044322,"6,359.00",Cityglen Ltd,ACCOMMODATION BED & BREAKFAST,Environment Housing and Neighbourhoods,Bed & Breakfast,A56000,0
London Borough of Sutton,17/03/2023,50330916,"6,236.76",Claremont Care Svs Ltd,SOCIAL SERVICES RESIDENTIAL,Peoples Services,Nursing Care - Ext Provider,A56025,0
London Borough of Sutton,17/03/2023,50330916,-836.76,Claremont Care Svs Ltd,SOCIAL SERVICES RESIDENTIAL,Peoples Services,Nursing Care - 3rd party top up payment,A56023,0
London Borough of Sutton,17/03/2023,50330971,"6,236.76",Claremont Care Svs Ltd,SOCIAL SERVICES RESIDENTIAL,Peoples Services,Nursing Care Short Term,A56026,0
London Borough of Sutton,17/03/2023,50330971,-836.76,Claremont Care Svs Ltd,SOCIAL SERVICES RESIDENTIAL,Peoples Services,Nursing Care - 3rd party top up payment,A56023,0
London Borough of Sutton,17/03/2023,50330972,"4,525.36",Claremont Care Svs Ltd,SOCIAL SERVICES RESIDENTIAL,Peoples Services,Nursing Care - Ext Provider,A56025,0
London Borough of Sutton,17/03/2023,50330972,-750.40,Claremont Care Svs Ltd,SOCIAL SERVICES RESIDENTIAL,Peoples Services,Nursing Care - 3rd party top up payment,A56023,0
London Borough of Sutton,17/03/2023,50331054,"3,848.24",Claremont Care Svs Ltd,SOCIAL SERVICES RESIDENTIAL,Peoples Services,Nursing Care - Ext Provider,A56025,0
London Borough of Sutton,17/03/2023,50331054,-750.40,Claremont Care Svs Ltd,SOCIAL SERVICES RESIDENTIAL,Peoples Services,Nursing Care - 3rd party top up payment,A56023,0
London Borough of Sutton,17/03/2023,50331079,"14,613.88",Claremont Care Svs Ltd,SOCIAL SERVICES RESIDENTIAL,Peoples Services,Nursing Care - Ext Provider,A56025,0
London Borough of Sutton,17/03/2023,50331079,"-11,424.00",Claremont Care Svs Ltd,SOCIAL SERVICES RESIDENTIAL,Peoples Services,Nursing Care - 3rd party top up payment,A56023,0
London Borough of Sutton,17/03/2023,50331104,"6,487.64",Claremont Care Svs Ltd,SOCIAL SERVICES RESIDENTIAL,Peoples Services,Nursing Care - Ext Provider,A56025,0
London Borough of Sutton,17/03/2023,50331104,-750.40,Claremont Care Svs Ltd,SOCIAL SERVICES RESIDENTIAL,Peoples Services,Nursing Care - 3rd party top up payment,A56023,0
London Borough of Sutton,17/03/2023,50331120,"6,513.96",Claremont Care Svs Ltd,SOCIAL SERVICES RESIDENTIAL,Peoples Services,Nursing Care - Ext Provider,A56025,0
London Borough of Sutton,17/03/2023,50331120,-836.76,Claremont Care Svs Ltd,SOCIAL SERVICES RESIDENTIAL,Peoples Services,Nursing Care - 3rd party top up payment,A56023,0
London Borough of Sutton,17/03/2023,50331139,-735.68,Claremont Care Svs Ltd,SOCIAL SERVICES RESIDENTIAL,Peoples Services,Nursing Care - 3rd party top up payment,A56023,0
London Borough of Sutton,17/03/2023,50331139,"5,367.84",Claremont Care Svs Ltd,SOCIAL SERVICES RESIDENTIAL,Peoples Services,Nursing Care - Ext Provider,A56025,0
London Borough of Sutton,17/03/2023,50330846,"3,720.16",Bondcare (London) Ltd,SOCIAL SERVICES RESIDENTIAL,Peoples Services,Nursing Care - Ext Provider,A56025,0
London Borough of Sutton,17/03/2023,50330846,-735.68,Bondcare (London) Ltd,SOCIAL SERVICES RESIDENTIAL,Peoples Services,Nursing Care - 3rd party top up payment,A56023,0
London Borough of Sutton,01/03/2023,50327410,759.45,Classroom Teachers Ltd,ACADEMIC INSTNS - OTHER,Peoples Services,Independent School Fees,A56002,0
London Borough of Sutton,08/03/2023,50329564,759.45,Classroom Teachers Ltd,ACADEMIC INSTNS - OTHER,Peoples Services,Independent School Fees,A56002,0
London Borough of Sutton,15/03/2023,50332484,759.45,Classroom Teachers Ltd,ACADEMIC INSTNS - OTHER,Peoples Services,Independent School Fees,A56002,0
London Borough of Sutton,27/02/2023,50323293,"2,439.02",Clear Thinking Care Limited,SOCIAL SERVICES RESIDENTIAL,Peoples Services,Supported Living,A56088,0
London Borough of Sutton,07/03/2023,50327538,"2,799.13",Clear Thinking Care Limited,SOCIAL SERVICES RESIDENTIAL,Peoples Services,Supported Living,A56088,0
London Borough of Sutton,16/03/2023,50332460,"2,439.02",Clear Thinking Care Limited,SOCIAL SERVICES RESIDENTIAL,Peoples Services,Supported Living,A56088,0
London Borough of Sutton,16/03/2023,50332461,"2,439.02",Clear Thinking Care Limited,SOCIAL SERVICES RESIDENTIAL,Peoples Services,Supported Living,A56088,0
London Borough of Sutton,10/01/2023,20044490,"2,203.13",Clemlec Group LTD,BUILDING MNTCE - SERVICES,Environment Housing and Neighbourhoods,Grants Given For Capital Purposes,C20004,0
London Borough of Sutton,20/03/2023,50331537,"-4,287.43",CLIA CARE LTD,SOCIAL SERVICES RESIDENTIAL,Peoples Services,Nursing Care - 3rd party top up payment,A56023,0
London Borough of Sutton,20/03/2023,50331537,"3,886.47",CLIA CARE LTD,SOCIAL SERVICES RESIDENTIAL,Peoples Services,Supported Living,A56088,0
London Borough of Sutton,20/03/2023,50331537,731.60,CLIA CARE LTD,SOCIAL SERVICES RESIDENTIAL,Peoples Services,Supported Living,A56088,0
London Borough of Sutton,20/03/2023,50331537,"1,097.01",CLIA CARE LTD,SOCIAL SERVICES RESIDENTIAL,Peoples Services,Supported Living,A56088,0
London Borough of Sutton,20/03/2023,50331537,"2,859.75",CLIA CARE LTD,SOCIAL SERVICES RESIDENTIAL,Peoples Services,One to One Care,A56108,0
London Borough of Sutton,04/01/2023,20044492,"4,396.00",Closomat Ltd,GRANTS & EX GRATIA PAYMENTS,Environment Housing and Neighbourhoods,Internal Fees,C20001,0
London Borough of Sutton,05/02/2023,50328772,597.00,Clovecare Ltd,SOCIAL SERVICES RESIDENTIAL,Peoples Services,Home Care Services,A56019,0
London Borough of Sutton,05/02/2023,50328797,852.23,Clovecare Ltd,SOCIAL SERVICES RESIDENTIAL,Peoples Services,Home Care Services,A56019,0
London Borough of Sutton,05/02/2023,50328797,47.88,Clovecare Ltd,SOCIAL SERVICES RESIDENTIAL,Peoples Services,Home Care Services,A56019,0
London Borough of Sutton,05/02/2023,50328855,583.50,Clovecare Ltd,SOCIAL SERVICES RESIDENTIAL,Peoples Services,Home Care Services,A56019,0
London Borough of Sutton,12/03/2023,50330148,597.00,Clovecare Ltd,SOCIAL SERVICES RESIDENTIAL,Peoples Services,Home Care Services,A56019,0
London Borough of Sutton,12/03/2023,50330169,852.23,Clovecare Ltd,SOCIAL SERVICES RESIDENTIAL,Peoples Services,Home Care Services,A56019,0
London Borough of Sutton,12/03/2023,50330169,47.88,Clovecare Ltd,SOCIAL SERVICES RESIDENTIAL,Peoples Services,Home Care Services,A56019,0
London Borough of Sutton,12/03/2023,50330178,597.00,Clovecare Ltd,SOCIAL SERVICES RESIDENTIAL,Peoples Services,Home Care Services,A56019,0
London Borough of Sutton,26/02/2023,50330186,852.23,Clovecare Ltd,SOCIAL SERVICES RESIDENTIAL,Peoples Services,Home Care Services,A56019,0
London Borough of Sutton,26/02/2023,50330186,47.88,Clovecare Ltd,SOCIAL SERVICES RESIDENTIAL,Peoples Services,Home Care Services,A56019,0
London Borough of Sutton,05/03/2023,50330187,852.23,Clovecare Ltd,SOCIAL SERVICES RESIDENTIAL,Peoples Services,Home Care Services,A56019,0
London Borough of Sutton,05/03/2023,50330187,47.88,Clovecare Ltd,SOCIAL SERVICES RESIDENTIAL,Peoples Services,Home Care Services,A56019,0
London Borough of Sutton,26/02/2023,50330233,597.00,Clovecare Ltd,SOCIAL SERVICES RESIDENTIAL,Peoples Services,Home Care Services,A56019,0
London Borough of Sutton,05/03/2023,50330234,597.00,Clovecare Ltd,SOCIAL SERVICES RESIDENTIAL,Peoples Services,Home Care Services,A56019,0
London Borough of Sutton,26/02/2023,50330346,597.00,Clovecare Ltd,SOCIAL SERVICES RESIDENTIAL,Peoples Services,Home Care Services,A56019,0
London Borough of Sutton,05/03/2023,50330347,597.00,Clovecare Ltd,SOCIAL SERVICES RESIDENTIAL,Peoples Services,Home Care Services,A56019,0
London Borough of Sutton,21/03/2023,50331410,"5,380.43",Clovecare Ltd,SOCIAL SERVICES RESIDENTIAL,Peoples Services,Home Care Services,A56019,0
London Borough of Sutton,19/03/2023,50332113,852.28,Clovecare Ltd,SOCIAL SERVICES RESIDENTIAL,Peoples Services,Home Care Services,A56019,0
London Borough of Sutton,19/03/2023,50332113,47.88,Clovecare Ltd,SOCIAL SERVICES RESIDENTIAL,Peoples Services,Home Care Services,A56019,0
London Borough of Sutton,19/03/2023,50332146,597.00,Clovecare Ltd,SOCIAL SERVICES RESIDENTIAL,Peoples Services,Home Care Services,A56019,0
London Borough of Sutton,19/03/2023,50332226,597.00,Clovecare Ltd,SOCIAL SERVICES RESIDENTIAL,Peoples Services,Home Care Services,A56019,0
London Borough of Sutton,17/03/2023,50330774,"4,234.16",Coast Care Homes Ltd,SOCIAL SERVICES RESIDENTIAL,Peoples Services,Residential Care - Ext Provider,A56114,0
London Borough of Sutton,17/03/2023,50330770,"12,960.16",Cognithan Ltd,SOCIAL SERVICES RESIDENTIAL,Peoples Services,Residential Care - Ext Provider,A56114,0
London Borough of Sutton,04/02/2023,20042219,"218,108.33",Cognus Ltd,LEGAL & PROFESSIONAL SERVICES,Peoples Services,Consultancy Services,A56007,0
London Borough of Sutton,02/03/2023,20044234,"1,350.00",Cognus Ltd,LEGAL & PROFESSIONAL SERVICES,Peoples Services,Staff Development And Training,A15022,0
London Borough of Sutton,31/01/2023,20044572,"41,000.00",Cognus Ltd,LEGAL & PROFESSIONAL SERVICES,Peoples Services,LAC - Education,A44280,0
London Borough of Sutton,01/03/2023,20044808,"11,480.00",Cognus Ltd,LEGAL & PROFESSIONAL SERVICES,Peoples Services,Other Supplies & Services,A44291,0
London Borough of Sutton,20/03/2023,20045713,"11,670.00",Cognus Ltd,LEGAL & PROFESSIONAL SERVICES,Peoples Services,Other Supplies & Services,A44291,0
London Borough of Sutton,17/03/2023,50330860,"11,981.04",Coleg Elidyr Camphill Communities,CHILDREN'S SERVICES - RESIDENTIAL,Peoples Services,Interim Placements - Ext Provider,A56102,0
London Borough of Sutton,07/03/2023,50324932,"13,142.02",Collingwood School Ltd,GRANTS & EX GRATIA PAYMENTS,Peoples Services,Payment - Nursery Funding,A51056,0
London Borough of Sutton,24/03/2023,20046146,"5,000.00",Community Action Sutton,GRANTS & EX GRATIA PAYMENTS,Health and Wellbeing,Provider Contract Payments,A44290,0
London Borough of Sutton,24/03/2023,20046147,"2,500.00",Community Action Sutton,GRANTS & EX GRATIA PAYMENTS,Health and Wellbeing,Professional Fees,A44066,0
London Borough of Sutton,01/02/2023,50328085,"2,968.63",Compass Fostering London Ltd,CHILDREN'S SERVICES - FOSTERING & ADOPTION SERVICES,Peoples Services,Foster Parents Support,A44110,0
London Borough of Sutton,01/02/2023,50328130,"3,042.17",Compass Fostering London Ltd,CHILDREN'S SERVICES - FOSTERING & ADOPTION SERVICES,Peoples Services,Foster Parents Support,A44110,0
London Borough of Sutton,01/02/2023,50328132,"3,360.00",Compass Fostering London Ltd,CHILDREN'S SERVICES - FOSTERING & ADOPTION SERVICES,Peoples Services,Foster Parents Support,A44110,0
London Borough of Sutton,01/03/2023,50334176,"3,415.27",Compass Fostering London Ltd,CHILDREN'S SERVICES - FOSTERING & ADOPTION SERVICES,Peoples Services,Foster Parents Support,A44110,0
London Borough of Sutton,01/03/2023,50334207,"3,720.00",Compass Fostering London Ltd,CHILDREN'S SERVICES - FOSTERING & ADOPTION SERVICES,Peoples Services,Foster Parents Support,A44110,0
London Borough of Sutton,01/03/2023,50334242,"3,311.42",Compass Fostering London Ltd,CHILDREN'S SERVICES - FOSTERING & ADOPTION SERVICES,Peoples Services,Foster Parents Support,A44110,0
London Borough of Sutton,01/02/2023,50328155,"3,821.44",Compass Fostering South Ltd,CHILDREN'S SERVICES - FOSTERING & ADOPTION SERVICES,Peoples Services,Foster Parents Support,A44110,0
London Borough of Sutton,01/03/2023,50334174,"4,230.88",Compass Fostering South Ltd,CHILDREN'S SERVICES - FOSTERING & ADOPTION SERVICES,Peoples Services,Foster Parents Support,A44110,0
London Borough of Sutton,01/03/2023,50328028,"3,500.00",Connect Fostering Services Ltd,CHILDREN'S SERVICES - FOSTERING & ADOPTION SERVICES,Peoples Services,Foster Parents Support,A44110,0
London Borough of Sutton,01/03/2023,50328040,"2,375.00",Connect Fostering Services Ltd,CHILDREN'S SERVICES - FOSTERING & ADOPTION SERVICES,Peoples Services,Foster Parents Support,A44110,0
London Borough of Sutton,10/03/2023,50334183,"3,875.00",Connect Fostering Services Ltd,CHILDREN'S SERVICES - FOSTERING & ADOPTION SERVICES,Peoples Services,Foster Parents Support,A44110,0
London Borough of Sutton,10/03/2023,50334225,"4,042.14",Connect Fostering Services Ltd,CHILDREN'S SERVICES - FOSTERING & ADOPTION SERVICES,Peoples Services,Foster Parents Support,A44110,0
London Borough of Sutton,23/03/2023,50334862,"6,699.35",Connevans Limited,SOCIAL SERVICES - OTHER,Peoples Services,Equipment,A61013,0
London Borough of Sutton,22/11/2022,20041223,"3,088.80",Cooper & Co Chemist,TCES RETAILERS (PHARMACYS),Health and Wellbeing,Provider Contract Payments,A44290,0
London Borough of Sutton,07/03/2023,50324876,"8,183.55",Little PioneersSsutton,GRANTS & EX GRATIA PAYMENTS,Peoples Services,Payment - Nursery Funding,A51056,0
London Borough of Sutton,07/03/2023,50324975,"36,409.88",Little PioneersSsutton,GRANTS & EX GRATIA PAYMENTS,Peoples Services,Payment - Nursery Funding,A51056,0
London Borough of Sutton,12/12/2022,20044405,"19,254.60",Coral Support and Crisis Intervention Ltd,"SOCIAL SERVICES - DOLS, GUM & BIA ASSESSMENTS",Peoples Services,Client Related Assessments,A56017,0
London Borough of Sutton,06/02/2023,20044406,"5,429.60",Coral Support and Crisis Intervention Ltd,"SOCIAL SERVICES - DOLS, GUM & BIA ASSESSMENTS",Peoples Services,Client Related Assessments,A56017,0
London Borough of Sutton,20/01/2023,20043935,"1,249.04",Corona Energy,UTILITIES,Resources,Gas,A21003,0
London Borough of Sutton,20/01/2023,20043944,841.43,Corona Energy,UTILITIES,Resources,Gas,A21003,0
London Borough of Sutton,16/02/2023,20044521,"16,731.11",Corona Energy,UTILITIES,Resources,Gas,A21003,0
London Borough of Sutton,07/03/2023,50324859,"1,103.40",Cosy Cottage Daycare Ltd,GRANTS & EX GRATIA PAYMENTS,Peoples Services,Payment - Nursery Funding,A51056,0
London Borough of Sutton,07/03/2023,50325033,"3,686.40",Cosy Cottage Daycare Ltd,GRANTS & EX GRATIA PAYMENTS,Peoples Services,Payment - Nursery Funding,A51056,0
London Borough of Sutton,17/03/2023,50330836,"4,400.00",Country Court Care Homes 2 Ltd,SOCIAL SERVICES RESIDENTIAL,Peoples Services,Nursing Care - Ext Provider,A56025,0
London Borough of Sutton,17/03/2023,50330836,"-1,226.92",Country Court Care Homes 2 Ltd,SOCIAL SERVICES RESIDENTIAL,Peoples Services,Nursing Care - 3rd party top up payment,A56023,0
London Borough of Sutton,28/02/2023,20044427,"7,426.56",CPC Project Services LLP,CONSTRUCTION INDUSTRY,HRA,External Fees and Consultants,C20000,0
London Borough of Sutton,28/02/2023,20044433,"7,426.56",CPC Project Services LLP,CONSTRUCTION INDUSTRY,HRA,External Fees and Consultants,C20000,0
London Borough of Sutton,28/03/2023,50333925,"1,200.00",Crafty Critters Club Ltd,TEMP STAFF & CONSULTANCY,Resources,Other Supplies & Services,A44291,0
London Borough of Sutton,01/03/2023,20044436,"149,579.67",Cranstoun,SOCIAL SERVICES - OTHER,Health and Wellbeing,Provider Contract Payments,A44290,0
London Borough of Sutton,01/03/2023,20044443,"3,125.00",Cranstoun,SOCIAL SERVICES - OTHER,Peoples Services,Provider Contract Payments,A44290,0
London Borough of Sutton,01/03/2023,20044444,"93,504.50",Cranstoun,SOCIAL SERVICES - OTHER,Peoples Services,Provider Contract Payments,A44290,0
London Borough of Sutton,17/03/2023,50330889,"7,584.16",Cream 1 Ltd,SOCIAL SERVICES RESIDENTIAL,Peoples Services,Residential Care - Ext Provider,A56114,0
London Borough of Sutton,17/03/2023,50330889,"5,560.52",Cream 1 Ltd,SOCIAL SERVICES RESIDENTIAL,Peoples Services,One to One Care,A56108,0
London Borough of Sutton,03/02/2023,50328092,"6,284.00",Credo Care Limited,CHILDREN'S SERVICE - OTHER,Peoples Services,Foster Parents Support,A44110,0
London Borough of Sutton,06/03/2023,50334172,"6,957.29",Credo Care Limited,CHILDREN'S SERVICE - OTHER,Peoples Services,Foster Parents Support,A44110,0
London Borough of Sutton,22/02/2023,50323524,"9,166.66",Cricket Green School,GRANTS & EX GRATIA PAYMENTS,Peoples Services,Top-up Funding,A51016,0
London Borough of Sutton,17/03/2023,50330893,"3,848.24",CRNH Ltd,SOCIAL SERVICES RESIDENTIAL,Peoples Services,Nursing Care - Ext Provider,A56025,0
London Borough of Sutton,17/03/2023,50330893,-750.40,CRNH Ltd,SOCIAL SERVICES RESIDENTIAL,Peoples Services,Nursing Care - 3rd party top up payment,A56023,0
London Borough of Sutton,17/03/2023,50331041,"3,664.08",CRNH Ltd,SOCIAL SERVICES RESIDENTIAL,Peoples Services,Nursing Care - Ext Provider,A56025,0
London Borough of Sutton,17/03/2023,50331041,-662.24,CRNH Ltd,SOCIAL SERVICES RESIDENTIAL,Peoples Services,Nursing Care - 3rd party top up payment,A56023,0
London Borough of Sutton,17/03/2023,50331042,"4,021.24",CRNH Ltd,SOCIAL SERVICES RESIDENTIAL,Peoples Services,Nursing Care - Ext Provider,A56025,0
London Borough of Sutton,17/03/2023,50331042,-750.40,CRNH Ltd,SOCIAL SERVICES RESIDENTIAL,Peoples Services,Nursing Care - 3rd party top up payment,A56023,0
London Borough of Sutton,17/03/2023,50331062,"3,609.96",CRNH Ltd,SOCIAL SERVICES RESIDENTIAL,Peoples Services,Nursing Care - Ext Provider,A56025,0
London Borough of Sutton,17/03/2023,50331062,-632.64,CRNH Ltd,SOCIAL SERVICES RESIDENTIAL,Peoples Services,Nursing Care - 3rd party top up payment,A56023,0
London Borough of Sutton,17/03/2023,50331089,"3,720.16",CRNH Ltd,SOCIAL SERVICES RESIDENTIAL,Peoples Services,Nursing Care - Ext Provider,A56025,0
London Borough of Sutton,17/03/2023,50331089,-735.68,CRNH Ltd,SOCIAL SERVICES RESIDENTIAL,Peoples Services,Nursing Care - 3rd party top up payment,A56023,0
London Borough of Sutton,17/03/2023,50331179,-806.88,CRNH Ltd,SOCIAL SERVICES RESIDENTIAL,Peoples Services,Nursing Care - 3rd party top up payment,A56023,0
London Borough of Sutton,17/03/2023,50331179,"9,360.00",CRNH Ltd,SOCIAL SERVICES RESIDENTIAL,Peoples Services,Nursing Care Short Term,A56026,0
London Borough of Sutton,17/03/2023,50331198,-735.68,CRNH Ltd,SOCIAL SERVICES RESIDENTIAL,Peoples Services,Nursing Care - 3rd party top up payment,A56023,0
London Borough of Sutton,17/03/2023,50331198,"3,720.16",CRNH Ltd,SOCIAL SERVICES RESIDENTIAL,Peoples Services,Nursing Care - Ext Provider,A56025,0
London Borough of Sutton,17/03/2023,50331257,"5,400.00",CRNH Ltd,SOCIAL SERVICES RESIDENTIAL,Peoples Services,Nursing Care Short Term,A56026,0
London Borough of Sutton,17/03/2023,50331257,-836.76,CRNH Ltd,SOCIAL SERVICES RESIDENTIAL,Peoples Services,Nursing Care - 3rd party top up payment,A56023,0
London Borough of Sutton,17/03/2023,50331283,"5,400.00",CRNH Ltd,SOCIAL SERVICES RESIDENTIAL,Peoples Services,Nursing Care - Ext Provider,A56025,0
London Borough of Sutton,17/03/2023,50331283,-836.76,CRNH Ltd,SOCIAL SERVICES RESIDENTIAL,Peoples Services,Nursing Care - 3rd party top up payment,A56023,0
London Borough of Sutton,21/03/2023,50331458,"6,020.13",CRNH Ltd,SOCIAL SERVICES RESIDENTIAL,Peoples Services,Nursing Care - Ext Provider,A56025,0
London Borough of Sutton,31/01/2023,20045546,"19,660.00",Cromwood Limited,ACCOMMODATION BED & BREAKFAST,Environment Housing and Neighbourhoods,Bed & Breakfast,A56000,0
London Borough of Sutton,28/02/2023,20045548,"15,344.00",Cromwood Limited,ACCOMMODATION BED & BREAKFAST,Environment Housing and Neighbourhoods,Bed & Breakfast,A56000,0
London Borough of Sutton,17/03/2023,50330924,-298.84,Cross Care Services Ltd,SOCIAL SERVICES RESIDENTIAL,Peoples Services,Nursing Care - 3rd party top up payment,A56023,0
London Borough of Sutton,17/03/2023,50330924,"1,364.73",Cross Care Services Ltd,SOCIAL SERVICES RESIDENTIAL,Peoples Services,Nursing Care Short Term,A56026,0
London Borough of Sutton,17/03/2023,50331006,"3,821.24",Cross Care Services Ltd,SOCIAL SERVICES RESIDENTIAL,Peoples Services,Nursing Care - Ext Provider,A56025,0
London Borough of Sutton,17/03/2023,50331006,-836.76,Cross Care Services Ltd,SOCIAL SERVICES RESIDENTIAL,Peoples Services,Nursing Care - 3rd party top up payment,A56023,0
London Borough of Sutton,17/03/2023,50331058,"3,734.88",Cross Care Services Ltd,SOCIAL SERVICES RESIDENTIAL,Peoples Services,Nursing Care - Ext Provider,A56025,0
London Borough of Sutton,17/03/2023,50331058,-750.40,Cross Care Services Ltd,SOCIAL SERVICES RESIDENTIAL,Peoples Services,Nursing Care - 3rd party top up payment,A56023,0
London Borough of Sutton,17/03/2023,50331126,"3,720.16",Cross Care Services Ltd,SOCIAL SERVICES RESIDENTIAL,Peoples Services,Nursing Care - Ext Provider,A56025,0
London Borough of Sutton,17/03/2023,50331126,-735.68,Cross Care Services Ltd,SOCIAL SERVICES RESIDENTIAL,Peoples Services,Nursing Care - 3rd party top up payment,A56023,0
London Borough of Sutton,17/03/2023,50331174,"3,633.76",Cross Care Services Ltd,SOCIAL SERVICES RESIDENTIAL,Peoples Services,Nursing Care - Ext Provider,A56025,0
London Borough of Sutton,17/03/2023,50331233,"3,821.24",Cross Care Services Ltd,SOCIAL SERVICES RESIDENTIAL,Peoples Services,Nursing Care - Ext Provider,A56025,0
London Borough of Sutton,17/03/2023,50331233,-836.76,Cross Care Services Ltd,SOCIAL SERVICES RESIDENTIAL,Peoples Services,Nursing Care - 3rd party top up payment,A56023,0
London Borough of Sutton,17/03/2023,50331254,"3,720.16",Cross Care Services Ltd,SOCIAL SERVICES RESIDENTIAL,Peoples Services,Nursing Care - Ext Provider,A56025,0
London Borough of Sutton,17/03/2023,50331254,-735.68,Cross Care Services Ltd,SOCIAL SERVICES RESIDENTIAL,Peoples Services,Nursing Care - 3rd party top up payment,A56023,0
London Borough of Sutton,21/03/2023,50331442,"6,020.13",Cross Care Services Ltd,SOCIAL SERVICES RESIDENTIAL,Peoples Services,Nursing Care - Ext Provider,A56025,0
London Borough of Sutton,28/02/2023,20044182,"7,708.00",Croydon Court Ltd,ACCOMMODATION BED & BREAKFAST,Environment Housing and Neighbourhoods,Bed & Breakfast,A56000,0
London Borough of Sutton,17/03/2023,50330776,"8,118.44",CSS Ltd,SOCIAL SERVICES RESIDENTIAL,Peoples Services,Residential Care - Ext Provider,A56114,0
London Borough of Sutton,12/12/2022,50327183,683.76,CSS Ltd,SOCIAL SERVICES RESIDENTIAL,Peoples Services,Day Care Services,A56021,0
London Borough of Sutton,10/01/2023,50327195,520.00,CSS Ltd,SOCIAL SERVICES RESIDENTIAL,Peoples Services,Day Care Services,A56021,0
London Borough of Sutton,10/01/2023,50327195,243.20,CSS Ltd,SOCIAL SERVICES RESIDENTIAL,Peoples Services,Day Care Services,A56021,0
London Borough of Sutton,28/11/2022,50327196,650.00,CSS Ltd,SOCIAL SERVICES RESIDENTIAL,Peoples Services,Day Care Services,A56021,0
London Borough of Sutton,28/11/2022,50327196,113.20,CSS Ltd,SOCIAL SERVICES RESIDENTIAL,Peoples Services,Day Care Services,A56021,0
London Borough of Sutton,21/02/2023,50331726,763.20,CSS Ltd,SOCIAL SERVICES RESIDENTIAL,Peoples Services,Day Care Services,A56021,0
London Borough of Sutton,20/03/2023,50333711,763.20,CSS Ltd,SOCIAL SERVICES RESIDENTIAL,Peoples Services,Day Care Services,A56021,0
London Borough of Sutton,23/03/2023,50334316,-130.00,CSS Ltd,SOCIAL SERVICES RESIDENTIAL,Peoples Services,Day Care Services,A56021,0
London Borough of Sutton,23/03/2023,50334316,893.20,CSS Ltd,SOCIAL SERVICES RESIDENTIAL,Peoples Services,Day Care Services,A56021,0
London Borough of Sutton,23/03/2023,50334317,572.40,CSS Ltd,SOCIAL SERVICES RESIDENTIAL,Peoples Services,Day Care Services,A56021,0
London Borough of Sutton,27/03/2023,50335556,683.76,CSS Ltd,SOCIAL SERVICES RESIDENTIAL,Peoples Services,Day Care Services,A56021,0
London Borough of Sutton,09/03/2023,50329573,"27,815.51",CUDDINGTON CROFT PRIMARY SCHOOL,CHILDREN'S SERVICES - SEN SERVICES,Peoples Services,Top-up Funding,A51016,0
London Borough of Sutton,09/03/2023,50329574,"27,815.48",CUDDINGTON CROFT PRIMARY SCHOOL,CHILDREN'S SERVICES - SEN SERVICES,Peoples Services,Top-up Funding,A51016,0
London Borough of Sutton,16/03/2023,50332476,"3,383.00",CUDDINGTON CROFT PRIMARY SCHOOL,CHILDREN'S SERVICES - SEN SERVICES,Peoples Services,Top-up Funding,A51016,0
London Borough of Sutton,07/03/2023,50324716,"174,548.44",Culvers House Primary School,GRANTS & EX GRATIA PAYMENTS,Peoples Services,Payments to Schools,A51013,0
London Borough of Sutton,07/03/2023,50324783,972.00,Culvers House Primary School,GRANTS & EX GRATIA PAYMENTS,Peoples Services,Early Years Pupil Premium,A60031,0
London Borough of Sutton,07/03/2023,50324807,858.60,Culvers House Primary School,GRANTS & EX GRATIA PAYMENTS,Peoples Services,Other payments to schools,A51023,0
London Borough of Sutton,07/03/2023,50324831,800.00,Culvers House Primary School,GRANTS & EX GRATIA PAYMENTS,Peoples Services,Disability Access Fund,A56093,0
London Borough of Sutton,07/03/2023,50326966,"11,280.38",Culvers House Primary School,GRANTS & EX GRATIA PAYMENTS,Peoples Services,Place Funding,A56110,0
London Borough of Sutton,10/03/2023,50327620,"46,743.75",Culvers House Primary School,GRANTS & EX GRATIA PAYMENTS,Peoples Services,Payment - Deprivation Pupil Premium,A51030,0
London Borough of Sutton,10/03/2023,50327643,"1,807.50",Culvers House Primary School,GRANTS & EX GRATIA PAYMENTS,Peoples Services,Payment - Post-LAC Pupil Premium,A51032,0
London Borough of Sutton,07/03/2023,50331325,"2,310.00",Culvers House Primary School,GRANTS & EX GRATIA PAYMENTS,Resources,"Grants, Contributions & Donations",A47005,0
London Borough of Sutton,17/03/2023,50330810,"6,400.00",Curado Limited,GRANTS & EX GRATIA PAYMENTS,Peoples Services,Residential Care - Ext Provider,A56114,0
London Borough of Sutton,20/03/2023,50331512,"1,992.86",Curado Limited,GRANTS & EX GRATIA PAYMENTS,Peoples Services,Supported Living,A56088,0
London Borough of Sutton,24/02/2023,20043705,"4,500.00",Cushman & Wakefield Debenham Tie Leung Limited,LEGAL & PROFESSIONAL SERVICES,Development Growth and Regeneration,External Fees and Consultants,C20000,0
London Borough of Sutton,24/02/2023,20043706,"9,270.00",Cushman & Wakefield Debenham Tie Leung Limited,LEGAL & PROFESSIONAL SERVICES,Development Growth and Regeneration,External Fees and Consultants,C20000,0
London Borough of Sutton,24/02/2023,20043707,"15,000.00",Cushman & Wakefield Debenham Tie Leung Limited,LEGAL & PROFESSIONAL SERVICES,Development Growth and Regeneration,External Fees and Consultants,C20000,0
London Borough of Sutton,24/02/2023,20043761,"1,800.00",Cushman & Wakefield Debenham Tie Leung Limited,LEGAL & PROFESSIONAL SERVICES,Development Growth and Regeneration,External Fees and Consultants,C20000,0
London Borough of Sutton,24/02/2023,20043762,"1,800.00",Cushman & Wakefield Debenham Tie Leung Limited,LEGAL & PROFESSIONAL SERVICES,Development Growth and Regeneration,External Fees and Consultants,C20000,0
London Borough of Sutton,24/02/2023,20043763,"4,000.00",Cushman & Wakefield Debenham Tie Leung Limited,LEGAL & PROFESSIONAL SERVICES,Development Growth and Regeneration,External Fees and Consultants,C20000,0
London Borough of Sutton,24/02/2023,20043764,"16,143.75",Cushman & Wakefield Debenham Tie Leung Limited,LEGAL & PROFESSIONAL SERVICES,Development Growth and Regeneration,External Fees and Consultants,C20000,0
London Borough of Sutton,28/02/2023,20044129,"6,303.75",Cushman & Wakefield Debenham Tie Leung Limited,LEGAL & PROFESSIONAL SERVICES,Development Growth and Regeneration,External Fees and Consultants,C20000,0
London Borough of Sutton,28/02/2023,20044130,"5,600.00",Cushman & Wakefield Debenham Tie Leung Limited,LEGAL & PROFESSIONAL SERVICES,Development Growth and Regeneration,External Fees and Consultants,C20000,0
London Borough of Sutton,28/02/2023,20044131,"9,000.00",Cushman & Wakefield Debenham Tie Leung Limited,LEGAL & PROFESSIONAL SERVICES,Development Growth and Regeneration,External Fees and Consultants,C20000,0
London Borough of Sutton,28/02/2023,20044132,"11,500.00",Cushman & Wakefield Debenham Tie Leung Limited,LEGAL & PROFESSIONAL SERVICES,Development Growth and Regeneration,External Fees and Consultants,C20000,0
London Borough of Sutton,28/02/2023,20044194,"3,000.00",Cushman & Wakefield Debenham Tie Leung Limited,LEGAL & PROFESSIONAL SERVICES,Development Growth and Regeneration,External Fees and Consultants,C20000,0
London Borough of Sutton,14/02/2023,20042982,525.00,Cygnet IT Services CIC,BUSINESS & COMPUTER SYSTEMS,Development Growth and Regeneration,Other Capital Expenditure,C20002,0
London Borough of Sutton,17/03/2023,50330793,-758.00,Cygnet Learning Disabilities Midlands Ltd,SOCIAL SERVICES RESIDENTIAL,Peoples Services,Residential Care - Client Cont ( Net Paymt ),A56113,0
London Borough of Sutton,17/03/2023,50330793,"6,827.40",Cygnet Learning Disabilities Midlands Ltd,SOCIAL SERVICES RESIDENTIAL,Peoples Services,Residential Care - Ext Provider,A56114,0
London Borough of Sutton,02/02/2023,20044269,858.00,Danson Youth Trust,OFFICE SERVICES,Peoples Services,Client Care/Assistance,A61011,0
London Borough of Sutton,23/01/2023,20044270,"2,340.00",Danson Youth Trust,OFFICE SERVICES,Peoples Services,Client Care/Assistance,A61011,0
London Borough of Sutton,01/03/2023,20044274,"1,145.26",Dariba Design Limited,CONSULTING ARCHITECTS ENGINEER,Environment Housing and Neighbourhoods,Grants Given For Capital Purposes,C20004,0
London Borough of Sutton,25/12/2022,50334708,504.00,Day and Nite Services,SOCIAL SERVICES DAY CARE,Peoples Services,Home Care Services,A56019,0
London Borough of Sutton,27/02/2023,20044089,846.00,DCC Interactive Ltd,CONFERENCES,Peoples Services,Staff Development And Training,A15022,0
London Borough of Sutton,16/02/2023,20044174,846.00,DCC Interactive Ltd,CONFERENCES,Peoples Services,Staff Development And Training,A15022,0
London Borough of Sutton,28/02/2023,20044133,"1,498.00",Dellhome Limited,ACCOMMODATION BED & BREAKFAST,Environment Housing and Neighbourhoods,Bed & Breakfast,A56000,0
London Borough of Sutton,28/02/2023,20044134,"1,876.00",Dellhome Limited,ACCOMMODATION BED & BREAKFAST,Environment Housing and Neighbourhoods,Bed & Breakfast,A56000,0
London Borough of Sutton,28/02/2023,20044135,"1,498.00",Dellhome Limited,ACCOMMODATION BED & BREAKFAST,Environment Housing and Neighbourhoods,Bed & Breakfast,A56000,0
London Borough of Sutton,01/03/2023,20044362,"27,048.00",Delta Wise Limited,ACCOMMODATION BED & BREAKFAST,Environment Housing and Neighbourhoods,Bed & Breakfast,A56000,0
London Borough of Sutton,07/03/2023,20044531,-439.53,Delta Wise Limited,ACCOMMODATION BED & BREAKFAST,Resources,Fees And Charges (VATable),A92310,0
London Borough of Sutton,07/03/2023,20044657,"1,456.00",Denhan Property Services,ACCOMMODATION BED & BREAKFAST,Environment Housing and Neighbourhoods,Bed & Breakfast,A56000,0
London Borough of Sutton,07/03/2023,20044658,"1,680.00",Denhan Property Services,ACCOMMODATION BED & BREAKFAST,Environment Housing and Neighbourhoods,Bed & Breakfast,A56000,0
London Borough of Sutton,07/03/2023,20044659,"1,743.00",Denhan Property Services,ACCOMMODATION BED & BREAKFAST,Environment Housing and Neighbourhoods,Bed & Breakfast,A56000,0
London Borough of Sutton,07/03/2023,20044660,"1,876.00",Denhan Property Services,ACCOMMODATION BED & BREAKFAST,Environment Housing and Neighbourhoods,Bed & Breakfast,A56000,0
London Borough of Sutton,07/03/2023,20044661,"1,036.00",Denhan Property Services,ACCOMMODATION BED & BREAKFAST,Environment Housing and Neighbourhoods,Bed & Breakfast,A56000,0
London Borough of Sutton,07/03/2023,20044663,"1,036.00",Denhan Property Services,ACCOMMODATION BED & BREAKFAST,Environment Housing and Neighbourhoods,Bed & Breakfast,A56000,0
London Borough of Sutton,17/03/2023,50330789,"3,505.00",Denville Hall 2012,SOCIAL SERVICES RESIDENTIAL,Peoples Services,Residential Care - Ext Provider,A56114,0
London Borough of Sutton,15/02/2023,20043132,"8,579.64",DEPAULUK,CHILDREN'S SERVICE - OTHER,Peoples Services,Housing and Support - Generic Services,A62013,0
London Borough of Sutton,15/02/2023,20043133,"21,806.58",DEPAULUK,CHILDREN'S SERVICE - OTHER,Peoples Services,Housing and Support - Generic Services,A62013,0
London Borough of Sutton,05/03/2023,20044396,"1,000.00",Design JD Ltd,AGRICULTURAL & ESTATE SERVICES,Health and Wellbeing,Fees,A44040,0
London Borough of Sutton,17/03/2023,50330791,"3,175.04",Devaglade Trading Limited,SOCIAL SERVICES RESIDENTIAL,Peoples Services,Residential Care - Ext Provider,A56114,0
London Borough of Sutton,06/03/2023,20044583,"18,789.85",Devonshire Primary School,GRANTS & EX GRATIA PAYMENTS,Peoples Services,Payments to Contractors,C14000,0
London Borough of Sutton,07/03/2023,50324709,"254,143.44",Devonshire Primary School,GRANTS & EX GRATIA PAYMENTS,Peoples Services,Payments to Schools,A51013,0
London Borough of Sutton,07/03/2023,50324772,"4,816.70",Devonshire Primary School,GRANTS & EX GRATIA PAYMENTS,Peoples Services,Pupil Growth,A51014,0
London Borough of Sutton,07/03/2023,50324784,648.00,Devonshire Primary School,GRANTS & EX GRATIA PAYMENTS,Peoples Services,Early Years Pupil Premium,A60031,0
London Borough of Sutton,07/03/2023,50324808,572.40,Devonshire Primary School,GRANTS & EX GRATIA PAYMENTS,Peoples Services,Other payments to schools,A51023,0
London Borough of Sutton,07/03/2023,50324842,966.60,Devonshire Primary School,GRANTS & EX GRATIA PAYMENTS,Peoples Services,Place Funding,A56110,0
London Borough of Sutton,07/03/2023,50326967,"11,508.98",Devonshire Primary School,GRANTS & EX GRATIA PAYMENTS,Peoples Services,Place Funding,A56110,0
London Borough of Sutton,10/03/2023,50327613,"64,402.50",Devonshire Primary School,GRANTS & EX GRATIA PAYMENTS,Peoples Services,Payment - Deprivation Pupil Premium,A51030,0
London Borough of Sutton,10/03/2023,50327639,602.50,Devonshire Primary School,GRANTS & EX GRATIA PAYMENTS,Peoples Services,Payment - Post-LAC Pupil Premium,A51032,0
London Borough of Sutton,07/03/2023,50331326,"2,970.00",Devonshire Primary School,GRANTS & EX GRATIA PAYMENTS,Resources,"Grants, Contributions & Donations",A47005,0
London Borough of Sutton,28/03/2023,50334384,"5,800.10",Devonshire Primary School,GRANTS & EX GRATIA PAYMENTS,Non-Service Cost Centres,Recharge-Teaching Staff,A10600,0
London Borough of Sutton,25/01/2023,50329445,"1,680.00",Direct Care And Support Services,ACCOMMODATION - OTHER,Peoples Services,Supported Living,A56088,0
London Borough of Sutton,25/01/2023,50329445,"3,021.20",Direct Care And Support Services,ACCOMMODATION - OTHER,Peoples Services,Supported Living,A56088,0
London Borough of Sutton,19/01/2023,50329552,"1,082.32",Direct Care And Support Services,ACCOMMODATION - OTHER,Peoples Services,Supported Living,A56088,0
London Borough of Sutton,19/01/2023,50329552,"2,845.08",Direct Care And Support Services,ACCOMMODATION - OTHER,Peoples Services,Supported Living,A56088,0
London Borough of Sutton,19/01/2023,50329552,218.52,Direct Care And Support Services,ACCOMMODATION - OTHER,Peoples Services,Supported Living,A56088,0
London Borough of Sutton,26/02/2023,50330349,"1,082.32",Direct Care And Support Services,ACCOMMODATION - OTHER,Peoples Services,Supported Living,A56088,0
London Borough of Sutton,26/02/2023,50330349,"2,845.08",Direct Care And Support Services,ACCOMMODATION - OTHER,Peoples Services,Supported Living,A56088,0
London Borough of Sutton,26/02/2023,50330349,218.52,Direct Care And Support Services,ACCOMMODATION - OTHER,Peoples Services,Supported Living,A56088,0
London Borough of Sutton,23/03/2023,50335736,"3,535.81",Direct Care And Support Services,ACCOMMODATION - OTHER,Peoples Services,Supported Living,A56088,0
London Borough of Sutton,23/03/2023,50335736,"1,307.32",Direct Care And Support Services,ACCOMMODATION - OTHER,Peoples Services,Supported Living,A56088,0
London Borough of Sutton,23/03/2023,50335736,990.68,Direct Care And Support Services,ACCOMMODATION - OTHER,Peoples Services,Supported Living,A56088,0
London Borough of Sutton,23/03/2023,50335737,"3,535.81",Direct Care And Support Services,ACCOMMODATION - OTHER,Peoples Services,Supported Living,A56088,0
London Borough of Sutton,23/03/2023,50335737,"1,307.32",Direct Care And Support Services,ACCOMMODATION - OTHER,Peoples Services,Supported Living,A56088,0
London Borough of Sutton,23/03/2023,50335737,990.68,Direct Care And Support Services,ACCOMMODATION - OTHER,Peoples Services,Supported Living,A56088,0
London Borough of Sutton,23/03/2023,50335738,"3,535.81",Direct Care And Support Services,ACCOMMODATION - OTHER,Peoples Services,Supported Living,A56088,0
London Borough of Sutton,23/03/2023,50335738,"1,307.32",Direct Care And Support Services,ACCOMMODATION - OTHER,Peoples Services,Supported Living,A56088,0
London Borough of Sutton,23/03/2023,50335738,990.68,Direct Care And Support Services,ACCOMMODATION - OTHER,Peoples Services,Supported Living,A56088,0
London Borough of Sutton,27/02/2023,20044341,938.34,REDACTED - PERSONAL DATA,PLS LANDLORDS,Environment Housing and Neighbourhoods,Temporary Protection - Homeless Persons,A62028,0
London Borough of Sutton,07/03/2023,50324860,"1,125.47",REDACTED - PERSONAL DATA,GRANTS & EX GRATIA PAYMENTS,Peoples Services,Payment - Nursery Funding,A51056,0
London Borough of Sutton,07/03/2023,50324937,"3,228.44",REDACTED - PERSONAL DATA,GRANTS & EX GRATIA PAYMENTS,Peoples Services,Payment - Nursery Funding,A51056,0
London Borough of Sutton,07/03/2023,50324711,"197,787.30",Dorchester Primary School,GRANTS & EX GRATIA PAYMENTS,Peoples Services,Payments to Schools,A51013,0
London Borough of Sutton,07/03/2023,50326968,"17,746.78",Dorchester Primary School,GRANTS & EX GRATIA PAYMENTS,Peoples Services,Place Funding,A56110,0
London Borough of Sutton,10/03/2023,50327615,"30,470.00",Dorchester Primary School,GRANTS & EX GRATIA PAYMENTS,Peoples Services,Payment - Deprivation Pupil Premium,A51030,0
London Borough of Sutton,07/03/2023,50331327,"1,560.00",Dorchester Primary School,GRANTS & EX GRATIA PAYMENTS,Resources,"Grants, Contributions & Donations",A47005,0
London Borough of Sutton,28/03/2023,50333916,"3,225.60",Dramabuds,ENTERTAINMENTS INDUSTRY,Resources,Other Supplies & Services,A44291,0
London Borough of Sutton,05/03/2023,50328037,"4,440.00",Dreamfo Housing Ltd,CHILDREN'S SERVICE - OTHER,Peoples Services,Approved Lodgings,A61000,0
London Borough of Sutton,05/03/2023,50328037,250.00,Dreamfo Housing Ltd,CHILDREN'S SERVICE - OTHER,Peoples Services,Approved Lodgings,A61000,0
London Borough of Sutton,06/03/2023,50328038,"2,999.88",Dreamfo Housing Ltd,CHILDREN'S SERVICE - OTHER,Peoples Services,Approved Lodgings,A61000,0
London Borough of Sutton,06/03/2023,50328038,250.00,Dreamfo Housing Ltd,CHILDREN'S SERVICE - OTHER,Peoples Services,Approved Lodgings,A61000,0
London Borough of Sutton,04/03/2023,20044384,483.26,DSI Billing Services Ltd,OFFICE SERVICES,Resources,Postage & Couriers,A45015,0
London Borough of Sutton,04/03/2023,20044384,483.26,DSI Billing Services Ltd,OFFICE SERVICES,Resources,Postage & Couriers,A45015,0
London Borough of Sutton,01/03/2023,20044244,"1,667.85",Dunfield & Mead Ltd,CHILDREN'S SERVICES - RESIDENTIAL,Peoples Services,Approved Lodgings,A61000,0
London Borough of Sutton,01/03/2023,20044245,"1,667.85",Dunfield & Mead Ltd,CHILDREN'S SERVICES - RESIDENTIAL,Peoples Services,Approved Lodgings,A61000,0
London Borough of Sutton,01/03/2023,20044247,"2,269.64",Dunfield & Mead Ltd,CHILDREN'S SERVICES - RESIDENTIAL,Peoples Services,Miscellaneous Expenses,A49000,0
London Borough of Sutton,01/03/2023,20044248,"2,778.57",Dunfield & Mead Ltd,CHILDREN'S SERVICES - RESIDENTIAL,Peoples Services,Approved Lodgings,A61000,0
London Borough of Sutton,01/03/2023,20044249,"3,930.35",Dunfield & Mead Ltd,CHILDREN'S SERVICES - RESIDENTIAL,Peoples Services,Miscellaneous Expenses,A49000,0
London Borough of Sutton,01/03/2023,20044250,"1,542.85",Dunfield & Mead Ltd,CHILDREN'S SERVICES - RESIDENTIAL,Peoples Services,Approved Lodgings,A61000,0
London Borough of Sutton,01/03/2023,20044256,"3,203.57",Dunfield & Mead Ltd,CHILDREN'S SERVICES - RESIDENTIAL,Peoples Services,Miscellaneous Expenses,A49000,0
London Borough of Sutton,01/03/2023,20044257,"2,269.64",Dunfield & Mead Ltd,CHILDREN'S SERVICES - RESIDENTIAL,Peoples Services,Approved Lodgings,A61000,0
London Borough of Sutton,01/03/2023,20044258,"1,771.42",Dunfield & Mead Ltd,CHILDREN'S SERVICES - RESIDENTIAL,Peoples Services,Approved Lodgings,A61000,0
London Borough of Sutton,01/02/2023,50328017,"3,300.00",Dunfield & Mead Ltd,CHILDREN'S SERVICES - RESIDENTIAL,Peoples Services,Approved Lodgings,A61000,0
London Borough of Sutton,01/02/2023,50328017,250.00,Dunfield & Mead Ltd,CHILDREN'S SERVICES - RESIDENTIAL,Peoples Services,Approved Lodgings,A61000,0
London Borough of Sutton,01/02/2023,50328020,"3,900.00",Dunfield & Mead Ltd,CHILDREN'S SERVICES - RESIDENTIAL,Peoples Services,Accommodation - Supported Living,A62001,0
London Borough of Sutton,01/02/2023,50328020,250.00,Dunfield & Mead Ltd,CHILDREN'S SERVICES - RESIDENTIAL,Peoples Services,Accommodation - Supported Living,A62001,0
London Borough of Sutton,01/02/2023,50328060,"4,150.00",Dunfield & Mead Ltd,CHILDREN'S SERVICES - RESIDENTIAL,Peoples Services,Accommodation - Supported Living,A62001,0
London Borough of Sutton,28/02/2023,20044155,"3,858.00",Dunheved Hotel Ltd,ACCOMMODATION BED & BREAKFAST,Environment Housing and Neighbourhoods,Bed & Breakfast,A56000,0
London Borough of Sutton,17/03/2023,50330758,"3,187.44",Dunheved Lodge,SOCIAL SERVICES RESIDENTIAL,Peoples Services,Residential Care - Ext Provider,A56114,0
London Borough of Sutton,17/03/2023,50330758,"3,016.00",Dunheved Lodge,SOCIAL SERVICES RESIDENTIAL,Peoples Services,One to One Care,A56108,0
London Borough of Sutton,24/02/2023,50326738,980.00,DWT Windows & Doors,CONSTRUCTION INDUSTRY,HRA,Payments to Contractors,C14000,0
London Borough of Sutton,24/02/2023,50326739,980.00,DWT Windows & Doors,CONSTRUCTION INDUSTRY,HRA,Payments to Contractors,C14000,0
London Borough of Sutton,24/02/2023,50326740,980.00,DWT Windows & Doors,CONSTRUCTION INDUSTRY,HRA,Payments to Contractors,C14000,0
London Borough of Sutton,24/02/2023,50326741,980.00,DWT Windows & Doors,CONSTRUCTION INDUSTRY,HRA,Payments to Contractors,C14000,0
London Borough of Sutton,24/02/2023,50326742,980.00,DWT Windows & Doors,CONSTRUCTION INDUSTRY,HRA,Payments to Contractors,C14000,0
London Borough of Sutton,24/02/2023,50326743,980.00,DWT Windows & Doors,CONSTRUCTION INDUSTRY,HRA,Payments to Contractors,C14000,0
London Borough of Sutton,24/02/2023,50326744,980.00,DWT Windows & Doors,CONSTRUCTION INDUSTRY,HRA,Payments to Contractors,C14000,0
London Borough of Sutton,25/02/2023,50329103,980.00,DWT Windows & Doors,CONSTRUCTION INDUSTRY,HRA,Payments to Contractors,C14000,0
London Borough of Sutton,24/02/2023,50329104,980.00,DWT Windows & Doors,CONSTRUCTION INDUSTRY,HRA,Payments to Contractors,C14000,0
London Borough of Sutton,24/02/2023,50329105,980.00,DWT Windows & Doors,CONSTRUCTION INDUSTRY,HRA,Payments to Contractors,C14000,0
London Borough of Sutton,24/02/2023,50329106,980.00,DWT Windows & Doors,CONSTRUCTION INDUSTRY,HRA,Payments to Contractors,C14000,0
London Borough of Sutton,24/02/2023,50329107,980.00,DWT Windows & Doors,CONSTRUCTION INDUSTRY,HRA,Payments to Contractors,C14000,0
London Borough of Sutton,24/02/2023,50329108,980.00,DWT Windows & Doors,CONSTRUCTION INDUSTRY,HRA,Payments to Contractors,C14000,0
London Borough of Sutton,24/02/2023,50329109,980.00,DWT Windows & Doors,CONSTRUCTION INDUSTRY,HRA,Payments to Contractors,C14000,0
London Borough of Sutton,24/02/2023,50329110,"1,050.00",DWT Windows & Doors,CONSTRUCTION INDUSTRY,HRA,Payments to Contractors,C14000,0
London Borough of Sutton,24/02/2023,50329111,"1,050.00",DWT Windows & Doors,CONSTRUCTION INDUSTRY,HRA,Payments to Contractors,C14000,0
London Borough of Sutton,24/02/2023,50329112,"1,050.00",DWT Windows & Doors,CONSTRUCTION INDUSTRY,HRA,Payments to Contractors,C14000,0
London Borough of Sutton,24/02/2023,50329115,680.00,DWT Windows & Doors,CONSTRUCTION INDUSTRY,HRA,Payments to Contractors,C14000,0
London Borough of Sutton,04/03/2023,50329116,780.00,DWT Windows & Doors,CONSTRUCTION INDUSTRY,HRA,Payments to Contractors,C14000,0
London Borough of Sutton,24/02/2023,50329239,"1,050.00",DWT Windows & Doors,CONSTRUCTION INDUSTRY,HRA,Payments to Contractors,C14000,0
London Borough of Sutton,24/02/2023,50329240,"1,360.00",DWT Windows & Doors,CONSTRUCTION INDUSTRY,HRA,Payments to Contractors,C14000,0
London Borough of Sutton,24/02/2023,50329241,"4,500.00",DWT Windows & Doors,CONSTRUCTION INDUSTRY,HRA,Payments to Contractors,C14000,0
London Borough of Sutton,24/02/2023,50329242,"1,050.00",DWT Windows & Doors,CONSTRUCTION INDUSTRY,HRA,Payments to Contractors,C14000,0
London Borough of Sutton,24/02/2023,50329243,"1,050.00",DWT Windows & Doors,CONSTRUCTION INDUSTRY,HRA,Payments to Contractors,C14000,0
London Borough of Sutton,24/02/2023,50329244,980.00,DWT Windows & Doors,CONSTRUCTION INDUSTRY,HRA,Payments to Contractors,C14000,0
London Borough of Sutton,24/02/2023,50329245,"1,050.00",DWT Windows & Doors,CONSTRUCTION INDUSTRY,HRA,Payments to Contractors,C14000,0
London Borough of Sutton,24/02/2023,50329246,"2,160.00",DWT Windows & Doors,CONSTRUCTION INDUSTRY,HRA,Payments to Contractors,C14000,0
London Borough of Sutton,04/03/2023,50329247,"1,050.00",DWT Windows & Doors,CONSTRUCTION INDUSTRY,HRA,Payments to Contractors,C14000,0
London Borough of Sutton,04/03/2023,50329248,980.00,DWT Windows & Doors,CONSTRUCTION INDUSTRY,HRA,Payments to Contractors,C14000,0
London Borough of Sutton,04/03/2023,50329249,"1,050.00",DWT Windows & Doors,CONSTRUCTION INDUSTRY,HRA,Payments to Contractors,C14000,0
London Borough of Sutton,04/03/2023,50329250,"1,050.00",DWT Windows & Doors,CONSTRUCTION INDUSTRY,HRA,Payments to Contractors,C14000,0
London Borough of Sutton,08/03/2023,50329251,"1,260.00",DWT Windows & Doors,CONSTRUCTION INDUSTRY,HRA,Payments to Contractors,C14000,0
London Borough of Sutton,13/03/2023,50329268,"2,130.00",DWT Windows & Doors,CONSTRUCTION INDUSTRY,HRA,Payments to Contractors,C14000,0
London Borough of Sutton,13/03/2023,50329269,"1,670.00",DWT Windows & Doors,CONSTRUCTION INDUSTRY,HRA,Payments to Contractors,C14000,0
London Borough of Sutton,14/03/2023,50331564,"1,050.00",DWT Windows & Doors,CONSTRUCTION INDUSTRY,HRA,Payments to Contractors,C14000,0
London Borough of Sutton,14/03/2023,50331565,"1,050.00",DWT Windows & Doors,CONSTRUCTION INDUSTRY,HRA,Payments to Contractors,C14000,0
London Borough of Sutton,15/03/2023,50331569,"1,050.00",DWT Windows & Doors,CONSTRUCTION INDUSTRY,HRA,Payments to Contractors,C14000,0
London Borough of Sutton,20/03/2023,50334426,"1,050.00",DWT Windows & Doors,CONSTRUCTION INDUSTRY,HRA,Payments to Contractors,C14000,0
London Borough of Sutton,28/02/2023,50328141,"4,450.00",Dynamic Care Ltd,SOCIAL SERVICES RESIDENTIAL,Peoples Services,Approved Lodgings,A61000,0
London Borough of Sutton,28/02/2023,50328142,250.00,Dynamic Care Ltd,SOCIAL SERVICES RESIDENTIAL,Peoples Services,Approved Lodgings,A61000,0
London Borough of Sutton,28/02/2023,50328142,"4,700.00",Dynamic Care Ltd,SOCIAL SERVICES RESIDENTIAL,Peoples Services,Accommodation - Supported Living,A62001,0
London Borough of Sutton,13/02/2023,20044151,"16,242.00",E Ford Falcon Builders,SUNDRY SUPPLIER - FINANCE,Environment Housing and Neighbourhoods,Grants Given For Capital Purposes,C20004,0
London Borough of Sutton,28/02/2023,20045044,"22,444.00",E Homes And Shelters,ACCOMMODATION BED & BREAKFAST,Environment Housing and Neighbourhoods,Bed & Breakfast,A56000,0
London Borough of Sutton,31/03/2023,20046359,"1,085.00",E Homes And Shelters,ACCOMMODATION BED & BREAKFAST,Peoples Services,Approved Lodgings,A61000,0
London Borough of Sutton,17/03/2023,50330906,"3,734.88",Eastcroft Nursing Home,SOCIAL SERVICES RESIDENTIAL,Peoples Services,Nursing Care - Ext Provider,A56025,0
London Borough of Sutton,17/03/2023,50330906,-750.40,Eastcroft Nursing Home,SOCIAL SERVICES RESIDENTIAL,Peoples Services,Nursing Care - 3rd party top up payment,A56023,0
London Borough of Sutton,17/03/2023,50330943,"3,821.24",Eastcroft Nursing Home,SOCIAL SERVICES RESIDENTIAL,Peoples Services,Nursing Care Short Term,A56026,0
London Borough of Sutton,17/03/2023,50330943,-836.76,Eastcroft Nursing Home,SOCIAL SERVICES RESIDENTIAL,Peoples Services,Nursing Care - 3rd party top up payment,A56023,0
London Borough of Sutton,17/03/2023,50330955,"2,729.46",Eastcroft Nursing Home,SOCIAL SERVICES RESIDENTIAL,Peoples Services,Nursing Care Short Term,A56026,0
London Borough of Sutton,17/03/2023,50330955,-597.69,Eastcroft Nursing Home,SOCIAL SERVICES RESIDENTIAL,Peoples Services,Nursing Care - 3rd party top up payment,A56023,0
London Borough of Sutton,17/03/2023,50330964,"1,774.15",Eastcroft Nursing Home,SOCIAL SERVICES RESIDENTIAL,Peoples Services,Respite Care,A56116,0
London Borough of Sutton,17/03/2023,50330964,-388.50,Eastcroft Nursing Home,SOCIAL SERVICES RESIDENTIAL,Peoples Services,Nursing Care - 3rd party top up payment,A56023,0
London Borough of Sutton,17/03/2023,50330970,"3,821.24",Eastcroft Nursing Home,SOCIAL SERVICES RESIDENTIAL,Peoples Services,Nursing Care Short Term,A56026,0
London Borough of Sutton,17/03/2023,50331049,"3,736.00",Eastcroft Nursing Home,SOCIAL SERVICES RESIDENTIAL,Peoples Services,Nursing Care Short Term,A56026,0
London Borough of Sutton,17/03/2023,50331049,-750.40,Eastcroft Nursing Home,SOCIAL SERVICES RESIDENTIAL,Peoples Services,Nursing Care - 3rd party top up payment,A56023,0
London Borough of Sutton,17/03/2023,50331137,"3,848.24",Eastcroft Nursing Home,SOCIAL SERVICES RESIDENTIAL,Peoples Services,Nursing Care - Ext Provider,A56025,0
London Borough of Sutton,17/03/2023,50331137,-750.40,Eastcroft Nursing Home,SOCIAL SERVICES RESIDENTIAL,Peoples Services,Nursing Care - 3rd party top up payment,A56023,0
London Borough of Sutton,17/03/2023,50331150,"4,052.76",Eastcroft Nursing Home,SOCIAL SERVICES RESIDENTIAL,Peoples Services,Nursing Care Short Term,A56026,0
London Borough of Sutton,17/03/2023,50331150,-836.76,Eastcroft Nursing Home,SOCIAL SERVICES RESIDENTIAL,Peoples Services,Nursing Care - 3rd party top up payment,A56023,0
London Borough of Sutton,17/03/2023,50331205,"3,821.24",Eastcroft Nursing Home,SOCIAL SERVICES RESIDENTIAL,Peoples Services,Nursing Care Short Term,A56026,0
London Borough of Sutton,17/03/2023,50331205,-836.76,Eastcroft Nursing Home,SOCIAL SERVICES RESIDENTIAL,Peoples Services,Nursing Care - 3rd party top up payment,A56023,0
London Borough of Sutton,17/03/2023,50331263,"3,275.35",Eastcroft Nursing Home,SOCIAL SERVICES RESIDENTIAL,Peoples Services,Nursing Care Short Term,A56026,0
London Borough of Sutton,17/03/2023,50331263,-717.22,Eastcroft Nursing Home,SOCIAL SERVICES RESIDENTIAL,Peoples Services,Nursing Care - 3rd party top up payment,A56023,0
London Borough of Sutton,17/03/2023,50331264,"3,734.88",Eastcroft Nursing Home,SOCIAL SERVICES RESIDENTIAL,Peoples Services,Nursing Care - Ext Provider,A56025,0
